Transaction Date,Merchant Name,Total Line Value,Account code description
02/01/2015,MSFT   *AZUREMARKET,38.63,Subscriptions
05/01/2015,LUL TICKET OFFICE.,6.1,Travel & Subsistence
05/01/2015,FAST KEY SERVICES,6.72,General stationery & supplies
05/01/2015,SELFSERVE TICKET,8,Travel & Subsistence
05/01/2015,INTITUTEOFCONSERV,50,Conferences and Seminars: TNA Attending
05/01/2015,WWW.CROMWELL.CO.UK,62.86,Repository: stationery
05/01/2015,WWW.SECOL.CO.UK,95.88,Repository: stationery
05/01/2015,WWW.THESAFESHOP.CO,107.94,Conservation & Preservation Materials
05/01/2015,TOTALBLANKMEDIA,114.13,Record Copy: other current exp
06/01/2015,WWW.PENSHOP.CO.UK,6.7,General stationery & supplies
06/01/2015,WWW.CROMWELL.CO.UK,16.73,Conservation & Preservation Materials
06/01/2015,PARCELFORCE WORLDWIDE,75.11,Conservation & Preservation Materials
07/01/2015,LONDON OVERGROUND-,12,Travel & Subsistence
07/01/2015,OYSTER AUTOTOPUP,20,Travel & Subsistence
07/01/2015,WWW.IWEB-HOSTING.CO.UK,38.4,IT Maintenance & Support - Software
07/01/2015,COUNTRYSIDEBOOKS.,41.32,Stock - Kew shop  (Bookshop)
07/01/2015,WORLDWIDE MAGAZINE DIS,143.27,Stock - Kew shop  (Bookshop)
07/01/2015,BANNER BUSINESS SERVIC,203.42,Fast Copy/ External printing (ESD)
07/01/2015,I F CARDBOARD CREA,241.63,Stock - Kew shop  (Bookshop)
07/01/2015,KAISER+KRAFT LTD.,241.92,Repository: stationery
07/01/2015,COMMS EXPRESS LTD,325.34,Furniture and equipment
07/01/2015,BANNER BUSINESS SERVIC,482.9,Fast Copy/ External printing (ESD)
07/01/2015,WWW.PLOT-IT.CO.UK,494.36,Record Copyin: Store purchases
08/01/2015,BANNER BUSINESS SERVIC,0.29,General stationery & supplies
08/01/2015,BANNER BUSINESS SERVIC,0.4,General stationery & supplies
08/01/2015,BANNER BUSINESS SERVIC,1.02,General stationery & supplies
08/01/2015,BANNER BUSINESS SERVIC,1.09,General stationery & supplies
08/01/2015,BANNER BUSINESS SERVIC,2.18,General stationery & supplies
08/01/2015,BANNER BUSINESS SERVIC,2.18,General stationery & supplies
08/01/2015,BANNER BUSINESS SERVIC,2.41,General stationery & supplies
08/01/2015,BANNER BUSINESS SERVIC,3.12,General stationery & supplies
08/01/2015,BANNER BUSINESS SERVIC,3.35,General stationery & supplies
08/01/2015,BANNER BUSINESS SERVIC,3.36,General stationery & supplies
08/01/2015,BANNER BUSINESS SERVIC,3.78,General stationery & supplies
08/01/2015,LUL TICKET MACHINE,5,Travel & Subsistence
08/01/2015,BANNER BUSINESS SERVIC,5.29,General stationery & supplies
08/01/2015,BANNER BUSINESS SERVIC,5.66,General stationery & supplies
08/01/2015,CONVENIENCE CHEQUE FEE,5.92,Bank Charges
08/01/2015,BANNER BUSINESS SERVIC,6.96,General stationery & supplies
08/01/2015,BANNER BUSINESS SERVIC,6.96,General stationery & supplies
08/01/2015,RINGGO,7.4,Travel & Subsistence
08/01/2015,RINGGO,7.4,Travel & Subsistence
08/01/2015,BANNER BUSINESS SERVIC,7.96,General stationery & supplies
08/01/2015,LONDON OVERGROUND-,8,Travel & Subsistence
08/01/2015,BANNER BUSINESS SERVIC,8.74,General stationery & supplies
08/01/2015,BANNER BUSINESS SERVIC,9.86,General stationery & supplies
08/01/2015,BANNER BUSINESS SERVIC,10.37,General stationery & supplies
08/01/2015,BANNER BUSINESS SERVIC,11.09,General stationery & supplies
08/01/2015,BANNER BUSINESS SERVIC,11.21,General stationery & supplies
08/01/2015,BANNER BUSINESS SERVIC,13.39,General stationery & supplies
08/01/2015,BANNER BUSINESS SERVIC,14.98,General stationery & supplies
08/01/2015,BANNER BUSINESS SERVIC,15.43,General stationery & supplies
08/01/2015,BANNER BUSINESS SERVIC,19.49,General stationery & supplies
08/01/2015,Amazon EU,20,Library
08/01/2015,OYSTER AUTOTOPUP,20,Travel & Subsistence
08/01/2015,BANNER BUSINESS SERVIC,21.17,General stationery & supplies
08/01/2015,BANNER BUSINESS SERVIC,21.89,General stationery & supplies
08/01/2015,BANNER BUSINESS SERVIC,22.26,Cleaning
08/01/2015,THE CHILTERN RLYWY,22.5,Travel & Subsistence
08/01/2015,BANNER BUSINESS SERVIC,23.34,General stationery & supplies
08/01/2015,BANNER BUSINESS SERVIC,30.58,General stationery & supplies
08/01/2015,Amazon *Mktplce EU-UK,34.68,General stationery & supplies
08/01/2015,BANNER BUSINESS SERVIC,35.23,General stationery & supplies
08/01/2015,BANNER BUSINESS SERVIC,35.32,General stationery & supplies
08/01/2015,BANNER BUSINESS SERVIC,35.74,General stationery & supplies
08/01/2015,BANNER BUSINESS SERVIC,60.96,Repository: stationery
08/01/2015,BANNER BUSINESS SERVIC,90.5,Repository: stationery
08/01/2015,WWW.SURVEYANALYTICS.COM,170.96,User Survey and Monitoring
08/01/2015,SCREWFIX,192.94,Repairs and Maintenance - Planned
08/01/2015,Stock - Books,296.18,Stock - Kew shop  (Bookshop)
09/01/2015,LONDON OVERGROUND-,5,Travel & Subsistence
09/01/2015,Amazon *Mktplce EU-UK,6.16,General stationery & supplies
09/01/2015,LONDON OVERGROUND-,12,Travel & Subsistence
09/01/2015,OYSTER AUTOTOPUP,20,Travel & Subsistence
09/01/2015,Amazon EU,25.6,Library
09/01/2015,PRESERVATION EQUIP,480,Conservation & Preservation Materials
10/01/2015,BANNER BUSINESS SERVIC,1.61,General stationery & supplies
10/01/2015,BANNER BUSINESS SERVIC,10.54,General stationery & supplies
10/01/2015,OYSTER AUTOTOPUP,20,Travel & Subsistence
10/01/2015,OYSTER AUTOTOPUP,20,Travel & Subsistence
11/01/2015,OYSTER BUS AUTOTOP,20,Travel & Subsistence
11/01/2015,OYSTER AUTOTOPUP,40,Travel & Subsistence
12/01/2015,CONVENIENCE CHEQUE FEE,4.41,Bank Charges
12/01/2015,WWW.ARCHIVES.ORG.UK,20,Training
12/01/2015,BRENTFORD SERVICE,23.34,Travel & Subsistence
12/01/2015,OYSTER ISSUE WEB,45,Travel & Subsistence
12/01/2015,OYSTER ISSUE WEB,45,Travel & Subsistence
12/01/2015,OYSTER ISSUE WEB,45,Travel & Subsistence
12/01/2015,AVIS LONDON,61.44,Travel & Subsistence
12/01/2015,ASSOC OF ACCOUNTING TE,139,Professional staff subscriptions
12/01/2015,Stock - Books,220.32,Stock - Kew shop  (Bookshop)
12/01/2015,ST JOHN AMBULANCE,450,Health & Safety Services
12/01/2015,Amazon *Mktplce EU-UK,488,Furniture and equipment
13/01/2015,Amazon EU,11.88,General stationery & supplies
13/01/2015,FAST KEY SERVICES LTD,12.78,Repairs and Maintenance - Planned
13/01/2015,Amazon *Mktplce EU-UK,13.95,Furniture and equipment
13/01/2015,BALSAMIQ,16.39,Minor Software
13/01/2015,AVIS LONDON,45.84,Travel & Subsistence
13/01/2015,JOHN PURCELL PAPER,46.2,Conservation & Preservation Materials
13/01/2015,BUNZL CLEANING & HYGIE,49.2,General stationery & supplies
13/01/2015,PAYPAL *DROPBOX,79,IT Maintenance & Support - Software
13/01/2015,PHASE ELECTRICAL D,145.05,Repairs and Maintenance - Planned
13/01/2015,WWW OPPASSESSMENT EU COM,331.2,Miscellaneous (non project)
14/01/2015,WWW.TRUROFABRICS.COM,1.2,Conservation & Preservation Materials
14/01/2015,COLUMBUS TRAINLINE,2,Travel & Subsistence
14/01/2015,Amazon *Mktplce EU-UK,3.1,Conservation & Preservation Materials
14/01/2015,TNA DOCUMENTS ONLINE,3.3,Internet
14/01/2015,TNA DOCUMENTS ONLINE,3.3,Internet
14/01/2015,WYCOMBE DISTRICT COUNC,5.4,Travel & Subsistence
14/01/2015,LONDON OVERGROUND-,5.6,Travel & Subsistence
14/01/2015,RIVERSIDE ENTERTAINMEN,6,Travel & Subsistence
14/01/2015,UPPER CRUST,6.09,Travel & Subsistence
14/01/2015,BANNER BUSINESS SERVIC,8.35,General stationery & supplies
14/01/2015,LONDON OVERGROUND-,12,Travel & Subsistence
14/01/2015,LONDON OVERGROUND-,12,Travel & Subsistence
14/01/2015,WWW.CROMWELL.CO.UK,13.22,Conservation & Preservation Materials
14/01/2015,TSGN,17.5,Travel & Subsistence
14/01/2015,Amazon *Mktplce EU-UK,18.12,Furniture and equipment
14/01/2015,OYSTER AUTOTOPUP,20,Travel & Subsistence
14/01/2015,OYSTER AUTOTOPUP,20,Travel & Subsistence
14/01/2015,PAYPAL *CULTIVATE,30,Training
14/01/2015,LONDON OVERGROUND-,30,Travel & Subsistence
14/01/2015,LONDON OVERGROUND-,30,Travel & Subsistence
14/01/2015,TRAINLINE.COM,31.37,Travel & Subsistence
14/01/2015,WWW.FIRST4MAGNETS.COM,40.6,Conservation & Preservation Materials
14/01/2015,WWW.JUSTGLOVES.CO.UK,48.3,Conservation & Preservation Materials
14/01/2015,PRINTWARE-AMEIVA,78.72,Record Copyin: Store purchases
14/01/2015,WWW.LEEDSTRINITY.AC.UK,240,Conferences and Seminars: TNA Attending
15/01/2015,LUL TICKET MACHINE,5,Travel & Subsistence
15/01/2015,BANNER BUSINESS SERVIC,6.32,General stationery & supplies
15/01/2015,PRET A MANGER,6.59,Travel & Subsistence
15/01/2015,RINGGO,7.4,Travel & Subsistence
15/01/2015,Amazon EU,9.29,General stationery & supplies
15/01/2015,SELFSERVE TICKET,12,Travel & Subsistence
15/01/2015,TSGN,16.45,Travel & Subsistence
15/01/2015,Amazon EU,24.96,Furniture and equipment
15/01/2015,PAYPAL *AVERYDENNIS,28,General stationery & supplies
15/01/2015,THE CHILTERN RLYWY,32.1,Travel & Subsistence
15/01/2015,WWW.STANSTEDAIRPORT.CO,36.99,Travel & Subsistence
15/01/2015,XMA LTD,75.13,General stationery & supplies
15/01/2015,CITYSPRINT,89.11,Courier
15/01/2015,EASYJET     000ENM7DZ7,90.76,Travel & Subsistence
15/01/2015,ASKEWS LIBRARY SER,170.55,Library
15/01/2015,EB *ADAPT AMP EVOLVE E,500,Miscellaneous (non project)
16/01/2015,THE CALLY,5,Travel & Subsistence
16/01/2015,Amazon *Mktplce EU-UK,6.38,Record Copyin: Store purchases
16/01/2015,RINGOPARKBYPHONE,6.7,Travel & Subsistence
16/01/2015,CONVENIENCE CHEQUE FEE,7.1,Bank Charges
16/01/2015,CONVENIENCE CHEQUE FEE,8.8,Bank Charges
16/01/2015,Amazon *Mktplce EU-UK,9.99,General stationery & supplies
16/01/2015,LONDON OVERGROUND-,10,Travel & Subsistence
16/01/2015,SELFSERVE TICKET,12,Travel & Subsistence
16/01/2015,LONDON OVERGROUND-,12,Travel & Subsistence
16/01/2015,ABEBOOKS.COM,18.2,Library
16/01/2015,OYSTER AUTOTOPUP,20,Travel & Subsistence
16/01/2015,OYSTER AUTOTOPUP,20,Travel & Subsistence
16/01/2015,SELFSERVE TICKET,20,Travel & Subsistence
16/01/2015,SCREWFIX,21.54,Furniture and equipment
16/01/2015,GREATER ANGLIA,21.7,Travel & Subsistence
16/01/2015,ABEBOOKS.COM,24.47,Library
16/01/2015,PAYPAL *INDENWITTEN,49.47,Conservation & Preservation Materials
16/01/2015,ST JOHN AMBULANCE,288,Health & Safety Services
16/01/2015,Stock - Books,354.9,Stock - Kew shop  (Bookshop)
16/01/2015,Stock - Books,439.84,Stock - Kew shop  (Bookshop)
16/01/2015,WWW.SECOL.CO.UK,481.92,Repository: stationery
17/01/2015,Amazon EU,9.94,Library
17/01/2015,OYSTER BUS AUTOTOP,20,Travel & Subsistence
17/01/2015,OYSTER AUTOTOPUP,20,Travel & Subsistence
17/01/2015,OYSTER AUTOTOPUP,20,Travel & Subsistence
17/01/2015,OYSTER AUTOTOPUP,20,Travel & Subsistence
17/01/2015,Amazon EU,63.45,Library
19/01/2015,Amazon *Mktplce EU-UK,2.17,General stationery & supplies
19/01/2015,PAYPAL *INDENWITTEN,3.96,Conservation & Preservation Materials
19/01/2015,Amazon *Mktplce EU-UK,4.09,Record Copyin: Store purchases
19/01/2015,M6 TOLL,5.5,Travel & Subsistence
19/01/2015,HOOTSUITE MEDIA INC.,13.11,User Survey and Monitoring
19/01/2015,CABCARD SERVICES (UK) LT,15.64,Travel & Subsistence
19/01/2015,TAXI FARE BY VERIFONE,16.9,Travel & Subsistence
19/01/2015,CHAT MASSALA,17.2,Travel & Subsistence
19/01/2015,CONVENIENCE CHEQUE FEE,19.44,Bank Charges
19/01/2015,TSGN,21.8,Travel & Subsistence
19/01/2015,Atlassian,33.98,Subscriptions
19/01/2015,THE RISING SUN,34.85,Travel & Subsistence
19/01/2015,Amazon EU,287.68,General stationery & supplies
20/01/2015,CONVENIENCE CHEQUE FEE,3.54,Bank Charges
20/01/2015,ORANGE (A/PM/02),3.6,Telecommunications
20/01/2015,BOOTS THE CHEMISTS,5,General stationery & supplies
20/01/2015,EDINBURGH TRAMS LIMITED,5,Travel & Subsistence
20/01/2015,M6 TOLL,5.5,Travel & Subsistence
20/01/2015,TAXI FARE BY VERIFONE,9.82,Travel & Subsistence
20/01/2015,LUL TICKET MACHINE,15,Travel & Subsistence
20/01/2015,LONDON OVERGROUND-,20,Travel & Subsistence
20/01/2015,SELFSERVE TICKET,20,Travel & Subsistence
20/01/2015,TICKETOFFICESALE,23.1,Travel & Subsistence
20/01/2015,SAINSBURYS PETROL,25.66,Travel & Subsistence
20/01/2015,BP BULLSMOOR LANE F/STN,26.68,Travel & Subsistence
20/01/2015,LUL TICKET MACHINE,30,Travel & Subsistence
20/01/2015,SAINTS OF TARPORLEY SE,32.87,Travel & Subsistence
20/01/2015,WWW.CASSART.CO.UK,33.9,Conservation & Preservation Materials
20/01/2015,WWW.ARTSUPPLIES.CO.UK,49.72,General stationery & supplies
20/01/2015,DERBY CONFERENCE CTR LTD,50,Travel & Subsistence
20/01/2015,LONDON OVERGROUND-,50,Travel & Subsistence
20/01/2015,BRITISH A   1258211372688,60,Travel & Subsistence
20/01/2015,AVIS LONDON,79.97,Travel & Subsistence
20/01/2015,CRAYFORD TUBES LTD,82.08,Record Copyin: Store purchases
20/01/2015,AVIS ENFIELD,89.29,Vehicles Hire
20/01/2015,ARCHIVES AND RECORDS A,108,Training
20/01/2015,Stock - Books,177,Stock - Kew shop  (Bookshop)
20/01/2015,XMA LTD,252.62,Record Copyin: Store purchases
21/01/2015,BANNER BUSINESS SERVIC,0.48,General stationery & supplies
21/01/2015,BANNER BUSINESS SERVIC,0.54,General stationery & supplies
21/01/2015,BANNER BUSINESS SERVIC,0.71,General stationery & supplies
21/01/2015,BANNER BUSINESS SERVIC,0.92,General stationery & supplies
21/01/2015,BANNER BUSINESS SERVIC,1.09,General stationery & supplies
21/01/2015,BANNER BUSINESS SERVIC,1.64,General stationery & supplies
21/01/2015,BANNER BUSINESS SERVIC,2.11,General stationery & supplies
21/01/2015,BANNER BUSINESS SERVIC,2.18,General stationery & supplies
21/01/2015,CONVENIENCE CHEQUE FEE,2.5,Bank Charges
21/01/2015,BANNER BUSINESS SERVIC,3.31,General stationery & supplies
21/01/2015,BANNER BUSINESS SERVIC,3.55,General stationery & supplies
21/01/2015,BANNER BUSINESS SERVIC,3.84,General stationery & supplies
21/01/2015,BANNER BUSINESS SERVIC,3.89,General stationery & supplies
21/01/2015,BANNER BUSINESS SERVIC,5.29,General stationery & supplies
21/01/2015,BANNER BUSINESS SERVIC,5.95,General stationery & supplies
21/01/2015,RIVERSIDE ENTERTAINMEN,6,Travel & Subsistence
21/01/2015,BANNER BUSINESS SERVIC,7.54,General stationery & supplies
21/01/2015,CONVENIENCE CHEQUE FEE,8.15,Bank Charges
21/01/2015,BANNER BUSINESS SERVIC,8.2,General stationery & supplies
21/01/2015,BANNER BUSINESS SERVIC,9.42,General stationery & supplies
21/01/2015,BANNER BUSINESS SERVIC,10.94,General stationery & supplies
21/01/2015,BANNER BUSINESS SERVIC,16.6,General stationery & supplies
21/01/2015,BANNER BUSINESS SERVIC,17.14,General stationery & supplies
21/01/2015,OYSTER AUTOTOPUP,20,Travel & Subsistence
21/01/2015,TSGN,21.8,Travel & Subsistence
21/01/2015,Amazon *Mktplce EU-UK,22,Repository: stationery
21/01/2015,Stock - Books,24.45,Stock - Kew shop  (Bookshop)
21/01/2015,BANNER BUSINESS SERVIC,29.45,General stationery & supplies
21/01/2015,PRONTAPRINT,43.1,Fast Copy/ External printing (ESD)
21/01/2015,BANNER BUSINESS SERVIC,59,General stationery & supplies
21/01/2015,PRONTAPRINT,86.21,Fast Copy/ External printing (ESD)
21/01/2015,PRONTAPRINT,129.31,Fast Copy/ External printing (ESD)
21/01/2015,WG POLLARD LTD,133.44,Repairs and Maintenance - Planned
21/01/2015,PRONTAPRINT,172.42,Fast Copy/ External printing (ESD)
21/01/2015,ACL,174,Record Copyin: Store purchases
21/01/2015,Stock - Books,407.5,Stock - Kew shop  (Bookshop)
22/01/2015,MEETINGZONE LTD,4.68,Telecommunications
22/01/2015,LUL TICKET OFFICE.,5,Travel & Subsistence
22/01/2015,WWW.THATCABLE.COM,5.49,Conservation & Preservation Materials
22/01/2015,BANNER BUSINESS SERVIC,6.24,Health & Safety Services
22/01/2015,POST OFFICE COUNTER,6.4,Post
22/01/2015,LONDON OVERGROUND-,7,Travel & Subsistence
22/01/2015,Amazon *Mktplce EU-UK,10.9,General stationery & supplies
22/01/2015,BANNER BUSINESS SERVIC,14.86,General stationery & supplies
22/01/2015,WWW.BALLICOM.CO.UK,15.52,IT Maintenance & Support - Hardware
22/01/2015,OYSTER AUTOTOPUP,20,Travel & Subsistence
22/01/2015,Amazon *Mktplce EU-UK,24.96,General stationery & supplies
22/01/2015,ASKEWS LIBRARY SER,29.25,Library
22/01/2015,PRESERVATION EQUIP,29.8,Conservation & Preservation Materials
22/01/2015,PAYPAL *ISKO UK,40,Travel & Subsistence
22/01/2015,OYSTER BUS AUTOTOP,40,Travel & Subsistence
23/01/2015,TNA DOCUMENTS ONLINE,3.3,Internet
23/01/2015,LUL TICKET MACHINE,5,Travel & Subsistence
23/01/2015,OYSTER AUTOTOPUP,20,Travel & Subsistence
23/01/2015,OYSTER AUTOTOPUP,20,Travel & Subsistence
23/01/2015,OYSTER AUTOTOPUP,20,Travel & Subsistence
23/01/2015,OYSTER AUTOTOPUP,20,Travel & Subsistence
23/01/2015,Amazon *Mktplce EU-UK,29.9,Record Copyin: Store purchases
23/01/2015,TAJ HOTELS,119,Travel & Subsistence
24/01/2015,BANNER BUSINESS SERVIC,2.14,General stationery & supplies
24/01/2015,BANNER BUSINESS SERVIC,5.76,General stationery & supplies
24/01/2015,BANNER BUSINESS SERVIC,10.55,General stationery & supplies
24/01/2015,Amazon UK Retail,11.75,General stationery & supplies
24/01/2015,OYSTER AUTOTOPUP,20,Travel & Subsistence
25/01/2015,OYSTER AUTOTOPUP,20,Travel & Subsistence
25/01/2015,MONGODB  INC.,141.47,Subscriptions
26/01/2015,TESCO STORE 2092,3,Travel & Subsistence
26/01/2015,STAFFERTON WAY MSCP,4.5,Travel & Subsistence
26/01/2015,SELFSERVE TICKET,8,Travel & Subsistence
26/01/2015,LONDON OVERGROUND-,12,Travel & Subsistence
26/01/2015,LONDON MIDLAND SEL,12.95,Travel & Subsistence
26/01/2015,FIRST GTR WESTERN,21.3,Travel & Subsistence
26/01/2015,WWW.THESUPERMARKETONLINE,22.13,Furniture and equipment
26/01/2015,HILTON,26.5,Travel & Subsistence
26/01/2015,WEST COAST TRAINS,38.9,Travel & Subsistence
26/01/2015,SP SERVICES UK LTD,43.98,Health & Safety Services
26/01/2015,WWW.UKPOS.COM,50.22,Repository: stationery
26/01/2015,XMA LTD,75.13,General stationery & supplies
26/01/2015,WWW.THEBOOKSELLER.COM,196,Shop Non-Stock Items
27/01/2015,LUL TICKET MACHINE,10,Travel & Subsistence
27/01/2015,LONDON OVERGROUND-,20,Travel & Subsistence
27/01/2015,LONDON OVERGROUND-,20,Travel & Subsistence
27/01/2015,SELFSERVE TICKET,20,Travel & Subsistence
27/01/2015,HILTON,22.5,Travel & Subsistence
27/01/2015,WEST COAST TRAINS,25.7,Travel & Subsistence
27/01/2015,VIRGINTRAINS.CO.UK,29.7,Travel & Subsistence
27/01/2015,WEST COAST TRAINS,38.9,Travel & Subsistence
27/01/2015,WWW.THEWATERDELIVERYCO,60.6,Conservation & Preservation Materials
27/01/2015,PAYPAL *KESINTERNAT,259,Conferences and Seminars: TNA Attending
28/01/2015,LONDON MIDLAND SEL,9.85,Travel & Subsistence
28/01/2015,SNCF,10.89,Travel & Subsistence
28/01/2015,OYSTER AUTOTOPUP,20,Travel & Subsistence
28/01/2015,LONDON OVERGROUND-,24,Travel & Subsistence
28/01/2015,WEST COAST TRAINS,25.7,Travel & Subsistence
28/01/2015,TICKETOFFICESALE,32.5,Travel & Subsistence
28/01/2015,WEST COAST TRAINS,38.9,Travel & Subsistence
28/01/2015,LUL TICKET MACHINE,50,Travel & Subsistence
28/01/2015,PRONTAPRINT,344.83,Fast Copy/ External printing (ESD)
28/01/2015,Amazon Svcs Europe SAR,368.93,General stationery & supplies
29/01/2015,BANNER BUSINESS SERVIC,0.23,General stationery & supplies
29/01/2015,BANNER BUSINESS SERVIC,0.47,General stationery & supplies
29/01/2015,BANNER BUSINESS SERVIC,0.9,General stationery & supplies
29/01/2015,BANNER BUSINESS SERVIC,0.97,General stationery & supplies
29/01/2015,BANNER BUSINESS SERVIC,1.09,General stationery & supplies
29/01/2015,BANNER BUSINESS SERVIC,1.8,General stationery & supplies
29/01/2015,BANNER BUSINESS SERVIC,2.3,General stationery & supplies
29/01/2015,LONDON OVERGROUND-,3,Travel & Subsistence
29/01/2015,BANNER BUSINESS SERVIC,4.18,General stationery & supplies
29/01/2015,BANNER BUSINESS SERVIC,4.19,General stationery & supplies
29/01/2015,BANNER BUSINESS SERVIC,6.62,General stationery & supplies
29/01/2015,BANNER BUSINESS SERVIC,7.54,General stationery & supplies
29/01/2015,BANNER BUSINESS SERVIC,7.63,General stationery & supplies
29/01/2015,WWW.ARCHIVES.ORG.UK,10,Training
29/01/2015,BANNER BUSINESS SERVIC,17.69,General stationery & supplies
29/01/2015,BANNER BUSINESS SERVIC,19.68,General stationery & supplies
29/01/2015,BANNER BUSINESS SERVIC,21.17,General stationery & supplies
29/01/2015,SAINSBURYS,24.35,Hospitality
29/01/2015,WEST COAST TRAINS,25.7,Travel & Subsistence
29/01/2015,KAISER+KRAFT LTD.,30.24,Repository: stationery
29/01/2015,BANNER BUSINESS SERVIC,33.7,General stationery & supplies
29/01/2015,WEST COAST TRAINS,38.9,Travel & Subsistence
29/01/2015,BANNER BUSINESS SERVIC,39.34,General stationery & supplies
29/01/2015,SHELL SMALLFORD 16,39.69,Travel & Subsistence
29/01/2015,BANNER BUSINESS SERVIC,48.94,Record Copyin: Store purchases
29/01/2015,PAYPAL *LGBTHISTORY,60,Conferences and Seminars: TNA Attending
29/01/2015,AVIS LUTON,91.1,Vehicles Hire
29/01/2015,SPEEDYBOOKER.COM,105.6,Conferences and Seminars: TNA Attending
29/01/2015,CIVIL SERVICE LEARNING,183.6,Training
29/01/2015,DISCOVERY MUSEUM,325.68,Travel & Subsistence
29/01/2015,ACL,348,Record Copyin: Store purchases
30/01/2015,Amazon Svcs Europe SAR,5.72,General stationery & supplies
30/01/2015,SELFSERVE TICKET,12,Travel & Subsistence
30/01/2015,LUL TICKET MACHINE,20,Travel & Subsistence
30/01/2015,OYSTER AUTOTOPUP,20,Travel & Subsistence
30/01/2015,BADGEMASTER LTD,46.69,General stationery & supplies
30/01/2015,PAYPAL *MEDIASOCIET,60,Newspapers & Journals 
30/01/2015,WWW.PLOT-IT.CO.UK,87.41,Record Copyin: Store purchases
30/01/2015,GREATER ANGLIA T/O,105.7,Travel & Subsistence
30/01/2015,ASKEWS LIBRARY SER,128.9,Library
30/01/2015,GARDNERS BOOKS LTD,216.72,Stock - Kew shop  (Bookshop)
31/01/2015,Amazon UK Retail,10.2,General stationery & supplies
31/01/2015,ITUNES.COM/BILL,13.99,Publications (Education)
01/02/2015,TOTAL REGISTRATION,19.19,IT Maintenance & Support - Software
01/02/2015,TOTAL REGISTRATION,19.19,IT Maintenance & Support - Software
01/02/2015,MSFT   *AZUREMARKET,39.3,Subscriptions
01/02/2015,OYSTER AUTOTOPUP,40,Travel & Subsistence
01/02/2015,OYSTER BUS AUTOTOP,40,Travel & Subsistence
02/02/2015,LUL TICKET OFFICE.,4.2,Travel & Subsistence
02/02/2015,PRET A MANGER,4.45,Travel & Subsistence
02/02/2015,RIVERSIDE ENTERTAINMEN,6,General stationery & supplies
02/02/2015,LONDON OVERGROUND-,8,Travel & Subsistence
02/02/2015,MARKS & SPENCER,11.5,Hospitality
02/02/2015,BELL STREET CP,12,Travel & Subsistence
02/02/2015,LUL TICKET MACHINE,15,Travel & Subsistence
02/02/2015,WHISKI BAR,15,Travel & Subsistence
02/02/2015,FRANCIS BOUTLE PUBLISH,31.17,Stock - Kew shop  (Bookshop)
02/02/2015,WWW.NAVAL-MILITARY-PRE,113.7,Stock - Kew shop  (Bookshop)
02/02/2015,WWW.FINDMYPAST.CO.UK,204,Stock - Kew shop  (Bookshop)
02/02/2015,G RYDER & CO LTD,209.22,Conservation & Preservation Materials
03/02/2015,TATE CATERING,3.95,Travel & Subsistence
03/02/2015,LUL TICKET MACHINE,5,Travel & Subsistence
03/02/2015,RIVERSIDE ENTERTAINMEN,6,General stationery & supplies
03/02/2015,CONVENIENCE CHEQUE FEE,6.9,Bank Charges
03/02/2015,SELFSERVE TICKET,12,Travel & Subsistence
03/02/2015,BREWERS FAYRE 41516365,13.58,Travel & Subsistence
03/02/2015,CATCHES AND LATCHE,15.99,General stationery & supplies
03/02/2015,LUL TICKET MACHINE,20,Travel & Subsistence
03/02/2015,MIKESWATERF,21.48,General stationery & supplies
03/02/2015,LUL TICKET MACHINE,30,Travel & Subsistence
03/02/2015,Amazon UK Retail,46.92,General stationery & supplies
03/02/2015,VIKING,86.36,General stationery & supplies
03/02/2015,PRESERVATION EQUIP,114.18,General stationery & supplies
03/02/2015,WICKES BUILDING,141.23,Conservation & Preservation Materials
03/02/2015,WWW.THIRSTYCUPS.COM,235.96,General stationery & supplies
03/02/2015,Stock - Books,345.2,Stock - Kew shop  (Bookshop)
04/02/2015,CONVENIENCE CHEQUE FEE,2.5,Bank Charges
04/02/2015,TNA DOCUMENTS ONLINE,3.3,Internet
04/02/2015,Amazon Svcs Europe SAR,3.48,General stationery & supplies
04/02/2015,LONDON OVERGROUND-,4.3,Travel & Subsistence
04/02/2015,POST OFFICE COUNTER,6.4,Post
04/02/2015,Amazon UK Retail,8.27,General stationery & supplies
04/02/2015,Amazon Svcs Europe SAR,9.94,Conservation & Preservation Materials
04/02/2015,WWW.ARCHIVES.ORG.UK,10,Training
04/02/2015,TNA BOOKSHOP,10.8,General stationery & supplies
04/02/2015,Amazon UK Retail,11.49,General stationery & supplies
04/02/2015,LONDON OVERGROUND-,12,Travel & Subsistence
04/02/2015,LONDON OVERGROUND-,12,Travel & Subsistence
04/02/2015,Amazon Svcs Europe SAR,16.57,General stationery & supplies
04/02/2015,Amazon UK Retail,19.98,General stationery & supplies
04/02/2015,LUL TICKET MACHINE,25,Travel & Subsistence
04/02/2015,MENZIES HOTELS,30,Travel & Subsistence
04/02/2015,Amazon UK Retail,30.2,General stationery & supplies
04/02/2015,THE LAZY COW,40,Travel & Subsistence
04/02/2015,SELFSERVE TICKET,50,Travel & Subsistence
04/02/2015,XMA LTD,59.99,Record Copyin: Store purchases
04/02/2015,XMA LTD,59.99,Record Copyin: Store purchases
04/02/2015,XMA LTD,60,Record Copyin: Store purchases
04/02/2015,TILTED WIG WARWICK LTD,75,Travel & Subsistence
04/02/2015,ASKEWS LIBRARY SER,83.74,Library
04/02/2015,Stock - Books,113.2,Stock - Kew shop  (Bookshop)
04/02/2015,Amazon UK Retail,299.68,IT Storage
04/02/2015,Amazon UK Retail,414,IT Storage
05/02/2015,BANNER BUSINESS SERVIC,0.79,General stationery & supplies
05/02/2015,BANNER BUSINESS SERVIC,1.1,General stationery & supplies
05/02/2015,BANNER BUSINESS SERVIC,2.58,General stationery & supplies
05/02/2015,ST ENOCH SUBWAY,3.5,Travel & Subsistence
05/02/2015,BANNER BUSINESS SERVIC,3.86,General stationery & supplies
05/02/2015,BANNER BUSINESS SERVIC,4.98,General stationery & supplies
05/02/2015,BANNER BUSINESS SERVIC,6,General stationery & supplies
05/02/2015,BANNER BUSINESS SERVIC,6.14,General stationery & supplies
05/02/2015,CH&CO CATERING LTD,7.7,Travel & Subsistence
05/02/2015,BANNER BUSINESS SERVIC,9.31,General stationery & supplies
05/02/2015,Amazon Svcs Europe SAR,9.75,General stationery & supplies
05/02/2015,Amazon Svcs Europe SAR,16.26,Record Copyin: Store purchases
05/02/2015,WWW.GOMPELS.CO.UK,19.02,General stationery & supplies
05/02/2015,BANNER BUSINESS SERVIC,19.94,General stationery & supplies
05/02/2015,OYSTER AUTOTOPUP,20,Travel & Subsistence
05/02/2015,SELFSERVE TICKET,20,Travel & Subsistence
05/02/2015,OYSTER BUS AUTOTOP,20,Travel & Subsistence
05/02/2015,OYSTER AUTOTOPUP,20,Travel & Subsistence
05/02/2015,OYSTER AUTOTOPUP,20,Travel & Subsistence
05/02/2015,OYSTER AUTOTOPUP,20,Travel & Subsistence
05/02/2015,OYSTER AUTOTOPUP,20,Travel & Subsistence
05/02/2015,BANNER BUSINESS SERVIC,21.02,General stationery & supplies
05/02/2015,BANNER BUSINESS SERVIC,21.12,General stationery & supplies
05/02/2015,BANNER BUSINESS SERVIC,21.78,General stationery & supplies
05/02/2015,CH&CO CATERING LTD,23.95,Travel & Subsistence
05/02/2015,Amazon UK Retail,29.99,Library
05/02/2015,TNA BOOKSHOP,48,Library
05/02/2015,Amazon UK Marketplace,92.8,Library
05/02/2015,BANNER BUSINESS SERVIC,312.24,Record Copyin: Store purchases
06/02/2015,LUL TICKET MACHINE,5,Travel & Subsistence
06/02/2015,LUL TICKET OFFICE.,12,Travel & Subsistence
06/02/2015,SELFSERVE TICKET,12,Travel & Subsistence
06/02/2015,Amazon UK Retail,15,Library
06/02/2015,MERCURE BURTON UPO,17.75,Travel & Subsistence
06/02/2015,OYSTER AUTOTOPUP,20,Travel & Subsistence
06/02/2015,OYSTER AUTOTOPUP,20,Travel & Subsistence
06/02/2015,Amazon UK Retail,21.59,Library
06/02/2015,SAINSBURYS PETROL,23.31,Travel & Subsistence
06/02/2015,MERCURE BURTON UPO,24.45,Travel & Subsistence
06/02/2015,AVIS LUTON,59.09,Vehicles Hire
06/02/2015,TVLICENSING.CO.UK,145.5,Miscellaneous (non project)
06/02/2015,WWW.ICO.GOV.UK,500,Subscriptions
07/02/2015,BANNER BUSINESS SERVIC,1.34,General stationery & supplies
07/02/2015,BANNER BUSINESS SERVIC,5.27,General stationery & supplies
07/02/2015,BANNER BUSINESS SERVIC,6.02,General stationery & supplies
07/02/2015,BANNER BUSINESS SERVIC,6.2,General stationery & supplies
07/02/2015,BANNER BUSINESS SERVIC,10.52,General stationery & supplies
07/02/2015,BANNER BUSINESS SERVIC,12.64,General stationery & supplies
07/02/2015,OYSTER AUTOTOPUP,20,Travel & Subsistence
07/02/2015,OYSTER AUTOTOPUP,20,Travel & Subsistence
07/02/2015,OYSTER AUTOTOPUP,20,Travel & Subsistence
07/02/2015,BP BULLSMOOR LANE F/STN,22.18,Travel & Subsistence
07/02/2015,BANNER BUSINESS SERVIC,22.45,General stationery & supplies
07/02/2015,BANNER BUSINESS SERVIC,48.96,General stationery & supplies
07/02/2015,AVIS ENFIELD,91.69,Vehicles Hire
08/02/2015,JW PLAYER,120.66,Minor Software
09/02/2015,SUBWAY NORWICH,3.49,Travel & Subsistence
09/02/2015,Amazon UK Marketplace,4.95,Record Copyin: Store purchases
09/02/2015,LUL TICKET MACHINE,5,Travel & Subsistence
09/02/2015,M6 TOLL,5.5,Travel & Subsistence
09/02/2015,M6 TOLL,5.5,Travel & Subsistence
09/02/2015,Amazon Svcs Europe SAR,11.12,Health & Safety Services
09/02/2015,TICKETOFFICESALE,23.1,Travel & Subsistence
09/02/2015,DEMCO EUROPE LTD,26.48,Library
09/02/2015,WWW.IWEB-HOSTING.CO.UK,38.4,IT Maintenance & Support - Software
09/02/2015,JOHN WILEY & SONS PUBL,100.7,Stock - Kew shop  (Bookshop)
09/02/2015,CITYSPRINT,116.12,Courier
10/02/2015,LUL TICKET OFFICE.,5,Travel & Subsistence
10/02/2015,SAINSBURYS S/MKTS,11.52,Travel & Subsistence
10/02/2015,SELFSERVE TICKET,20,Travel & Subsistence
10/02/2015,LUL TICKET MACHINE,20,Travel & Subsistence
10/02/2015,SELFSERVE TICKET,30,Travel & Subsistence
10/02/2015,SELFSERVE TICKET,34.5,Travel & Subsistence
10/02/2015,WEST COAST TRAINS,38.9,Travel & Subsistence
10/02/2015,BP OVERSLEY MILL,40.46,Travel & Subsistence
10/02/2015,KEW BOOKS LTD,60,General stationery & supplies
10/02/2015,AVIS LONDON,84.32,Travel & Subsistence
10/02/2015,ART ANGELS PUBLISHING,223.56,Stock - Kew shop  (Bookshop)
10/02/2015,WWW.SECOL.CO.UK,398.04,Repository: stationery
10/02/2015,ST JOHN AMBULANCE,450,Health & Safety Services
11/02/2015,BANNER BUSINESS SERVIC,0.64,General stationery & supplies
11/02/2015,BANNER BUSINESS SERVIC,0.72,General stationery & supplies
11/02/2015,BANNER BUSINESS SERVIC,0.83,General stationery & supplies
11/02/2015,BANNER BUSINESS SERVIC,2.11,General stationery & supplies
11/02/2015,BANNER BUSINESS SERVIC,4.32,General stationery & supplies
11/02/2015,LONDON OVERGROUND-,6.6,Travel & Subsistence
11/02/2015,BANNER BUSINESS SERVIC,7.34,General stationery & supplies
11/02/2015,RADISSON BLU HOTEL,11,Travel & Subsistence
11/02/2015,BANNER BUSINESS SERVIC,11.4,General stationery & supplies
11/02/2015,BANNER BUSINESS SERVIC,14.78,General stationery & supplies
11/02/2015,BANNER BUSINESS SERVIC,15.22,General stationery & supplies
11/02/2015,Amazon UK Retail,17.98,Conservation & Preservation Materials
11/02/2015,BANNER BUSINESS SERVIC,18.48,General stationery & supplies
11/02/2015,OYSTER AUTOTOPUP,20,Travel & Subsistence
11/02/2015,SAINSBURYS,21,Hospitality
11/02/2015,BANNER BUSINESS SERVIC,21.02,General stationery & supplies
11/02/2015,BANNER BUSINESS SERVIC,22.45,General stationery & supplies
11/02/2015,MOORE PLACE,23.25,Travel & Subsistence
11/02/2015,BANNER BUSINESS SERVIC,29.95,General stationery & supplies
11/02/2015,BANNER BUSINESS SERVIC,31.25,General stationery & supplies
11/02/2015,BANNER BUSINESS SERVIC,32.48,General stationery & supplies
11/02/2015,BANNER BUSINESS SERVIC,32.81,General stationery & supplies
11/02/2015,WEST COAST TRAINS,38.9,Travel & Subsistence
11/02/2015,BANNER BUSINESS SERVIC,46.68,General stationery & supplies
11/02/2015,PLOTTER & REPRO. MEDIA,57.67,General stationery & supplies
11/02/2015,WWW.KNOWHOWNONPROFIT.O,60,Conservation & Preservation Materials
11/02/2015,XMA LTD,75.13,General stationery & supplies
11/02/2015,XMA LTD,75.13,General stationery & supplies
11/02/2015,TNA BOOKSHOP,94.36,Library
11/02/2015,CITYSPRINT,165.32,Courier
12/02/2015,BANNER BUSINESS SERVIC,0.54,General stationery & supplies
12/02/2015,BANNER BUSINESS SERVIC,1.56,General stationery & supplies
12/02/2015,BANNER BUSINESS SERVIC,1.64,General stationery & supplies
12/02/2015,BANNER BUSINESS SERVIC,1.66,General stationery & supplies
12/02/2015,BANNER BUSINESS SERVIC,1.78,General stationery & supplies
12/02/2015,BANNER BUSINESS SERVIC,2.16,General stationery & supplies
12/02/2015,BANNER BUSINESS SERVIC,2.36,General stationery & supplies
12/02/2015,TSGN,3.2,Travel & Subsistence
12/02/2015,TSGN,3.2,Travel & Subsistence
12/02/2015,BANNER BUSINESS SERVIC,4.72,General stationery & supplies
12/02/2015,BANNER BUSINESS SERVIC,5.29,General stationery & supplies
12/02/2015,BANNER BUSINESS SERVIC,6.19,General stationery & supplies
12/02/2015,BANNER BUSINESS SERVIC,8.81,General stationery & supplies
12/02/2015,BANNER BUSINESS SERVIC,8.88,General stationery & supplies
12/02/2015,BANNER BUSINESS SERVIC,10.94,General stationery & supplies
12/02/2015,Amazon UK Retail,12.32,Library
12/02/2015,BANNER BUSINESS SERVIC,13.39,General stationery & supplies
12/02/2015,BANNER BUSINESS SERVIC,13.39,General stationery & supplies
12/02/2015,THE WELLCOME TRUST,15,Conferences and Seminars: TNA Attending
12/02/2015,THE WELLCOME TRUST,15,Conferences and Seminars: TNA Attending
12/02/2015,BANNER BUSINESS SERVIC,15.29,General stationery & supplies
12/02/2015,BANNER BUSINESS SERVIC,17.87,General stationery & supplies
12/02/2015,BANNER BUSINESS SERVIC,18.74,General stationery & supplies
12/02/2015,BANNER BUSINESS SERVIC,19.49,General stationery & supplies
12/02/2015,BANNER BUSINESS SERVIC,19.67,General stationery & supplies
12/02/2015,OYSTER AUTOTOPUP,20,Travel & Subsistence
12/02/2015,BANNER BUSINESS SERVIC,25.87,General stationery & supplies
12/02/2015,Amazon Svcs Europe SAR,27.84,Conservation & Preservation Materials
12/02/2015,LONDON MIDLAND SEL,28.8,Travel & Subsistence
12/02/2015,CONDELL LTD,30.59,Conservation & Preservation Materials
12/02/2015,WWW.CONDELL-LTD.COM,35.7,Conservation & Preservation Materials
12/02/2015,WEST COAST TRAINS,38.9,Travel & Subsistence
12/02/2015,BANNER BUSINESS SERVIC,43.56,General stationery & supplies
12/02/2015,ASKEWS LIBRARY SER,52.45,Library
12/02/2015,HOTEIS OTHAN,156.1,Travel & Subsistence
13/02/2015,LUL TICKET OFFICE.,5,Travel & Subsistence
13/02/2015,Amazon Svcs Europe SAR,6.2,Library
13/02/2015,Amazon Svcs Europe SAR,13.98,General stationery & supplies
13/02/2015,BALSAMIQ,16.1,Minor Software
13/02/2015,OYSTER AUTOTOPUP,20,Travel & Subsistence
13/02/2015,OYSTER AUTOTOPUP,20,Travel & Subsistence
13/02/2015,LUL TICKET MACHINE,20,Travel & Subsistence
13/02/2015,SHELL SMALLFORD 16,27.38,Travel & Subsistence
13/02/2015,TICKETOFFICESALE,27.95,Travel & Subsistence
13/02/2015,Amazon UK Retail,37.95,Training
13/02/2015,WEST COAST TRAINS,38.9,Travel & Subsistence
13/02/2015,TESCO PFS 4003,39.09,Travel & Subsistence
13/02/2015,Amazon UK Retail,46.27,Training
13/02/2015,SHELL PARK ROY 495,56.04,Travel & Subsistence
13/02/2015,Amazon Svcs Europe SAR,75,Miscellaneous (non project)
13/02/2015,AVIS CROYDON,87.16,Vehicles Hire
13/02/2015,MERCURE BURTON UPO,99,Travel & Subsistence
13/02/2015,AVIS LUTON,100.1,Vehicles Hire
13/02/2015,AVIS LONDON,148.37,Vehicles Hire
13/02/2015,EB *DEVOXX UK 2015,489,Conferences and Seminars: TNA Attending
14/02/2015,OYSTER AUTOTOPUP,20,Travel & Subsistence
14/02/2015,OYSTER AUTOTOPUP,20,Travel & Subsistence
14/02/2015,Amazon UK Retail,46.27,Training
15/02/2015,OYSTER AUTOTOPUP,20,Travel & Subsistence
16/02/2015,M6 TOLL,5.5,Travel & Subsistence
16/02/2015,EB 2015 WORKING INTER,35,Conferences and Seminars: TNA Attending
16/02/2015,CONVENIENCE CHEQUE FEE,36.7,Stock - Kew shop  (Bookshop)
16/02/2015,Amazon UK Retail,37.95,Training
16/02/2015,UNIVERSITY OF LONDON,50,Conferences and Seminars: TNA Attending
16/02/2015,THE RISING SUN,50,Travel & Subsistence
16/02/2015,WWW.3MDIRECT.CO.UK,70.34,General stationery & supplies
16/02/2015,WWW.SOTON.AC.UK,90,Conferences and Seminars: TNA Attending
17/02/2015,CONVENIENCE CHEQUE FEE,2.5,Stock - Kew shop  (Bookshop)
17/02/2015,LUL TICKET MACHINE,5,Travel & Subsistence
17/02/2015,M6 TOLL,5.5,Travel & Subsistence
17/02/2015,BRENTFORD SERVICE,38.65,Travel & Subsistence
17/02/2015,Amazon UK Retail,46.27,Training
17/02/2015,Stock - Books,68.4,Stock - Kew shop  (Bookshop)
17/02/2015,AVIS LONDON,85.97,Travel & Subsistence
17/02/2015,AVANQUEST PUB LTD,146,Stock - Kew shop  (Bookshop)
17/02/2015,WWW.SURVEYANALYTICS.COM,167.84,User Survey and Monitoring
17/02/2015,IL MOSAICO E TURISMO,229.82,Conferences and Seminars: TNA Attending
17/02/2015,I F CARDBOARD CREA,320.47,Stock - Kew shop  (Bookshop)
17/02/2015,CUSTOM WORKS,330,Stock - Kew shop  (Bookshop)
17/02/2015,CANNS DOWN PRESS LTD,416.65,Stock - Kew shop  (Bookshop)
18/02/2015,BANNER BUSINESS SERVIC,1.42,General stationery & supplies
18/02/2015,LONDON OVERGROUND-,4,Travel & Subsistence
18/02/2015,LONDON OVERGROUND-,4.8,Travel & Subsistence
18/02/2015,BANNER BUSINESS SERVIC,6.38,General stationery & supplies
18/02/2015,RINGGO,7.4,Travel & Subsistence
18/02/2015,LONDON OVERGROUND-,8,Travel & Subsistence
18/02/2015,BANNER BUSINESS SERVIC,11.11,General stationery & supplies
18/02/2015,BANNER BUSINESS SERVIC,11.52,General stationery & supplies
18/02/2015,OYSTER AUTOTOPUP,20,Travel & Subsistence
18/02/2015,WWW.ARCHIVES.ORG.UK,25,Training
18/02/2015,Amazon UK Retail,27.44,Library
18/02/2015,LUL TICKET MACHINE,30,Travel & Subsistence
18/02/2015,LUL TICKET MACHINE,30,Travel & Subsistence
18/02/2015,OYSTER AUTOTOPUP,40,Travel & Subsistence
18/02/2015,SNA MANUFACTURING LTD,40.14,General stationery & supplies
18/02/2015,BANNER BUSINESS SERVIC,55.61,General stationery & supplies
18/02/2015,SHEPHERDSBO,97.8,Conservation & Preservation Materials
19/02/2015,FALKINER FINE PAPERS,6,Conservation & Preservation Materials
19/02/2015,LONDON OVERGROUND-,6.6,Travel & Subsistence
19/02/2015,SELFSERVE TICKET,12,Travel & Subsistence
19/02/2015,LONDON OVERGROUND-,12,Travel & Subsistence
19/02/2015,HOOTSUITE MEDIA INC.,12.83,User Survey and Monitoring 
19/02/2015,CHAT MASSALA,18.7,Travel & Subsistence
19/02/2015,Amazon UK Marketplace,19.83,General stationery & supplies
19/02/2015,OYSTER AUTOTOPUP,20,Travel & Subsistence
19/02/2015,OYSTER AUTOTOPUP,20,Travel & Subsistence
19/02/2015,CHAOBABY (BULLRING) LT,25,Travel & Subsistence
19/02/2015,Atlassian,33.61,Subscriptions
19/02/2015,XMA LTD,45.13,General stationery & supplies
19/02/2015,XMA LTD,45.44,General stationery & supplies
19/02/2015,XMA LTD,45.44,General stationery & supplies
19/02/2015,XMA LTD,45.44,General stationery & supplies
19/02/2015,JAGS @ 119,46.15,Travel & Subsistence
19/02/2015,XMA LTD,66.05,General stationery & supplies
19/02/2015,XMA LTD,66.05,General stationery & supplies
19/02/2015,XMA LTD,75.04,General stationery & supplies
19/02/2015,XMA LTD,75.04,General stationery & supplies
19/02/2015,XMA LTD,75.04,General stationery & supplies
19/02/2015,XMA LTD,75.04,General stationery & supplies
19/02/2015,XMA LTD,75.04,General stationery & supplies
19/02/2015,XMA LTD,75.04,General stationery & supplies
19/02/2015,ACCA,83,Professional staff subscriptions
19/02/2015,BEGEG SRL,145.88,Travel & Subsistence
19/02/2015,THAWTE,349.61,IT Maintenance & Support - Software
19/02/2015,THAWTE,349.61,IT Maintenance & Support - Software
20/02/2015,TSGN,3.2,Travel & Subsistence
20/02/2015,ORANGE (A/PM/02),5.05,Telecommunications
20/02/2015,KNOT,7.9,Travel & Subsistence
20/02/2015,SELFSERVE TICKET,12,Travel & Subsistence
20/02/2015,TNA BOOKSHOP,15.99,Library
20/02/2015,OYSTER AUTOTOPUP,20,Travel & Subsistence
20/02/2015,OYSTER AUTOTOPUP,20,Travel & Subsistence
20/02/2015,TESCO PFS 3361,28.81,Travel & Subsistence
20/02/2015,DRI Asunsoft SQL Pas,34.79,Minor Software
20/02/2015,FAST KEY SERVICES LTD,71.88,General stationery & supplies
20/02/2015,AVIS ENFIELD,87.16,Vehicles Hire
21/02/2015,BANNER BUSINESS SERVIC,8.35,General stationery & supplies
21/02/2015,BANNER BUSINESS SERVIC,12.41,General stationery & supplies
21/02/2015,OYSTER BUS AUTOTOP,20,Travel & Subsistence
21/02/2015,OYSTER AUTOTOPUP,20,Travel & Subsistence
21/02/2015,OYSTER AUTOTOPUP,20,Travel & Subsistence
21/02/2015,Amazon UK Retail,72.02,Training
22/02/2015,MEETINGZONE LTD,12.94,Telecommunications
23/02/2015,CONVENIENCE CHEQUE FEE,2.5,Stock - Kew shop  (Bookshop)
23/02/2015,CONVENIENCE CHEQUE FEE,3.24,Stock - Kew shop  (Bookshop)
23/02/2015,ITUNES.COM/BILL,3.99,Miscellaneous (non project)
23/02/2015,CONVENIENCE CHEQUE FEE,11.39,Stock - Kew shop  (Bookshop)
23/02/2015,ARCHIVES AND RECORDS A,12,Training
23/02/2015,THE WELLCOME TRUST,15,Training
23/02/2015,A.P.FITZPATRICK,38.28,Conservation & Preservation Materials
23/02/2015,Stock - Books,73.44,Stock - Kew shop  (Bookshop)
23/02/2015,TRAINLINE.COM,139.69,Travel & Subsistence
23/02/2015,Stock - Books,162,Stock - Kew shop  (Bookshop)
24/02/2015,TNA DOCUMENTS ONLINE,3.3,Internet
24/02/2015,WATERFRONT CAFE,4.3,Travel & Subsistence
24/02/2015,LUL TICKET MACHINE,5,Travel & Subsistence
24/02/2015,CONVENIENCE CHEQUE FEE,5.12,Stock - Kew shop  (Bookshop)
24/02/2015,CONVENIENCE CHEQUE FEE,5.51,Stock - Kew shop  (Bookshop)
24/02/2015,RIVERSIDE ENTERTAINMEN,6,General stationery & supplies
24/02/2015,WATERFRONT CAFE,7.1,Travel & Subsistence
24/02/2015,SACAT MARKS & SPENCER,7.55,Hospitality
24/02/2015,TSGN,16.45,Travel & Subsistence
24/02/2015,CONVENIENCE CHEQUE FEE,19.27,Stock - Kew shop  (Bookshop)
24/02/2015,LONDON OVERGROUND-,20,Travel & Subsistence
24/02/2015,LUL TICKET MACHINE,20,Travel & Subsistence
24/02/2015,PRONTAPRINT,43.1,Fast Copy/ External printing (ESD)
24/02/2015,WWW.EXETER.AC.UK,116,Conferences and Seminars: TNA Attending
24/02/2015,POMEGRANATE EUROPE,212.67,Stock - Kew shop  (Bookshop)
24/02/2015,Stock - Books,255.75,Stock - Kew shop  (Bookshop)
24/02/2015,Stock - Books,275.54,Stock - Kew shop  (Bookshop)
25/02/2015,CONVENIENCE CHEQUE FEE,2.76,Stock - Kew shop  (Bookshop)
25/02/2015,LONDON & SOUTH EAS,11,Travel & Subsistence
25/02/2015,THE WELLCOME TRUST,15,Training
25/02/2015,UNIVERSITY OF LONDON,15,Travel & Subsistence
25/02/2015,SELFSERVE TICKET,17,Travel & Subsistence
25/02/2015,OYSTER AUTOTOPUP,20,Travel & Subsistence
25/02/2015,EC MAINLINE CO INT,34.75,Travel & Subsistence
25/02/2015,OYSTER AUTOTOPUP,40,Travel & Subsistence
25/02/2015,MONGODB  INC.,59.36,Subscriptions
25/02/2015,Stock - Books,137.84,Stock - Kew shop  (Bookshop)
25/02/2015,AO RETAIL LIMITED,257,Furniture and equipment
26/02/2015,BANNER BUSINESS SERVIC,2.52,General stationery & supplies
26/02/2015,BANNER BUSINESS SERVIC,3.89,General stationery & supplies
26/02/2015,BANNER BUSINESS SERVIC,4.42,General stationery & supplies
26/02/2015,BANNER BUSINESS SERVIC,4.72,General stationery & supplies
26/02/2015,LUL TICKET OFFICE.,6.1,Travel & Subsistence
26/02/2015,BANNER BUSINESS SERVIC,6.38,General stationery & supplies
26/02/2015,BANNER BUSINESS SERVIC,7.96,General stationery & supplies
26/02/2015,ITUNES.COM/BILL,7.99,Minor Software
26/02/2015,BANNER BUSINESS SERVIC,8.34,General stationery & supplies
26/02/2015,BANNER BUSINESS SERVIC,8.34,General stationery & supplies
26/02/2015,BANNER BUSINESS SERVIC,8.34,General stationery & supplies
26/02/2015,BANNER BUSINESS SERVIC,8.34,General stationery & supplies
26/02/2015,BANNER BUSINESS SERVIC,8.34,General stationery & supplies
26/02/2015,BANNER BUSINESS SERVIC,8.34,General stationery & supplies
26/02/2015,BANNER BUSINESS SERVIC,8.74,General stationery & supplies
26/02/2015,BANNER BUSINESS SERVIC,9.49,General stationery & supplies
26/02/2015,BANNER BUSINESS SERVIC,9.49,General stationery & supplies
26/02/2015,BANNER BUSINESS SERVIC,9.55,General stationery & supplies
26/02/2015,CONVENIENCE CHEQUE FEE,10.08,Stock - Kew shop  (Bookshop)
26/02/2015,BANNER BUSINESS SERVIC,13.39,General stationery & supplies
26/02/2015,BANNER BUSINESS SERVIC,15.29,General stationery & supplies
26/02/2015,TSGN,17.5,Travel & Subsistence
26/02/2015,BANNER BUSINESS SERVIC,17.87,General stationery & supplies
26/02/2015,BANNER BUSINESS SERVIC,18.36,General stationery & supplies
26/02/2015,OYSTER BUS AUTOTOP,20,Travel & Subsistence
26/02/2015,OYSTER AUTOTOPUP,20,Travel & Subsistence
26/02/2015,SOUTHBANK CENTRE,21.75,Travel & Subsistence
26/02/2015,TICKETOFFICESALE,23.1,Travel & Subsistence
26/02/2015,SPEEDYBOOKER.COM,313.2,Travel & Subsistence
27/02/2015,STAFFERTON WAY MSCP,4.5,Travel & Subsistence
27/02/2015,LONDON OVERGROUND-,5,Travel & Subsistence
27/02/2015,LONDON OVERGROUND-,8.4,Travel & Subsistence
27/02/2015,TSGN,9.6,Travel & Subsistence
27/02/2015,TRAINLINE.COM,11.47,Travel & Subsistence
27/02/2015,FIRST GTR WESTERN,21.3,Travel & Subsistence
27/02/2015,CRAYFORD TUBES LTD,110.7,Record Copyin: Store purchases
27/02/2015,PRESERVATION EQUIP,119.64,Record Copyin: Store purchases
27/02/2015,XMA LTD,252.62,Record Copyin: Store purchases
27/02/2015,OLSON ELECTRONICS LTD,380.88,Repairs and Maintenance - Planned
28/02/2015,OYSTER AUTOTOPUP,20,Travel & Subsistence
28/02/2015,OYSTER BUS AUTOTOP,20,Travel & Subsistence
01/03/2015,OYSTER BUS AUTOTOP,20,Travel & Subsistence
01/03/2015,TOTAL REGISTRATION,20.39,IT Maintenance & Support - Software
01/03/2015,OYSTER AUTOTOPUP,40,Travel & Subsistence
01/03/2015,WWW.SURVEYANALYTICS.COM,167.76,User Survey and Monitoring
02/03/2015,TFGM METROLINK,2.4,Travel & Subsistence
02/03/2015,CH&CO CATERING LTD,2.6,Travel & Subsistence
02/03/2015,CH&CO CATERING LTD,8.15,Travel & Subsistence
02/03/2015,OYSTER AUTOTOPUP,20,Travel & Subsistence
02/03/2015,TICKETOFFICESALE,23.1,Travel & Subsistence
02/03/2015,MSFT   *AZUREMARKET,39.3,Subscriptions
02/03/2015,WWW.POSTURITE.CO.UK,39.54,Health & Safety Services
02/03/2015,POST SAFE LTD,46.76,Record Copyin: Store purchases
02/03/2015,ASKEWS LIBRARY SER,141.8,Library
02/03/2015,ST JOHN AMBULANCE,450,Health & Safety Services
03/03/2015,BADGEMASTER LTD,14.81,General stationery & supplies
03/03/2015,THE WELLCOME TRUST,15,Training
03/03/2015,TSGN,17.5,Travel & Subsistence
03/03/2015,WWW.NEOPOST.CO.UK,30,Post
03/03/2015,WWW.STANSTEDAIRPORT.CO,37.99,Travel & Subsistence
03/03/2015,BT BILL PAYMENT 1,103.44,Telecommunications
03/03/2015,SP SERVICES UK LTD,104.58,Health & Safety Services
03/03/2015,EB *MANAGING VOLUNTEER,295,Training
03/03/2015,EB MANAGING VOLUNTEER,295,Training
03/03/2015,WWW.THIRSTYCUPS.COM,337.08,General stationery & supplies
04/03/2015,WWW.ROYALMAIL.COM,3.5,Post
04/03/2015,LUL TICKET OFFICE.,5,Travel & Subsistence
04/03/2015,SELFSERVE TICKET,9,Travel & Subsistence
04/03/2015,Amazon Svcs Europe SAR,12.16,Publications (Education)
04/03/2015,TSGN,16.45,Travel & Subsistence
04/03/2015,OYSTER AUTOTOPUP,20,Travel & Subsistence
04/03/2015,OYSTER AUTOTOPUP,20,Travel & Subsistence
04/03/2015,OYSTER AUTOTOPUP,20,Travel & Subsistence
04/03/2015,Amazon UK Retail,26.25,Library
04/03/2015,LUL TICKET MACHINE,30,Travel & Subsistence
04/03/2015,LUL TICKET MACHINE,30,Travel & Subsistence
04/03/2015,XMA LTD,39.26,General stationery & supplies
04/03/2015,WWW.POSTURITE.CO.UK,39.54,Health & Safety Services
04/03/2015,UNI CAM ESALES,40,Shop: purchases for resale   
04/03/2015,POMEGRANATE,44.9,Travel & Subsistence
04/03/2015,XMA LTD,65.9,General stationery & supplies
04/03/2015,LEEDS TRINITY UNIVERSI,150,Conferences and Seminars: TNA Attending
04/03/2015,ASKEWS LIBRARY SER,193.8,Library
04/03/2015,ST JOHN AMBULANCE,450,Health & Safety Services
04/03/2015,ST JOHN AMBULANCE,450,Health & Safety Services
04/03/2015,ST JOHN AMBULANCE,450,Health & Safety Services
04/03/2015,ST JOHN AMBULANCE,450,Health & Safety Services
05/03/2015,BANNER BUSINESS SERVIC,4.58,General stationery & supplies
05/03/2015,BANNER BUSINESS SERVIC,4.92,General stationery & supplies
05/03/2015,PRET A MANGER,6.23,Travel & Subsistence
05/03/2015,LUL TICKET OFFICE.,6.6,Travel & Subsistence
05/03/2015,BANNER BUSINESS SERVIC,7.2,General stationery & supplies
05/03/2015,RINGGO,7.4,Travel & Subsistence
05/03/2015,BANNER BUSINESS SERVIC,7.9,General stationery & supplies
05/03/2015,BANNER BUSINESS SERVIC,9.49,General stationery & supplies
05/03/2015,BANNER BUSINESS SERVIC,11.82,General stationery & supplies
05/03/2015,TICKETOFFICESALE,12,Travel & Subsistence
05/03/2015,BANNER BUSINESS SERVIC,12.38,General stationery & supplies
05/03/2015,BANNER BUSINESS SERVIC,13.39,General stationery & supplies
05/03/2015,BANNER BUSINESS SERVIC,13.39,General stationery & supplies
05/03/2015,PEARL DRY CLEANERS,15,Cleaning
05/03/2015,PEARL DRY CLEANERS,15,Cleaning
05/03/2015,PEARL DRY CLEANERS,15,Cleaning
05/03/2015,PEARL DRY CLEANERS,17.5,Security Clothing
05/03/2015,OYSTER AUTOTOPUP,20,Travel & Subsistence
05/03/2015,BANNER BUSINESS SERVIC,22.26,General stationery & supplies
05/03/2015,M&S SIMPLY FOOD - SSP,22.76,Travel & Subsistence
05/03/2015,BANNER BUSINESS SERVIC,27.46,General stationery & supplies
05/03/2015,PEARL DRY CLEANERS,30,Cleaning
05/03/2015,LUL TICKET MACHINE,30,Travel & Subsistence
05/03/2015,LUL TICKET MACHINE,30,Travel & Subsistence
05/03/2015,PEARL DRY CLEANERS,30.5,Security Clothing
05/03/2015,BANNER BUSINESS SERVIC,30.86,General stationery & supplies
05/03/2015,THE CHILTERN RLYWY,32,Travel & Subsistence
05/03/2015,PEARL DRY CLEANERS,49.35,Security Clothing
05/03/2015,PEARL DRY CLEANERS,51,Security Clothing
05/03/2015,PEARL DRY CLEANERS,54.5,Security Clothing
05/03/2015,BANNER BUSINESS SERVIC,64.97,General stationery & supplies
05/03/2015,PEARL DRY CLEANERS,69,Security Clothing
05/03/2015,BANNER BUSINESS SERVIC,93.36,General stationery & supplies
05/03/2015,BANNER BUSINESS SERVIC,120.67,Repository: stationery
05/03/2015,BANNER BUSINESS SERVIC,121.92,Repository: stationery
06/03/2015,TNA DOCUMENTS ONLINE,3.3,General stationery & supplies
06/03/2015,WWW.DERMASHIELD.CO.UK,17.47,Health & Safety Services
06/03/2015,OYSTER AUTOTOPUP,20,Travel & Subsistence
06/03/2015,OYSTER BUS AUTOTOP,20,Travel & Subsistence
06/03/2015,SELFSERVE TICKET,20,Travel & Subsistence
06/03/2015,Amazon UK Retail,20.83,Subscriptions
06/03/2015,WWW.NEOPOST.CO.UK,30,Post
06/03/2015,SAINSBURYS,89.85,Hospitality
07/03/2015,BANNER BUSINESS SERVIC,7.91,General stationery & supplies
07/03/2015,BANNER BUSINESS SERVIC,15.82,General stationery & supplies
07/03/2015,OYSTER AUTOTOPUP,20,Travel & Subsistence
08/03/2015,OYSTER AUTOTOPUP,20,Travel & Subsistence
09/03/2015,CONVENIENCE CHEQUE FEE,2.5,Stock - Kew shop  (Bookshop)
09/03/2015,TNA DOCUMENTS ONLINE,3.3,General stationery & supplies
09/03/2015,KINNARPS (UK) LTD,9.6,General stationery & supplies
09/03/2015,Stock - Books,16.78,Stock - Kew shop  (Bookshop)
09/03/2015,WWW.IWEB-HOSTING.CO.UK,38.4,IT Maintenance & Support - Software
09/03/2015,BT BUSINESS DIRECT LTD,66.18,Telecommunications
09/03/2015,THE BELGRAVE LONDON LI,109.2,Travel & Subsistence
09/03/2015,OMNOVIATECH,136.31,Minor Software
10/03/2015,BUYABATTERY CO UK,4.14,General stationery & supplies
10/03/2015,TNA BOOKSHOP,36,Library
10/03/2015,WEST COAST TRAINS,38.9,Travel & Subsistence
10/03/2015,BROWSERSTACK.COM,288.21,Subscriptions
11/03/2015,RIVERSIDE ENTERTAINMEN,6,General stationery & supplies
11/03/2015,LONDON OVERGROUND-,9,Travel & Subsistence
11/03/2015,BRENTFORD SERVICE,16.94,Travel & Subsistence
11/03/2015,SELFSERVE TICKET,20,Travel & Subsistence
11/03/2015,SELFSERVE TICKET,20,Travel & Subsistence
11/03/2015,OYSTER AUTOTOPUP,20,Travel & Subsistence
11/03/2015,STRATFORDS INDUSTRIAL,33,Health & Safety Services
11/03/2015,WEST COAST TRAINS,38.9,Travel & Subsistence
11/03/2015,DISCOVERY MUSEUM,47.58,Travel & Subsistence
11/03/2015,AVIS LONDON,54.98,Travel & Subsistence
11/03/2015,BANNER BUSINESS SERVIC,92.52,General stationery & supplies
12/03/2015,BANNER BUSINESS SERVIC,1.78,General stationery & supplies
12/03/2015,BANNER BUSINESS SERVIC,2.15,General stationery & supplies
12/03/2015,BANNER BUSINESS SERVIC,3.67,General stationery & supplies
12/03/2015,BANNER BUSINESS SERVIC,3.77,General stationery & supplies
12/03/2015,BANNER BUSINESS SERVIC,6.2,General stationery & supplies
12/03/2015,BANNER BUSINESS SERVIC,6.36,General stationery & supplies
12/03/2015,LUL TICKET MACHINE,10,Travel & Subsistence
12/03/2015,LUL TICKET MACHINE,10,Travel & Subsistence
12/03/2015,BANNER BUSINESS SERVIC,11.81,General stationery & supplies
12/03/2015,LONDON OVERGROUND-,12,Travel & Subsistence
12/03/2015,BANNER BUSINESS SERVIC,13.39,General stationery & supplies
12/03/2015,OYSTER AUTOTOPUP,20,Travel & Subsistence
12/03/2015,OYSTER AUTOTOPUP,20,Travel & Subsistence
12/03/2015,OYSTER AUTOTOPUP,20,Travel & Subsistence
12/03/2015,BANNER BUSINESS SERVIC,24.36,General stationery & supplies
12/03/2015,WEBTIS,25.35,Travel & Subsistence
12/03/2015,WWW.LINNEAN.ORG,30,Conferences and Seminars: TNA Attending
12/03/2015,WWW.ECOMMERCEGATEWAY.C,35,Training
12/03/2015,WEST COAST TRAINS,38.9,Travel & Subsistence
12/03/2015,TESCO PFS 4003,43.1,Travel & Subsistence
12/03/2015,EB OUTREACH EUROPE-IN,47.27,Training
12/03/2015,BOYDELL & BREWER LTD,50,Subscriptions
12/03/2015,APPLE ONLINE STORE GBP,150,General stationery & supplies
13/03/2015,LUL TICKET OFFICE.,6.6,Travel & Subsistence
13/03/2015,TESCO PFS 4003,12.43,Travel & Subsistence
13/03/2015,BALSAMIQ,16.76,Minor Software
13/03/2015,OYSTER AUTOTOPUP,20,Travel & Subsistence
13/03/2015,TAXIPAY TAXI FARE,20.37,Travel & Subsistence
13/03/2015,EMPARK UK LIMITED,30,Travel & Subsistence
13/03/2015,WEST COAST TRAINS,38.9,Travel & Subsistence
13/03/2015,SHELL SMALLFORD 16,39.66,Travel & Subsistence
13/03/2015,I F CARDBOARD CREA,47.95,Stock - Kew shop  (Bookshop)
13/03/2015,AVIS LUTON,109.1,Vehicles Hire
13/03/2015,THE EATON HOTEL,120,Travel & Subsistence
13/03/2015,AVIS LONDON,130.37,Vehicles Hire
13/03/2015,COUNTRYSIDEBOOKS.,137.46,Stock - Kew shop  (Bookshop)
13/03/2015,EASINGWORLD TOWN HALL,138.55,Stock - Kew shop  (Bookshop)
13/03/2015,ART ANGELS PUBLISHING,190.59,Stock - Kew shop  (Bookshop)
13/03/2015,GARDNERS BOOKS LTD,218.36,Stock - Kew shop  (Bookshop)
13/03/2015,WWW.HALFMOONBAY.CO.UK,455.62,Stock - Kew shop  (Bookshop)
14/03/2015,OYSTER AUTOTOPUP,20,Travel & Subsistence
14/03/2015,OYSTER AUTOTOPUP,20,Travel & Subsistence
14/03/2015,OYSTER AUTOTOPUP,20,Travel & Subsistence
14/03/2015,OYSTER AUTOTOPUP,40,Travel & Subsistence
14/03/2015,Amazon UK Retail,49.99,Library
16/03/2015,CONVENIENCE CHEQUE FEE,2.5,Bank Charges
16/03/2015,M6 TOLL,5.5,Travel & Subsistence
16/03/2015,RIVERSIDE ENTERTAINMEN,6,General stationery & supplies
16/03/2015,SKR*ABEBOOKS.UK 3F5QTE,8,Library
16/03/2015,WWW.LEEDSTRINITY.AC.UK,20,Travel & Subsistence
16/03/2015,THE RISING SUN,40.75,Travel & Subsistence
16/03/2015,Amazon Svcs Europe SAR,43.93,General stationery & supplies
16/03/2015,Stock - Books,54,Stock - Kew shop  (Bookshop)
16/03/2015,NEW SOUTHERN RAILW,105.7,Travel & Subsistence
16/03/2015,PAYPAL *FULL FACT,119,Conferences and Seminars: TNA Attending
16/03/2015,THE IET,144,Conferences and Seminars: TNA Attending
16/03/2015,EUROSIMM LTD,194.95,Minor Software
17/03/2015,CONVENIENCE CHEQUE FEE,2.5,Bank Charges
17/03/2015,CONVENIENCE CHEQUE FEE,2.52,Bank Charges
17/03/2015,CONVENIENCE CHEQUE FEE,4.42,Bank Charges
17/03/2015,M6 TOLL,5.5,Travel & Subsistence
17/03/2015,FAST KEY SERVICES,6.72,General stationery & supplies
17/03/2015,LONDON OVERGROUND-,7,Travel & Subsistence
17/03/2015,CONVENIENCE CHEQUE FEE,13.24,Bank Charges
17/03/2015,M&S E COMMERCE,23.5,Travel & Subsistence
17/03/2015,Amazon Svcs Europe SAR,29.02,General stationery & supplies
17/03/2015,BADGEMASTER LTD,37.64,General stationery & supplies
17/03/2015,SAINSBURYS PETROL,43.72,Travel & Subsistence
17/03/2015,WWW.3MDIRECT.CO.UK,47.51,Conservation & Preservation Materials
17/03/2015,Amazon UK Retail,51.47,Furniture and equipment
17/03/2015,Stock - Books,71.44,Stock - Kew shop  (Bookshop)
17/03/2015,AVIS LONDON,79.97,Travel & Subsistence
17/03/2015,Stock - Books,126,Stock - Kew shop  (Bookshop)
17/03/2015,WWW.FIRST4MAGNETS.COM,164.22,Conservation & Preservation Materials
17/03/2015,WWW.THEMETALSTORE.CO.U,191.28,Conservation & Preservation Materials
17/03/2015,Stock - Books,221.18,Stock - Kew shop  (Bookshop)
17/03/2015,DAWSON BOOKS,385,Subscriptions
17/03/2015,Amazon UK Retail,392.99,Furniture and equipment
18/03/2015,CONVENIENCE CHEQUE FEE,2.5,Bank Charges
18/03/2015,BANNER BUSINESS SERVIC,2.94,General stationery & supplies
18/03/2015,BANNER BUSINESS SERVIC,4.5,General stationery & supplies
18/03/2015,LONDON OVERGROUND-,10,Travel & Subsistence
18/03/2015,BANNER BUSINESS SERVIC,10.98,General stationery & supplies
18/03/2015,BANNER BUSINESS SERVIC,11.75,General stationery & supplies
18/03/2015,LONDON OVERGROUND-,12,Travel & Subsistence
18/03/2015,BANNER BUSINESS SERVIC,14.83,General stationery & supplies
18/03/2015,BANNER BUSINESS SERVIC,18.98,General stationery & supplies
18/03/2015,OYSTER AUTOTOPUP,20,Travel & Subsistence
18/03/2015,TSGN,21.8,Travel & Subsistence
18/03/2015,BANNER BUSINESS SERVIC,22.15,General stationery & supplies
18/03/2015,Amazon UK Retail,24.99,General stationery & supplies
18/03/2015,Atlassian,35.18,Subscriptions
18/03/2015,BANNER BUSINESS SERVIC,37.44,General stationery & supplies
18/03/2015,Stock - Books,60,Stock - Kew shop  (Bookshop)
18/03/2015,BANNER BUSINESS SERVIC,69.89,General stationery & supplies
18/03/2015,BANNER BUSINESS SERVIC,74.88,General stationery & supplies
18/03/2015,BANNER BUSINESS SERVIC,78.12,General stationery & supplies
18/03/2015,FD SOLUTIONS LTD,122.4,Fast Copy/ External printing (ESD)
18/03/2015,WWW.NEOPOST.CO.UK,452.98,Post
19/03/2015,CONVENIENCE CHEQUE FEE,2.5,Bank Charges
19/03/2015,BANNER BUSINESS SERVIC,4.5,General stationery & supplies
19/03/2015,BANNER BUSINESS SERVIC,6.38,General stationery & supplies
19/03/2015,BANNER BUSINESS SERVIC,7.2,General stationery & supplies
19/03/2015,BANNER BUSINESS SERVIC,9.79,General stationery & supplies
19/03/2015,Amazon Svcs Europe SAR,9.99,General stationery & supplies
19/03/2015,HOOTSUITE MEDIA INC.,13.48,User Survey and Monitoring
19/03/2015,LONDON OVERGROUND-,24,Travel & Subsistence
19/03/2015,ASKEWS LIBRARY SER,24.45,Library
19/03/2015,LUL TICKET MACHINE,30,Travel & Subsistence
19/03/2015,TEXDOWNSSSTN,39.14,Travel & Subsistence
19/03/2015,AVIS LUTON,47.54,Vehicles Hire
19/03/2015,Stock - Books,60,Stock - Kew shop  (Bookshop)
19/03/2015,BANNER BUSINESS SERVIC,84.82,General stationery & supplies
19/03/2015,WWW.ALPLAS.COM,96.38,General stationery & supplies
19/03/2015,BANNER BUSINESS SERVIC,126.48,General stationery & supplies
19/03/2015,INTITUTEOFCONSERV,300,Conferences and Seminars: TNA Attending
19/03/2015,XMA LTD,378.94,Record Copyin: Store purchases
19/03/2015,UNIVERSITY OF LONDON,470,Conferences and Seminars: TNA Attending
20/03/2015,CONVENIENCE CHEQUE FEE,2.5,Bank Charges
20/03/2015,TNA DOCUMENTS ONLINE,3.3,General stationery & supplies
20/03/2015,TNA DOCUMENTS ONLINE,3.3,General stationery & supplies
20/03/2015,TNA DOCUMENTS ONLINE,3.3,General stationery & supplies
20/03/2015,TNA DOCUMENTS ONLINE,3.3,General stationery & supplies
20/03/2015,TNA DOCUMENTS ONLINE,3.3,General stationery & supplies
20/03/2015,ORANGE (A/PM/02),3.6,Telecommunications
20/03/2015,APPLE ONLINE STORE GBP,44.8,General stationery & supplies
20/03/2015,WWW.OFCOM.ORG.UK,75,Telecommunications
20/03/2015,Stock - Books,93,Stock - Kew shop  (Bookshop)
20/03/2015,SJASUPLIES,188.38,Health & Safety Services
21/03/2015,OYSTER AUTOTOPUP,20,Travel & Subsistence
21/03/2015,OYSTER AUTOTOPUP,20,Travel & Subsistence
21/03/2015,OYSTER AUTOTOPUP,40,Travel & Subsistence
22/03/2015,TSGN,17.5,Travel & Subsistence
22/03/2015,OYSTER AUTOTOPUP,20,Travel & Subsistence
22/03/2015,OYSTER AUTOTOPUP,20,Travel & Subsistence
22/03/2015,MEETINGZONE LTD,30.66,Travel & Subsistence
22/03/2015,OYSTER AUTOTOPUP,40,Travel & Subsistence
23/03/2015,CONVENIENCE CHEQUE FEE,7.74,Bank Charges
23/03/2015,CONVENIENCE CHEQUE FEE,11.71,Bank Charges
23/03/2015,WWW.MAPLIN.CO.UK,28.98,Conservation & Preservation Materials
23/03/2015,LUL TICKET MACHINE,30,Travel & Subsistence
23/03/2015,SELFSERVE TICKET,30,Travel & Subsistence
23/03/2015,FALKINER FINE PAPERS,51.56,Conservation & Preservation Materials
23/03/2015,SACKTRUCKSDIRECT.C,145.82,Advertising
23/03/2015,WWW.SECOL.CO.UK,221.7,Repository: stationery
23/03/2015,Stock - Books,387,Stock - Kew shop  (Bookshop)
24/03/2015,Amazon UK Retail,13.81,General stationery & supplies
24/03/2015,PEARL DRY CLEANERS,15,Cleaning
24/03/2015,PAYPAL *PIPEROLLSOC,15,Subscriptions
24/03/2015,PAYPAL *PIPEROLLSOC,15,Subscriptions
24/03/2015,TSGN,16.45,Travel & Subsistence
24/03/2015,PAYPAL *NUGGETSOLUT,20.3,Minor Software
24/03/2015,WWW.UKPOS.COM,25.51,General stationery & supplies
24/03/2015,PEARL DRY CLEANERS,29.5,Security Clothing
24/03/2015,WWW.SIGN-HOLDERS.CO.UK,41.16,Advertising
24/03/2015,LONDON MIDLAND TIC,82,Travel & Subsistence
24/03/2015,XMA LTD,95.52,General stationery & supplies
24/03/2015,XMA LTD,95.52,General stationery & supplies
24/03/2015,XMA LTD,95.52,General stationery & supplies
24/03/2015,WWW.NEOPOST.CO.UK,158.44,Post
24/03/2015,PRONTAPRINT,172.42,Fast Copy/ External printing (ESD)
24/03/2015,XMA LTD,203.1,General stationery & supplies
24/03/2015,Amazon UK Retail,279.92,IT Storage
24/03/2015,Amazon UK Retail,369,IT Storage
25/03/2015,BANNER BUSINESS SERVIC,0.58,General stationery & supplies
25/03/2015,BANNER BUSINESS SERVIC,1.08,General stationery & supplies
25/03/2015,BANNER BUSINESS SERVIC,1.08,General stationery & supplies
25/03/2015,BANNER BUSINESS SERVIC,1.14,General stationery & supplies
25/03/2015,BANNER BUSINESS SERVIC,1.61,General stationery & supplies
25/03/2015,BANNER BUSINESS SERVIC,1.99,General stationery & supplies
25/03/2015,BANNER BUSINESS SERVIC,3.12,General stationery & supplies
25/03/2015,BANNER BUSINESS SERVIC,3.12,General stationery & supplies
25/03/2015,BANNER BUSINESS SERVIC,4.61,General stationery & supplies
25/03/2015,BANNER BUSINESS SERVIC,5.65,General stationery & supplies
25/03/2015,Amazon Svcs Europe SAR,5.86,General stationery & supplies
25/03/2015,SELFSERVE TICKET,6,Travel & Subsistence
25/03/2015,BANNER BUSINESS SERVIC,6.44,General stationery & supplies
25/03/2015,BANNER BUSINESS SERVIC,7.24,General stationery & supplies
25/03/2015,BANNER BUSINESS SERVIC,7.61,General stationery & supplies
25/03/2015,BANNER BUSINESS SERVIC,7.78,General stationery & supplies
25/03/2015,BANNER BUSINESS SERVIC,8.64,General stationery & supplies
25/03/2015,Amazon Svcs Europe SAR,8.79,General stationery & supplies
25/03/2015,BANNER BUSINESS SERVIC,9.94,General stationery & supplies
25/03/2015,LONDON OVERGROUND-,12,Travel & Subsistence
25/03/2015,BANNER BUSINESS SERVIC,13.1,General stationery & supplies
25/03/2015,BANNER BUSINESS SERVIC,14.03,General stationery & supplies
25/03/2015,BANNER BUSINESS SERVIC,17.6,General stationery & supplies
25/03/2015,BANNER BUSINESS SERVIC,17.98,General stationery & supplies
25/03/2015,BANNER BUSINESS SERVIC,19.2,General stationery & supplies
25/03/2015,OYSTER AUTOTOPUP,20,Travel & Subsistence
25/03/2015,SELFSERVE TICKET,20,Travel & Subsistence
25/03/2015,BANNER BUSINESS SERVIC,20.74,General stationery & supplies
25/03/2015,BANNER BUSINESS SERVIC,21.56,General stationery & supplies
25/03/2015,TSGN,21.8,Travel & Subsistence
25/03/2015,BANNER BUSINESS SERVIC,24,General stationery & supplies
25/03/2015,LUL TICKET MACHINE,30,Travel & Subsistence
25/03/2015,BANNER BUSINESS SERVIC,30.53,General stationery & supplies
25/03/2015,MARKS & SPENCER,37.5,Hospitality
25/03/2015,Amazon UK Retail,37.7,General stationery & supplies
25/03/2015,Amazon Svcs Europe SAR,45.73,Library
25/03/2015,BANNER BUSINESS SERVIC,53.6,General stationery & supplies
25/03/2015,J S HOLDINGS,71.4,Repository: stationery
25/03/2015,UKOFFICEDIRECT.CO.,136.03,General stationery & supplies
25/03/2015,MONGODB  INC.,137.33,Subscriptions
25/03/2015,WWW.PLOT-IT.CO.UK,302.24,General stationery & supplies
26/03/2015,BANNER BUSINESS SERVIC,5.02,General stationery & supplies
26/03/2015,LUL TICKET OFFICE.,6.1,Travel & Subsistence
26/03/2015,LONDON & SOUTH EAS,6.1,Travel & Subsistence
26/03/2015,BANNER BUSINESS SERVIC,9.31,General stationery & supplies
26/03/2015,BANNER BUSINESS SERVIC,11.88,General stationery & supplies
26/03/2015,LONDON OVERGROUND-,12,Travel & Subsistence
26/03/2015,BANNER BUSINESS SERVIC,16.8,Fast Copy/ External printing (ESD)
26/03/2015,BANNER BUSINESS SERVIC,16.8,Fast Copy/ External printing (ESD)
26/03/2015,BANNER BUSINESS SERVIC,16.8,Fast Copy/ External printing (ESD)
26/03/2015,BANNER BUSINESS SERVIC,18.24,Fast Copy/ External printing (ESD)
26/03/2015,OYSTER AUTOTOPUP,20,Travel & Subsistence
26/03/2015,BANNER BUSINESS SERVIC,21.96,Fast Copy/ External printing (ESD)
26/03/2015,BANNER BUSINESS SERVIC,22.9,Fast Copy/ External printing (ESD)
26/03/2015,BANNER BUSINESS SERVIC,29.76,Fast Copy/ External printing (ESD)
26/03/2015,BANNER BUSINESS SERVIC,31.1,Fast Copy/ External printing (ESD)
26/03/2015,BANNER BUSINESS SERVIC,35.76,Fast Copy/ External printing (ESD)
26/03/2015,BANNER BUSINESS SERVIC,78.48,Fast Copy/ External printing (ESD)
26/03/2015,AVIS LONDON,103.66,Vehicles Hire
26/03/2015,BANNER BUSINESS SERVIC,196.74,Fast Copy/ External printing (ESD)
26/03/2015,BANNER BUSINESS SERVIC,312.24,Record Copyin: Store purchases
26/03/2015,BANNER BUSINESS SERVIC,317.7,Fast Copy/ External printing (ESD)
26/03/2015,PRESERVATION EQUIP,432,Repository: stationery
26/03/2015,C I L I P,447,Subscriptions
27/03/2015,CONVENIENCE CHEQUE FEE,2.5,Bank Charges
27/03/2015,ASKEWS LIBRARY SER,16.45,Library
27/03/2015,OYSTER AUTOTOPUP,20,Travel & Subsistence
27/03/2015,WWW.NEOPOST.CO.UK,30,Post
27/03/2015,XMA LTD,43.46,General stationery & supplies
27/03/2015,WWW.ARTS.AC.UK,50,Conferences and Seminars: TNA Attending
27/03/2015,BANNER BUSINESS SERVIC,84.82,General stationery & supplies
27/03/2015,Stock - Books,95,Stock - Kew shop  (Bookshop)
27/03/2015,AVIS LONDON,122.58,Travel & Subsistence
27/03/2015,TRACKERSHOP LTD,328.8,Document moves
28/03/2015,BANNER BUSINESS SERVIC,5.69,General stationery & supplies
28/03/2015,BANNER BUSINESS SERVIC,10.68,General stationery & supplies
28/03/2015,OYSTER AUTOTOPUP,20,Travel & Subsistence
28/03/2015,OYSTER AUTOTOPUP,20,Travel & Subsistence
28/03/2015,OYSTER AUTOTOPUP,20,Travel & Subsistence
28/03/2015,OYSTER AUTOTOPUP,20,Travel & Subsistence
29/03/2015,CHARGE.PREZI.COM,41.06,Minor Software
30/03/2015,LONDON OVERGROUND-,5.4,Travel & Subsistence
30/03/2015,GO METRO GARE DU MIDI,12.1,Travel & Subsistence
30/03/2015,FLICKR SUBSCRIPTION,17.39,Advertising
30/03/2015,WWW.CROFTMILL.CO.UK,17.95,Conservation & Preservation Materials
30/03/2015,AVIRA ANTIVIR,21.99,IT Maintenance & Support - Software
30/03/2015,AVIRA ANTIVIR,21.99,IT Maintenance & Support - Software
30/03/2015,WWW.ABAKHAN.CO.UK,22.09,Conservation & Preservation Materials
30/03/2015,SCREWFIX,22.47,Conservation & Preservation Materials
30/03/2015,WWW.BARPROFESSIONALTRA,130,Subscriptions
30/03/2015,ACCA,192,Training
31/03/2015,COLUMBUS TRAINLINE,2,Travel & Subsistence
31/03/2015,INSUREANDGO *19942883,14.41,Travel & Subsistence
31/03/2015,NOVOTEL BRUXELLES TOU,15.23,Travel & Subsistence
31/03/2015,OYSTER ISSUE WEB,25,Travel & Subsistence
31/03/2015,OYSTER ISSUE WEB,25,Travel & Subsistence
31/03/2015,OYSTER ISSUE WEB,25,Travel & Subsistence
31/03/2015,TRAINLINE.COM,31.57,Travel & Subsistence
31/03/2015,EB OUTREACH EUROPE-IN,47.27,Training
31/03/2015,TRANS MEDIA TECHNOLOGY,48,Transcription
31/03/2015,UNI CAM ESALES,50,Conferences and Seminars: TNA Attending
31/03/2015,LONDON MIDLAND TIC,82,Travel & Subsistence
31/03/2015,TSG,86.4,Minor Software
01/04/2015,MOTHERCARE WORLD,4,General stationery & supplies
01/04/2015,MARKS & SPENCER,4.67,Hospitality
01/04/2015,OYSTER AUTOTOPUP,20,Travel & Subsistence
01/04/2015,TSGN,21.8,Travel & Subsistence
01/04/2015,MSFT   *AZUREMARKET,39.3,Subscriptions
01/04/2015,WWW.ARMA.AC.UK,82,Professional staff subscriptions
01/04/2015,AVANQUEST PUB LTD,132.72,Stock - Kew shop  (Bookshop)
01/04/2015,WWW.PPLUK.COM,155.36,Subscriptions
01/04/2015,WWW.HALFMOONBAY.CO.UK,155.59,Stock - Kew shop  (Bookshop)
01/04/2015,XMA LTD,300.53,General stationery & supplies
01/04/2015,POSTCRIPT SANDPIPE,502.61,Stock - Kew shop  (Bookshop)
02/04/2015,BANNER BUSINESS SERVIC,3.19,General stationery & supplies
02/04/2015,BANNER BUSINESS SERVIC,4.39,General stationery & supplies
02/04/2015,BANNER BUSINESS SERVIC,17.87,General stationery & supplies
02/04/2015,OYSTER AUTOTOPUP,20,Travel & Subsistence
02/04/2015,TSGN,21.8,Travel & Subsistence
02/04/2015,EB OUTREACH EUROPE-IN,23.96,Training
02/04/2015,WWW.CHILVERS.CO.UK,36.6,Fast Copy/ External printing (ESD)
02/04/2015,BANNER BUSINESS SERVIC,37.25,General stationery & supplies
02/04/2015,BANNER BUSINESS SERVIC,37.25,General stationery & supplies
02/04/2015,OYSTER AUTOTOPUP,40,Travel & Subsistence
02/04/2015,PAYPAL *TAMPER EVID,82.8,General stationery & supplies
03/04/2015,OYSTER AUTOTOPUP,20,Travel & Subsistence
03/04/2015,OYSTER AUTOTOPUP,20,Travel & Subsistence
03/04/2015,BT BILL PAYMENT 3,48.18,Telecommunications
07/04/2015,RINGGO,7.4,Travel & Subsistence
07/04/2015,BADGEMASTER LTD,29.88,General stationery & supplies
07/04/2015,THE METAL STORE,45,Conservation & Preservation Materials
07/04/2015,LONDON MIDLAND TIC,164,Travel & Subsistence
07/04/2015,WWW.THIRSTYCUPS.COM,337.08,General stationery & supplies
08/04/2015,PEARL DRY CLEANERS,15,Cleaning
08/04/2015,PEARL DRY CLEANERS,15,Cleaning
08/04/2015,TSGN,21.8,Travel & Subsistence
08/04/2015,NCP BIRMINGHAM AIRPORT,53.99,Travel & Subsistence
09/04/2015,CONVENIENCE CHEQUE FEE,2.5,Bank Charges
09/04/2015,CONVENIENCE CHEQUE FEE,2.52,Bank Charges
09/04/2015,CONVENIENCE CHEQUE FEE,8.39,Bank Charges
09/04/2015,CONVENIENCE CHEQUE FEE,10.98,Bank Charges
09/04/2015,AVIRA ANTIVIR,28.99,Minor Software
09/04/2015,AVIRA ANTIVIR,28.99,Minor Software
09/04/2015,LUL TICKET MACHINE,30,Travel & Subsistence
09/04/2015,Stock - Books,35.7,Stock - Kew shop  (Bookshop)
09/04/2015,Stock - Books,126,Stock - Kew shop  (Bookshop)
09/04/2015,Stock - Books,419.4,Stock - Kew shop  (Bookshop)
11/06/2015,LUL TICKET OFFICE.,6.6,Travel & Subsistence
12/06/2015,SELFSERVE TICKET,7,Travel & Subsistence
12/06/2015,OYSTER AUTOTOPUP,20,Travel & Subsistence
12/06/2015,OYSTER AUTOTOPUP,20,Travel & Subsistence
12/06/2015,SELFSERVE TICKET,20,Travel & Subsistence
12/06/2015,SCREWFIX,23.39,Conservation & Preservation Materials
12/06/2015,RIVERSIDE HOTEL,24.56,Travel & Subsistence
12/06/2015,Amazon UK Retail,34.36,Record Copyin: Store purchases
12/06/2015,WWW.JOHNLEWIS.COM,45.15,General stationery & supplies
13/06/2015,OYSTER AUTOTOPUP,40,Travel & Subsistence
14/06/2015,Amazon UK Retail,16.75,Library
14/06/2015,Amazon UK Retail,18.99,Library
14/06/2015,OYSTER BUS AUTOTOP,20,Travel & Subsistence
15/06/2015,M6 TOLL,5.5,Travel & Subsistence
15/06/2015,PRESENCE,7.85,Conservation & Preservation Materials
15/06/2015,LUL TICKET MACHINE,30,Travel & Subsistence
15/06/2015,THE RISING SUN,41.3,Travel & Subsistence
15/06/2015,Amazon UK Marketplace,53.4,Repository: stationery
15/06/2015,WWW.THIRSTYCUPS.COM,53.88,General stationery & supplies
15/06/2015,WWW.SECOL.CO.UK,221.7,Repository: stationery
15/06/2015,ABM PUBLISHING,245.7,Stock - Kew shop  (Bookshop)
16/06/2015,M6 TOLL,5.5,Travel & Subsistence
16/06/2015,CONVENIENCE CHEQUE FEE,7.52,Bank Charges
16/06/2015,Amazon Svcs Europe SAR,15.8,Record Copyin: Store purchases
16/06/2015,Amazon UK Retail,20.39,General stationery & supplies
16/06/2015,BP MOTO HESTON EAST,20.75,Travel & Subsistence
16/06/2015,TEX GEM TARPORLEY,31.54,Travel & Subsistence
16/06/2015,OYSTER RENEW WEB,50,Travel & Subsistence
16/06/2015,CARTRIDGESAVE.CO.UK,68.1,Record Copyin: Store purchases
16/06/2015,WWW.ARMA.AC.UK,132,Training
16/06/2015,WWW.ARMA.AC.UK,132,Training
16/06/2015,AVIS LONDON,134.39,Travel & Subsistence
16/06/2015,ACT*Electa Enterprises,299,Conferences and Seminars: TNA Attending
16/06/2015,Stock - Books,375.8,Stock - Kew shop  (Bookshop)
16/06/2015,WWW.ROYALMAIL.COM,447,Post
17/06/2015,CONVENIENCE CHEQUE FEE,2.66,Bank Charges
17/06/2015,SELFSERVE TICKET,4,Travel & Subsistence
17/06/2015,LUL TICKET OFFICE.,6.6,Travel & Subsistence
17/06/2015,RINGGO,7.9,Travel & Subsistence
17/06/2015,Amazon UK Retail,10,Fees & Honorariums
17/06/2015,Amazon UK Retail,10,Fees & Honorariums
17/06/2015,Amazon UK Retail,10,Fees & Honorariums
17/06/2015,Amazon UK Retail,10,Fees & Honorariums
17/06/2015,Amazon Svcs Europe SAR,17.31,General stationery & supplies
17/06/2015,OYSTER AUTOTOPUP,20,Travel & Subsistence
17/06/2015,THE CHILTERN RLYWY,32.1,Travel & Subsistence
17/06/2015,Amazon UK Retail,44.38,Health & Safety Services
17/06/2015,TNA BOOKSHOP,46,General stationery & supplies
17/06/2015,MARKS & SPENCER,47.15,Hospitality
17/06/2015,TNA FLOATING EVENTS,51.99,Library
17/06/2015,Amazon UK Retail,66,Library
17/06/2015,MUSEUMSETC LTD,75,Library
17/06/2015,VIRGIN TRAVEL INSUR,108.85,Travel & Subsistence
17/06/2015,Stock - Books,132.75,Stock - Kew shop  (Bookshop)
18/06/2015,ONE4SIX PLATFORM 3,4,Travel & Subsistence
18/06/2015,LUL TICKET OFFICE.,6.6,Travel & Subsistence
18/06/2015,RINGGO,7.9,Travel & Subsistence
18/06/2015,LUL TICKET MACHINE,10,Travel & Subsistence
18/06/2015,BADGEMASTER LTD,14.81,Security Clothing
18/06/2015,OYSTER AUTOTOPUP,20,Travel & Subsistence
18/06/2015,Amazon UK Marketplace,23.32,Conservation & Preservation Materials
18/06/2015,THE CHILTERN RLYWY,32.1,Travel & Subsistence
18/06/2015,Amazon UK Retail,35.28,General stationery & supplies
18/06/2015,BRITISH LIBRARY BKSHOP,40.5,General stationery & supplies
18/06/2015,WWW.SLINGSBY.COM,76.8,Furniture and equipment
18/06/2015,PAYPAL *DIGVENTURES,85,Training
18/06/2015,WWW.STORE.READING.AC.U,200,Conferences and Seminars: TNA Attending
19/06/2015,CONVENIENCE CHEQUE FEE,2.5,Bank Charges
19/06/2015,CONVENIENCE CHEQUE FEE,2.5,Bank Charges
19/06/2015,LUL TICKET MACHINE,5,Travel & Subsistence
19/06/2015,CONVENIENCE CHEQUE FEE,6.08,Bank Charges
19/06/2015,CONVENIENCE CHEQUE FEE,11.8,Bank Charges
19/06/2015,GITHUB.COM  61N1W,16.26,Subscriptions
19/06/2015,OYSTER AUTOTOPUP,20,Travel & Subsistence
19/06/2015,OYSTER AUTOTOPUP,20,Travel & Subsistence
19/06/2015,SP SERVICES UK LTD,26.64,Health & Safety Services
19/06/2015,SJASUPLIES,29.2,Health & Safety Services
19/06/2015,ALEXANDRA WEBSITE,40.78,Repository: stationery
19/06/2015,ALEXANDRA WEBSITE,40.78,Repository: stationery
19/06/2015,Stock - Books,63.51,Stock - Kew shop  (Bookshop)
19/06/2015,Stock - Books,120,Stock - Kew shop  (Bookshop)
19/06/2015,Stock - Books,304.2,Stock - Kew shop  (Bookshop)
20/06/2015,OYSTER AUTOTOPUP,20,Travel & Subsistence
20/06/2015,OYSTER AUTOTOPUP,20,Travel & Subsistence
20/06/2015,OYSTER AUTOTOPUP,20,Travel & Subsistence
20/06/2015,OYSTER AUTOTOPUP,20,Travel & Subsistence
20/06/2015,OYSTER AUTOTOPUP,20,Travel & Subsistence
21/06/2015,PAYPAL *INSTANTDISP,2,General stationery & supplies
21/06/2015,WWW.MISCO.CO.UK,5.99,Furniture and equipment
21/06/2015,WWW.MISCO.CO.UK,203.97,Furniture and equipment
22/06/2015,LOROL - KEW GARDENS,5.4,Travel & Subsistence
22/06/2015,SELFSERVE TICKET,20,Travel & Subsistence
22/06/2015,SJASUPLIES,29.2,Health & Safety Services
22/06/2015,DAWSON BOOKS,83.13,Subscriptions
23/06/2015,COLUMBUS TRAINLINE,2,Travel & Subsistence
23/06/2015,CONVENIENCE CHEQUE FEE,4.09,Bank Charges
23/06/2015,BP BULLSMOOR LANE F/STN,28.52,Travel & Subsistence
23/06/2015,V.BRITAINSHOP GB,33.5,Travel & Subsistence
23/06/2015,TRAINLINE.COM,39.88,Travel & Subsistence
23/06/2015,AVIS ENFIELD,54.84,Vehicles Hire
23/06/2015,WWW.CROMWELL.CO.UK,62.86,Repository: stationery
23/06/2015,Stock - Books,204.62,Stock - Kew shop  (Bookshop)
23/06/2015,XMA LTD,311.4,General stationery & supplies
24/06/2015,FIRST,9.53,Travel & Subsistence
24/06/2015,SELFSERVE TICKET,20,Travel & Subsistence
24/06/2015,OYSTER AUTOTOPUP,20,Travel & Subsistence
24/06/2015,WWW.CITIESREVEALED.COM,120,Conferences and Seminars: TNA Attending
24/06/2015,EUROSTAR INTERNET,163,Travel & Subsistence
24/06/2015,HI EXPRESS EARLS C,180,Travel & Subsistence
24/06/2015,MONGODB  INC.,236,Subscriptions
24/06/2015,XMA LTD,378.94,Record Copyin: Store purchases
25/06/2015,CONVENIENCE CHEQUE FEE,2.5,Bank Charges
25/06/2015,TNA BOOKSHOP,20,Library
25/06/2015,Amazon UK Retail,39.54,General stationery & supplies
25/06/2015,Stock - Books,80,Stock - Kew shop  (Bookshop)
25/06/2015,PAYPAL *DIGITALLEAR,98.03,Training
25/06/2015,ST JOHN AMBULANCE,348,Health & Safety Services
26/06/2015,Amazon UK Marketplace,5.56,Conservation & Preservation Materials
26/06/2015,SELFSERVE TICKET,30,Travel & Subsistence
26/06/2015,ASKEWS LIBRARY SER,93.38,Library
26/06/2015,EDMUNDSON ELECTRICAL L,109.13,Repairs and Maintenance - Planned
26/06/2015,XMA LTD,150.26,General stationery & supplies
27/06/2015,OYSTER AUTOTOPUP,20,Travel & Subsistence
27/06/2015,OYSTER AUTOTOPUP,40,Travel & Subsistence
27/06/2015,OYSTER AUTOTOPUP,40,Travel & Subsistence
27/06/2015,SAINSBURY S S/MKT,43.47,General stationery & supplies
28/06/2015,OYSTER AUTOTOPUP,20,Travel & Subsistence
29/06/2015,VIKING,3.48,Conservation & Preservation Materials
29/06/2015,VIKING,10.55,Conservation & Preservation Materials
29/06/2015,FRIEBE LUFTFAHRT-BEDAR,13.68,Conservation & Preservation Materials
29/06/2015,WWW.FISHER.CO.UK,18.36,Conservation & Preservation Materials
29/06/2015,NEW SOUTHERN RAILW,20,Travel & Subsistence
29/06/2015,WWW.FLYBE.COBVRHY6,30,Travel & Subsistence
29/06/2015,EB DISCOVERING COLLEC,38.3,Travel & Subsistence
29/06/2015,WWW.IWEB-HOSTING.CO.UK,38.4,Subscriptions
30/06/2015,CONVENIENCE CHEQUE FEE,5.94,Bank Charges
30/06/2015,LUL TICKET OFFICE.,6.1,Travel & Subsistence
30/06/2015,DISCLOSURE SCOT,25,Recruitment
30/06/2015,Stock - Books,297,Stock - Kew shop  (Bookshop)
30/06/2015,WWW.THIRSTYCUPS.COM,337.08,General stationery & supplies
30/06/2015,SKR*AbeBooks.uk 3H5IWM,500,Library
01/07/2015,CONVENIENCE CHEQUE FEE,2.5,Bank Charges
01/07/2015,M6 TOLL,5.5,Travel & Subsistence
01/07/2015,M6 TOLL,5.5,Travel & Subsistence
01/07/2015,LUL TICKET OFFICE.,6.1,Travel & Subsistence
01/07/2015,CASA ITALIA,14.8,Travel & Subsistence
01/07/2015,LUL TICKET MACHINE,20,Travel & Subsistence
01/07/2015,OYSTER AUTOTOPUP,20,Travel & Subsistence
01/07/2015,PRESERVATION EQUIP,47.59,Conservation & Preservation Materials
01/07/2015,Stock - Books,64.4,Stock - Kew shop  (Bookshop)
01/07/2015,CIPD INTEGRA,148,Professional staff subscriptions
01/07/2015,CIPD INTEGRA,148,Professional staff subscriptions
01/07/2015,CIPD INTEGRA,148,Professional staff subscriptions
01/07/2015,ADAGIO LIVERPOOL CITY,150,Travel & Subsistence
01/07/2015,CIPD INTEGRA,168,Professional staff subscriptions
01/07/2015,Europcar.com/uk,228.67,Vehicles Hire
02/07/2015,RATP,2.64,Travel & Subsistence
02/07/2015,ARGOS RETAIL GROUP,19.93,Health & Safety Services
02/07/2015,OYSTER BUS AUTOTOP,20,Travel & Subsistence
02/07/2015,SELFSERVE TICKET,20,Travel & Subsistence
02/07/2015,EB DISCOVERING COLLEC,38.3,Travel & Subsistence
02/07/2015,EEF WOODLAND GRANGE,46.6,Travel & Subsistence
02/07/2015,BRENTFORD SERVICE,47.81,Travel & Subsistence
02/07/2015,BUNZL CLEANING & HYGIE,54.48,Cleaning
02/07/2015,AVIS LONDON,61.97,Travel & Subsistence
02/07/2015,WWW.NAVAL-MILITARY-PRE,104.4,Stock - Kew shop  (Bookshop)
02/07/2015,WWW.HALFMOONBAY.CO.UK,123.91,Stock - Kew shop  (Bookshop)
02/07/2015,WWW.NAVAL-MILITARY-PRE,126.9,Stock - Kew shop  (Bookshop)
02/07/2015,POMEGRANATE EUROPE,163.53,Stock - Kew shop  (Bookshop)
02/07/2015,GARDNERS BOOKS LTD,188.03,Stock - Kew shop  (Bookshop)
02/07/2015,EASINGWORLD TOWN HALL,309.7,Stock - Kew shop  (Bookshop)
02/07/2015,WESTAIR REPRODUCTIONS,395.18,Stock - Kew shop  (Bookshop)
02/07/2015,TRACKS PUBLISHING,456.41,Stock - Kew shop  (Bookshop)
03/07/2015,TNA BOOKSHOP,5.48,General stationery & supplies
03/07/2015,OYSTER AUTOTOPUP,20,Travel & Subsistence
03/07/2015,ART ANGELS PUBLISHING,239.04,Stock - Kew shop  (Bookshop)
04/07/2015,OYSTER AUTOTOPUP,20,Travel & Subsistence
06/07/2015,BT BILL PAYMENT 3,53.75,Telecommunications
06/07/2015,LONDON MIDLAND TIC,82,Travel & Subsistence
06/07/2015,XMA LTD,94.68,Record Copyin: Store purchases
07/07/2015,LONDON OVERGROUND-,20,Travel & Subsistence
07/07/2015,TNA BOOKSHOP,28,Library
07/07/2015,ARCHETYPE,28,Stock - Kew shop  (Bookshop)
07/07/2015,BONHAMS,140,Subscriptions
07/07/2015,THE IMC GROUP LTD,222.2,Repository: stationery
08/07/2015,RINGGO,7.9,Travel & Subsistence
08/07/2015,NANDOS SWANSEA,12.6,Travel & Subsistence
08/07/2015,Amazon Svcs Europe SAR,14,General stationery & supplies
08/07/2015,Amazon UK Marketplace,18.79,Library
08/07/2015,PARK INN CARDIFF CENTR,19.75,Travel & Subsistence
08/07/2015,OYSTER AUTOTOPUP,20,Travel & Subsistence
08/07/2015,THE CHILTERN RLYWY,32.1,Travel & Subsistence
08/07/2015,THE GREYHOUND,127.05,Travel & Subsistence
08/07/2015,THE PROUD ARCHIVIST,150,Training
08/07/2015,CP Reykjavik ehf 7,268.22,Conferences and Seminars: TNA Attending
09/07/2015,WWW.VIKING-DIRECT.CO.U,3.48,Conservation & Preservation Materials
09/07/2015,CONVENIENCE CHEQUE FEE,5.99,Bank Charges
09/07/2015,Amazon UK Marketplace,10.76,Conservation & Preservation Materials
09/07/2015,Amazon UK Marketplace,14.34,Conservation & Preservation Materials
09/07/2015,WWW.VIKING-DIRECT.CO.U,14.39,Conservation & Preservation Materials
09/07/2015,DHL EXPRESS(UK)LTD,16,Courier
09/07/2015,EB DISCOVERING COLLEC,19.48,Travel & Subsistence
09/07/2015,OYSTER AUTOTOPUP,20,Travel & Subsistence
09/07/2015,LAKELAND.LIMITED,29.27,Conservation & Preservation Materials
09/07/2015,EB DISCOVERING COLLEC,38.3,Travel & Subsistence
09/07/2015,Amazon UK Marketplace,46.3,Library
09/07/2015,WWW.REDOAKDIRECT.C,50.91,Conservation & Preservation Materials
09/07/2015,Stock - Books,299.5,Stock - Kew shop  (Bookshop)
10/07/2015,Amazon UK Marketplace,3.95,Conservation & Preservation Materials
10/07/2015,TFGM METROLINK,7,Travel & Subsistence
10/07/2015,Amazon UK Retail,16.35,Library
10/07/2015,Amazon UK Marketplace,19.75,Conservation & Preservation Materials
10/07/2015,Amazon Svcs Europe SAR,22.79,Library
10/07/2015,BAGDEN HALL HOTEL,23.9,Travel & Subsistence
10/07/2015,Amazon UK Retail,26.99,Library
10/07/2015,LONDON OVERGROUND-,30,Travel & Subsistence
10/07/2015,ASKEWS LIBRARY SER,93.31,Library
10/07/2015,REALLY USEFUL PROD,319.31,Record Copyin: Store purchases
11/07/2015,OYSTER AUTOTOPUP,20,Travel & Subsistence
12/07/2015,WESTEND PETROL STATION,18.25,Travel & Subsistence
12/07/2015,OYSTER AUTOTOPUP,20,Travel & Subsistence
12/07/2015,OYSTER AUTOTOPUP,20,Travel & Subsistence
12/07/2015,SHELL CHSTFLD STH,46.2,Travel & Subsistence
12/07/2015,Amazon UK Retail,66.5,Library
13/07/2015,M6 TOLL,5.5,Travel & Subsistence
13/07/2015,CONVENIENCE CHEQUE FEE,6.03,Bank Charges
13/07/2015,BADGEMASTER LTD,17.69,General stationery & supplies
13/07/2015,NEW SOUTHERN RAILW,20,Travel & Subsistence
13/07/2015,SCREWFIX DIRECT,23.37,Conservation & Preservation Materials
13/07/2015,NATIONAL MARITIME MUSE,35,Conferences and Seminars: TNA Attending
13/07/2015,BREWERS FAYRE 40521570,43.5,Travel & Subsistence
13/07/2015,WWW.THEBARCODEWAREHOUS,91.37,Shop Non-Stock Items
13/07/2015,WWW.SIGN-HOLDERS.CO.UK,96.6,Furniture and equipment
13/07/2015,WWW.ENTRY.BAFTA.ORG,150,Conferences and Seminars: TNA Attending
13/07/2015,PRESERVATION EQUIP,165,Conservation & Preservation Materials
13/07/2015,Stock - Books,301.3,Stock - Kew shop  (Bookshop)
14/07/2015,Amazon UK Marketplace,1.35,Conservation & Preservation Materials
14/07/2015,CONVENIENCE CHEQUE FEE,4,Bank Charges
14/07/2015,M6 TOLL,5.5,Travel & Subsistence
14/07/2015,SELFSERVE TICKET,7,Travel & Subsistence
14/07/2015,PREMIER INN44018350,12.5,Travel & Subsistence
14/07/2015,LONDON OVERGROUND-,20,Travel & Subsistence
14/07/2015,OYSTER BUS AUTOSET,20,Travel & Subsistence
14/07/2015,BRENTFORD SERVICE,39.5,Travel & Subsistence
14/07/2015,AVIS LONDON,61.97,Travel & Subsistence
14/07/2015,WWW.ARKWILDLIFE.CO.UK,69.8,Repairs and Maintenance - Planned
14/07/2015,FGW ON TRAIN SALES,82,Travel & Subsistence
14/07/2015,SNA MANUFACTURING LTD,103.73,General stationery & supplies
14/07/2015,SNA MANUFACTURING LTD,104.64,General stationery & supplies
14/07/2015,Stock - Books,200,Stock - Kew shop  (Bookshop)
15/07/2015,LUL TICKET OFFICE.,6.6,Travel & Subsistence
15/07/2015,CONVENIENCE CHEQUE FEE,7.08,Bank Charges
15/07/2015,SELFSERVE TICKET,9,Travel & Subsistence
15/07/2015,LONDON OVERGROUND-,20,Travel & Subsistence
15/07/2015,BEEFEATER40018345,21.73,Travel & Subsistence
15/07/2015,DHL EXPRESS(UK)LTD,33.17,Courier
15/07/2015,OYSTER AUTOTOPUP,40,Travel & Subsistence
15/07/2015,SKR*AbeBooks.uk 3HEJFY,78.9,Library
15/07/2015,WWW.3MDIRECT.CO.UK,81.22,Conservation & Preservation Materials
15/07/2015,WWW.MPDHOOKANDLOOP.COM,92.92,Conservation & Preservation Materials
15/07/2015,Stock - Books,353.75,Stock - Kew shop  (Bookshop)
15/07/2015,ST JOHN AMBULANCE,450,Health & Safety Services
16/07/2015,CONVENIENCE CHEQUE FEE,2.5,Bank Charges
16/07/2015,ROBERT-SCOTT.CO.UK,3.47,Conservation & Preservation Materials
16/07/2015,LIGHT/MINI IN THE BOX,3.82,Conservation & Preservation Materials
16/07/2015,GENERAL LAMPS LTD,7.32,Conservation & Preservation Materials
16/07/2015,WWW.LSERETAILGROUP.CO.,20,Conservation & Preservation Materials
16/07/2015,OYSTER AUTOTOPUP,20,Travel & Subsistence
16/07/2015,OYSTER AUTOTOPUP,20,Travel & Subsistence
16/07/2015,OYSTER AUTOTOPUP,20,Travel & Subsistence
16/07/2015,Stock - Books,22,Stock - Kew shop  (Bookshop)
16/07/2015,PLAYSTATIONNETWORK,30,General stationery & supplies
16/07/2015,PLAYSTATIONNETWORK,30,General stationery & supplies
16/07/2015,PLAYSTATIONNETWORK,30,General stationery & supplies
16/07/2015,PLAYSTATIONNETWORK,30,General stationery & supplies
16/07/2015,RONTEC BULLSMOOR,45.07,Travel & Subsistence
16/07/2015,CALICO UK - V/T,48,IT Maintenance & Support - Software
16/07/2015,CALICO UK - V/T,48,IT Maintenance & Support - Software
16/07/2015,PLAYSTATIONNETWORK,50,General stationery & supplies
16/07/2015,PLAYSTATIONNETWORK,50,General stationery & supplies
16/07/2015,AVIS ENFIELD,110.27,Vehicles Hire
16/07/2015,CALICO UK - V/T,286.8,IT Maintenance & Support - Software
17/07/2015,Amazon UK Marketplace,2.92,General stationery & supplies
17/07/2015,OYSTER AUTOTOPUP,20,Travel & Subsistence
17/07/2015,SELFSERVE TICKET,20,Travel & Subsistence
17/07/2015,PAYPAL *ADGLOBALTRA,41.99,Stock - Kew shop  (Bookshop)
17/07/2015,ROTHERSTHORPE NORTH CONNE,53.06,Travel & Subsistence
17/07/2015,PRESERVATION EQUIP,79.62,Conservation & Preservation Materials
17/07/2015,Amazon UK Retail,85,Library
17/07/2015,AVIS COVENTRY,91.1,Vehicles Hire
19/07/2015,GITHUB.COM  61N1W,16.52,Subscriptions
19/07/2015,OYSTER AUTOTOPUP,20,Travel & Subsistence
20/07/2015,ORANGE (A/PM/01),11.92,Telecommunications
20/07/2015,Amazon UK Marketplace,17.02,General stationery & supplies
20/07/2015,Amazon UK Marketplace,25.8,Conservation & Preservation Materials
20/07/2015,LONDON MIDLAND TIC,82,Travel & Subsistence
20/07/2015,LONDON MIDLAND TIC,82,Travel & Subsistence
20/07/2015,PAYPAL *DIGITALLEAR,98.03,Training
20/07/2015,GARDNERS BOOKS LTD,296.17,Stock - Kew shop  (Bookshop)
21/07/2015,Amazon UK Marketplace,1.89,General stationery & supplies
21/07/2015,Amazon UK Marketplace,8.06,General stationery & supplies
21/07/2015,Amazon UK Marketplace,16.69,Record Copyin: Store purchases
21/07/2015,FGW TICKET OFFICE,30.3,Travel & Subsistence
21/07/2015,XMA LTD,31.27,General stationery & supplies
21/07/2015,FGW TICKET OFFICE,60.6,Travel & Subsistence
21/07/2015,PAYPAL *ON THE EDGE,79.43,Conservation & Preservation Materials
21/07/2015,RANDOLPH HOTEL,91.7,Travel & Subsistence
22/07/2015,Amazon UK Marketplace,6.8,General stationery & supplies
22/07/2015,OYSTER AUTOTOPUP,20,Travel & Subsistence
22/07/2015,OYSTER AUTOTOPUP,20,Travel & Subsistence
22/07/2015,OYSTER AUTOTOPUP,20,Travel & Subsistence
22/07/2015,SELFSERVE TICKET,20,Travel & Subsistence
22/07/2015,TNA BOOKSHOP,48,Library
22/07/2015,Amazon Svcs Europe SAR,53.79,Library
22/07/2015,Amazon Svcs Europe SAR,57.95,Furniture and equipment
22/07/2015,SKR*AbeBooks.uk 3HJ56X,76.42,Library
22/07/2015,CONSERVATION BY DE,119.76,Conservation & Preservation Materials
23/07/2015,MARKS & SPENCER,1.4,General stationery & supplies
23/07/2015,ARRIVA TRAINS WALE,3.1,Travel & Subsistence
23/07/2015,BOOTS THE CHEMISTS,8.99,General stationery & supplies
23/07/2015,Amazon UK Marketplace,18.99,Minor IT
23/07/2015,MERCURE NORTON GRANGE HOT,75,Travel & Subsistence
23/07/2015,MERCURE NORTON GRANGE HOT,75,Travel & Subsistence
23/07/2015,CHEMPLEX INDUSTRIES,107.7,Conservation & Preservation Materials
23/07/2015,ASKEWS LIBRARY SER,165.8,Library
24/07/2015,Amazon UK Marketplace,12.31,General stationery & supplies
24/07/2015,OYSTER AUTOTOPUP,20,Travel & Subsistence
24/07/2015,OYSTER AUTOTOPUP,20,Travel & Subsistence
24/07/2015,OYSTER AUTOTOPUP,20,Travel & Subsistence
24/07/2015,LUL TICKET MACHINE,30,Travel & Subsistence
24/07/2015,OYSTER AUTOTOPUP,40,Travel & Subsistence
24/07/2015,ASKEWS LIBRARY SER,60.5,Library
24/07/2015,WWW.THESAFESHOP.CO,87.54,Repository: stationery
24/07/2015,ASKEWS LIBRARY SER,105.27,Library
24/07/2015,MONGODB  INC.,260.78,Subscriptions
25/07/2015,OYSTER AUTOTOPUP,20,Travel & Subsistence
27/07/2015,CONVENIENCE CHEQUE FEE,6.84,Bank Charges
27/07/2015,CONVENIENCE CHEQUE FEE,7.16,Bank Charges
27/07/2015,HACKNEY DOWNS SST,20,Travel & Subsistence
27/07/2015,UPS LTD SHIPPING FEES,28.84,Conservation & Preservation Materials
27/07/2015,WWW.PLATFORM39.COM,179,Training
27/07/2015,WWW.SECOL.CO.UK,179.76,Repository: stationery
27/07/2015,B I F M,187,Conferences and Seminars: TNA Attending
27/07/2015,Stock - Books,342.2,Stock - Kew shop  (Bookshop)
27/07/2015,Stock - Books,358.03,Stock - Kew shop  (Bookshop)
28/07/2015,Amazon UK Marketplace,26.39,General stationery & supplies
28/07/2015,CRAYFORD TUBES LTD,131.29,Record Copyin: Store purchases
28/07/2015,SKILLS MATTER LTD,354,Conferences and Seminars: TNA Attending
29/07/2015,WWW.FISHER.CO.UK,6.37,Conservation & Preservation Materials
29/07/2015,NEW SOUTHERN RAILW,20,Travel & Subsistence
29/07/2015,SELFSERVE TICKET,20,Travel & Subsistence
29/07/2015,WWW.BRUNELENGRAVING.CO,20.1,General stationery & supplies
29/07/2015,CO-OP GROUP PETROL,26.05,Travel & Subsistence
29/07/2015,CRAYFORD TUBES LTD,28.21,Record Copyin: Store purchases
29/07/2015,RIVERSIDE HOTEL,34.74,Travel & Subsistence
29/07/2015,WWW.IWEB-HOSTING.CO.UK,38.4,Subscriptions
29/07/2015,RIVERSIDE HOTEL,40.79,Travel & Subsistence
29/07/2015,EAST MIDLANDS TRAI,56.25,Travel & Subsistence
29/07/2015,AVIS STOKE ON TRENT,102.91,Vehicles Hire
30/07/2015,OYSTER BUS AUTOTOP,20,Travel & Subsistence
30/07/2015,OYSTER AUTOTOPUP,20,Travel & Subsistence
30/07/2015,Amazon UK Retail,22.96,General stationery & supplies
30/07/2015,PAYPAL *NORFOLKDEVE,25,Conferences and Seminars: TNA Attending
30/07/2015,SAINSBURYS S/MKTS,41,Wellbeing
30/07/2015,SAINSBURYS S/MKTS,41,Wellbeing
30/07/2015,SNA MANUFACTURING LTD,44.02,General stationery & supplies
30/07/2015,LONDON MIDLAND TIC,82,Travel & Subsistence
30/07/2015,CIPD INTEGRA,148,Professional staff subscriptions
30/07/2015,CIPD INTEGRA,148,Professional staff subscriptions
31/07/2015,CONVENIENCE CHEQUE FEE,4.61,Bank Charges
31/07/2015,BEST WESTERN DELPHI,18.89,Travel & Subsistence
31/07/2015,OYSTER AUTOTOPUP,20,Travel & Subsistence
31/07/2015,LONDON OVERGROUND-,20,Travel & Subsistence
31/07/2015,APPLE ONLINE STORE GBP,25,Minor IT
31/07/2015,UNIVERSITY OF NORT,75,Conferences and Seminars: TNA Attending
31/07/2015,Stock - Books,230.69,Stock - Kew shop  (Bookshop)
01/08/2015,OYSTER BUS AUTOTOP,20,Travel & Subsistence
01/08/2015,OYSTER AUTOTOPUP,20,Travel & Subsistence
02/08/2015,Amazon UK Marketplace,4.78,General stationery & supplies
02/08/2015,LUL TICKET MACHINE,20,Travel & Subsistence
03/08/2015,CONVENIENCE CHEQUE FEE,2.5,Bank Charges
03/08/2015,Stock - Books,12.5,Stock - Kew shop  (Bookshop)
03/08/2015,WWW.PURELYPAPER.CO.UK,90.23,Record Copyin: Store purchases
04/08/2015,ABEBOOKS.COM,4.01,Library
04/08/2015,Amazon Svcs Europe SAR,9.25,General stationery & supplies
04/08/2015,SELFSERVE TICKET,20,Travel & Subsistence
04/08/2015,Amazon UK Retail,20.93,General stationery & supplies
04/08/2015,Amazon UK Retail,39.5,General stationery & supplies
04/08/2015,BT BILL PAYMENT 3,55.02,Travel & Subsistence
04/08/2015,CRAYFORD TUBES LTD,98.09,Record Copyin: Store purchases
04/08/2015,CRAYFORD TUBES LTD,121.38,Record Copyin: Store purchases
04/08/2015,SP SERVICES UK LTD,166.56,Health & Safety Services
05/08/2015,THE CHILTERN RLYWY,19,Travel & Subsistence
05/08/2015,COTE CARDIFF CENTRAL,19.13,Travel & Subsistence
05/08/2015,OYSTER AUTOTOPUP,20,Travel & Subsistence
05/08/2015,NEW SOUTHERN RAILW,20,Travel & Subsistence
05/08/2015,WWW.ICO.GOV.UK,35,Conferences and Seminars: TNA Attending
05/08/2015,EB DISCOVERING COLLEC,38.3,Training
05/08/2015,EB DISCOVERING COLLEC,38.3,Training
05/08/2015,EB DISCOVERING COLLEC,38.3,Training
05/08/2015,WWW.SHEETPLASTICS.CO.U,57,General stationery & supplies
06/08/2015,SHELL SMALLFORD 16,7,Travel & Subsistence
06/08/2015,ORANGE (A/PM/01),15.74,Telecommunications
06/08/2015,OYSTER AUTOTOPUP,20,Travel & Subsistence
06/08/2015,SELFSERVE TICKET,20,Travel & Subsistence
06/08/2015,AVIS LUTON,43.09,Vehicles Hire
06/08/2015,TOTAL REGISTRATION,43.14,General stationery & supplies
07/08/2015,OYSTER AUTOTOPUP,20,Travel & Subsistence
07/08/2015,OYSTER AUTOTOPUP,20,Travel & Subsistence
07/08/2015,WORLDWIDE MAGAZINE DIS,131.36,Stock - Kew shop  (Bookshop)
07/08/2015,INTERNATIONAL ASSOCIAT,133.08,Conferences and Seminars: TNA Attending
07/08/2015,I F CARDBOARD CREA,199.22,Stock - Kew shop  (Bookshop)
07/08/2015,CUSTOM WORKS,231,Stock - Kew shop  (Bookshop)
07/08/2015,TRACKS PUBLISHING,247.9,Stock - Kew shop  (Bookshop)
07/08/2015,BOON BOOKS,357.5,Stock - Kew shop  (Bookshop)
08/08/2015,Amazon UK Retail,58.49,Library
09/08/2015,OYSTER AUTOTOPUP,20,Travel & Subsistence
10/08/2015,Amazon UK Marketplace,4.41,General stationery & supplies
10/08/2015,GENERAL LAMPS LTD,7.8,Conservation & Preservation Materials
10/08/2015,WWW.QVSDIRECT.COM,7.87,Conservation & Preservation Materials
10/08/2015,LONDON OVERGROUND-,8,Travel & Subsistence
10/08/2015,Amazon UK Marketplace,8.62,General stationery & supplies
10/08/2015,Amazon UK Retail,11.23,General stationery & supplies
10/08/2015,LONDON MIDLAND TIC,82,Travel & Subsistence
11/08/2015,Amazon UK Marketplace,2.81,General stationery & supplies
11/08/2015,Amazon UK Marketplace,2.81,General stationery & supplies
11/08/2015,Amazon UK Marketplace,9.59,General stationery & supplies
11/08/2015,PRONTAPRINT,43.1,Fast Copy/ External printing (ESD)
11/08/2015,Amazon UK Marketplace,71.51,Library
11/08/2015,PAYPAL *WLCOLLERLTD,120.01,Record Copyin: Store purchases
11/08/2015,REALLY USEFUL PROD,122.49,Repository: stationery
11/08/2015,PRONTAPRINT,129.31,Fast Copy/ External printing (ESD)
11/08/2015,ASKEWS LIBRARY SER,145.72,Library
11/08/2015,WWW.THIRSTYCUPS.COM,337.08,Cleaning
12/08/2015,Amazon UK Marketplace,2.81,General stationery & supplies
12/08/2015,Amazon UK Marketplace,9.79,General stationery & supplies
12/08/2015,Amazon UK Marketplace,13.09,General stationery & supplies
12/08/2015,BADGEMASTER LTD,27.42,General stationery & supplies
12/08/2015,GARDNERS BOOKS LTD,183.76,Stock - Kew shop  (Bookshop)
12/08/2015,RICHMOND,192.12,Repairs and Maintenance - Planned
12/08/2015,POSTCRIPT SANDPIPE,343.27,Stock - Kew shop  (Bookshop)
13/08/2015,Amazon UK Retail,13.79,General stationery & supplies
13/08/2015,OYSTER AUTOTOPUP,20,Travel & Subsistence
13/08/2015,OYSTER BUS AUTOTOP,20,Travel & Subsistence
13/08/2015,LUL TICKET MACHINE,30,Travel & Subsistence
13/08/2015,WWW.TATE.ORG.UK,180,Conferences and Seminars: TNA Attending
14/08/2015,CONVENIENCE CHEQUE FEE,3.28,Bank Charges
14/08/2015,Amazon UK Marketplace,8.94,Minor IT
14/08/2015,OYSTER AUTOTOPUP,20,Travel & Subsistence
14/08/2015,Stock - Books,164.16,Stock - Kew shop  (Bookshop)
14/08/2015,ASKEWS LIBRARY SER,210.09,Library
15/08/2015,OYSTER AUTOTOPUP,20,Travel & Subsistence
15/08/2015,Amazon UK Retail,29.99,Library
17/08/2015,CONVENIENCE CHEQUE FEE,2.5,Bank Charges
17/08/2015,M6 TOLL,5.5,Travel & Subsistence
17/08/2015,SELFSERVE TICKET,7,Travel & Subsistence
17/08/2015,Amazon UK Marketplace,11.45,General stationery & supplies
17/08/2015,Stock - Books,14,Stock - Kew shop  (Bookshop)
17/08/2015,NEW SOUTHERN RAILW,20,Travel & Subsistence
17/08/2015,NORTON CANES CONNECT 3262,33.17,Travel & Subsistence
17/08/2015,ARCHIVES AND RECORDS A,67,Conferences and Seminars: TNA Attending
18/08/2015,CONVENIENCE CHEQUE FEE,2.5,Bank Charges
18/08/2015,CONVENIENCE CHEQUE FEE,2.5,Bank Charges
18/08/2015,CONVENIENCE CHEQUE FEE,3.67,Bank Charges
18/08/2015,M6 TOLL,5.5,Travel & Subsistence
18/08/2015,LONDON OVERGROUND-,6,Travel & Subsistence
18/08/2015,CONVENIENCE CHEQUE FEE,9.94,Bank Charges
18/08/2015,TNA BOOKSHOP,10.8,General stationery & supplies
18/08/2015,BP MOTO HESTON EAST,23.43,Travel & Subsistence
18/08/2015,NATIONAL MEDIA MUS,35,Conferences and Seminars: TNA Attending
18/08/2015,Stock - Books,40,Stock - Kew shop  (Bookshop)
18/08/2015,PORTAL HOTEL G & C CLUB,47.85,Travel & Subsistence
18/08/2015,AVIS LONDON,61.97,Travel & Subsistence
18/08/2015,LONDON MIDLAND TIC,82,Travel & Subsistence
18/08/2015,Stock - Books,106.15,Stock - Kew shop  (Bookshop)
18/08/2015,Stock - Books,183.46,Stock - Kew shop  (Bookshop)
18/08/2015,UNI CAM ESALES,257,Conferences and Seminars: TNA Attending
18/08/2015,Stock - Books,497,Stock - Kew shop  (Bookshop)
19/08/2015,CONVENIENCE CHEQUE FEE,2.98,Bank Charges
19/08/2015,GITHUB.COM  61N1W,16.45,Subscriptions
19/08/2015,PRESERVATION EQUIP,24.6,Conservation & Preservation Materials
19/08/2015,EB HISTORY FROM ELSEW,30,Training
19/08/2015,ELECTRONIC TEMPERATURE,45.86,Furniture and equipment
19/08/2015,OMNOVIATECH,130.97,Advertising
19/08/2015,WWW.VERSAPAK.CO.UK,134.57,General stationery & supplies
19/08/2015,Stock - Books,149.04,Stock - Kew shop  (Bookshop)
19/08/2015,CODILITY LIMITED,154.8,Subscriptions
20/08/2015,Amazon UK Marketplace,3.5,General stationery & supplies
20/08/2015,CONVENIENCE CHEQUE FEE,4.56,Bank Charges
20/08/2015,NO 1 LOUNGE,10,Travel & Subsistence
20/08/2015,OYSTER AUTOTOPUP,20,Travel & Subsistence
20/08/2015,NEW SOUTHERN RAILW,20,Travel & Subsistence
20/08/2015,OYSTER AUTOTOPUP,20,Travel & Subsistence
20/08/2015,Amazon UK Retail,24.79,Library
20/08/2015,WWW.TOURISMSOCIETY.ORG,39.5,Conferences and Seminars: TNA Attending
20/08/2015,PAYPAL *LEXMARDIREC,70.98,Conservation & Preservation Materials
20/08/2015,TNA BOOKSHOP,87.26,Library
20/08/2015,TESCO - Hughes,213.99,Furniture and equipment
20/08/2015,Stock - Books,228,Stock - Kew shop  (Bookshop)
21/08/2015,CONVENIENCE CHEQUE FEE,3.53,Bank Charges
21/08/2015,Amazon Svcs Europe SAR,6.48,General stationery & supplies
21/08/2015,OYSTER AUTOTOPUP,20,Travel & Subsistence
21/08/2015,HEATHROW AIRPORT,52.9,Travel & Subsistence
21/08/2015,Amazon Prime,79,Subscriptions
21/08/2015,Stock - Books,176.7,Stock - Kew shop  (Bookshop)
22/08/2015,RAILCORPORATION NSW,8.44,Travel & Subsistence
22/08/2015,HARBOUR CITY FERRIES,11.56,Travel & Subsistence
22/08/2015,OYSTER AUTOTOPUP,20,Travel & Subsistence
22/08/2015,GLENFERRIE LODGE,170.54,Travel & Subsistence
23/08/2015,HARBOUR CITY FERRIES,5.97,Travel & Subsistence
24/08/2015,HARBOUR CITY FERRIES,5.88,Travel & Subsistence
24/08/2015,FIRST,9.78,Travel & Subsistence
24/08/2015,FIRST,9.78,Travel & Subsistence
24/08/2015,Amazon UK Marketplace,16.39,Library
24/08/2015,WEBSTORE,20,Conferences and Seminars: TNA Attending
24/08/2015,MONGODB  INC.,68.76,Subscriptions
25/08/2015,TEXDOWNSSSTN,19.75,Travel & Subsistence
25/08/2015,LONDON OVERGROUND-,20,Travel & Subsistence
25/08/2015,AVIS LUTON,29.54,Vehicles Hire
25/08/2015,XMA LTD,38.77,General stationery & supplies
25/08/2015,XMA LTD,38.77,General stationery & supplies
25/08/2015,DEMCO EUROPE LTD,53.4,General stationery & supplies
25/08/2015,XMA LTD,74.5,Record Copyin: Store purchases
25/08/2015,LONDON MIDLAND TIC,82,Travel & Subsistence
25/08/2015,WWW.UKPOS.COM,325.8,Repository: stationery
25/08/2015,XMA LTD,378.94,Record Copyin: Store purchases
26/08/2015,CONVENIENCE CHEQUE FEE,4.08,Bank Charges
26/08/2015,CONVENIENCE CHEQUE FEE,5.6,Bank Charges
26/08/2015,AERIAL TRANSPORT,8.88,Travel & Subsistence
26/08/2015,BALSAMIQ,15.82,Minor Software
26/08/2015,OYSTER AUTOTOPUP,20,Travel & Subsistence
26/08/2015,OYSTER AUTOTOPUP,20,Travel & Subsistence
26/08/2015,KEMTEX EDCTNL SPPL,29.7,Conservation & Preservation Materials
26/08/2015,LUL TICKET MACHINE,30,Travel & Subsistence
26/08/2015,Amazon UK Marketplace,37.8,Library
26/08/2015,CITYSPRINT,55.2,Courier
26/08/2015,WWW.MY-TOOL-SHED.CO.UK,56.27,Conservation & Preservation Materials
26/08/2015,Stock - Books,204,Stock - Kew shop  (Bookshop)
26/08/2015,PRESERVATION EQUIP,217.14,General stationery & supplies
26/08/2015,Stock - Books,280,Stock - Kew shop  (Bookshop)
27/08/2015,RINGGO,1.4,Travel & Subsistence
27/08/2015,AERIAL TRANSPORT,9.09,Travel & Subsistence
27/08/2015,OYSTER AUTOTOPUP,20,Travel & Subsistence
27/08/2015,OYSTER AUTOTOPUP,20,Travel & Subsistence
27/08/2015,OYSTER AUTOTOPUP,20,Travel & Subsistence
27/08/2015,WWW.TATE.ORG.UK,24,Conferences and Seminars: TNA Attending
27/08/2015,PAYPAL *MISSJCGREEN,27.98,Wellbeing
27/08/2015,Amazon UK Marketplace,30.62,General stationery & supplies
27/08/2015,MESPIL HOTEL,83.6,Travel & Subsistence
27/08/2015,HAPPY THREADS,123.92,Conservation & Preservation Materials
28/08/2015,LUL TICKET OFFICE.,5,Travel & Subsistence
28/08/2015,AERIAL TRANSPORT,8.99,Travel & Subsistence
28/08/2015,AERIAL TRANSPORT,9.09,Travel & Subsistence
28/08/2015,TNA BOOKSHOP,15.96,Library
28/08/2015,PAYPAL *TONERGIANT,38.99,Record Copyin: Store purchases
28/08/2015,OYSTER BUS AUTOTOP,40,Travel & Subsistence
28/08/2015,DAWSON BOOKS,43.75,Subscriptions
28/08/2015,H & G HEALTHCARE L,56.6,Wellbeing
28/08/2015,MESPIL HOTEL,83.73,Travel & Subsistence
28/08/2015,Amazon UK Retail,334.8,IT Storage
29/08/2015,OYSTER AUTOTOPUP,20,Travel & Subsistence
29/08/2015,Amazon UK Retail,406.32,IT Storage
30/08/2015,THAWTE,200.41,IT Maintenance & Support - Software
31/08/2015,AERIAL TRANSPORT,8.29,Travel & Subsistence
31/08/2015,WWW.IWEB-HOSTING.CO.UK,38.4,Subscriptions
01/09/2015,CABBIEXPRESS,18.8,Travel & Subsistence
01/09/2015,MALVERN LINK SST,82,Travel & Subsistence
01/09/2015,WWW.ABER.AC.UK,245,Training
02/09/2015,CONVENIENCE CHEQUE FEE,5.68,Bank Charges
02/09/2015,NOVOTEL CANBERRA FD INT,14.49,Travel & Subsistence
02/09/2015,GM CABS AUSTRALIA,14.61,Travel & Subsistence
02/09/2015,OYSTER BUS AUTOSET,20,Travel & Subsistence
02/09/2015,ASKEWS LIBRARY SER,205.76,Library
02/09/2015,Stock - Books,284.19,Stock - Kew shop  (Bookshop)
02/09/2015,WWW.KENT.AC.UK,370,Conferences and Seminars: TNA Attending
03/09/2015,Amazon UK Marketplace,17.79,Library
03/09/2015,OYSTER AUTOTOPUP,20,Travel & Subsistence
03/09/2015,Amazon UK Marketplace,40.35,Conservation & Preservation Materials
03/09/2015,CONSERVATION.CO.UK,129.36,Conservation & Preservation Materials
03/09/2015,WWW.SAA.CO.UK,497.79,Conservation & Preservation Materials
04/09/2015,TNA BOOKSHOP,13.59,Library
04/09/2015,Amazon UK Retail,18.8,Library
04/09/2015,OYSTER AUTOTOPUP,20,Travel & Subsistence
04/09/2015,LONDON OVERGROUND-,20,Travel & Subsistence
04/09/2015,Amazon UK Marketplace,28.11,Library
04/09/2015,SWAT UK LTD,37.2,Training
04/09/2015,WWW.CASTORSONLINE.COM,54.2,Furniture and equipment
04/09/2015,BT BILL PAYMENT 3,66.61,Telecommunications
04/09/2015,LONDON MIDLAND TIC,82,Travel & Subsistence
04/09/2015,Amazon UK Marketplace,88.34,Library
04/09/2015,RS COMPONENTS,187.92,Furniture and equipment
05/09/2015,OYSTER AUTOTOPUP,20,Travel & Subsistence
05/09/2015,OYSTER AUTOTOPUP,20,Travel & Subsistence
07/09/2015,TICKETSOURCE LTD,15,Conferences and Seminars: TNA Attending
07/09/2015,R&L SLAUGHTER LTD,18,Conservation & Preservation Materials
07/09/2015,WWW.JUSTGLOVES.CO.UK,80.7,Conservation & Preservation Materials
07/09/2015,PRESERVATION EQUIP,126,Contracted Services
07/09/2015,WWW.FLYBE.COE0M7ZQ,183.32,Travel & Subsistence
07/09/2015,WWW.BAKERROSS.CO.UK,188.41,Advertising
07/09/2015,R&L SLAUGHTER LTD,330.48,Conservation & Preservation Materials
08/09/2015,STAFFERTON WAY MSCP,4.5,Travel & Subsistence
08/09/2015,Amazon UK Marketplace,14.75,Library
08/09/2015,NEW SOUTHERN RAILW,20,Travel & Subsistence
08/09/2015,FIRST GTR WESTERN,21.3,Travel & Subsistence
08/09/2015,Amazon UK Marketplace,37.96,General stationery & supplies
08/09/2015,CITYSPRINT,56.1,Courier
08/09/2015,DISCOVERY MUSEUM,310.2,Hospitality
09/09/2015,Amazon UK Marketplace,8.69,General stationery & supplies
09/09/2015,OYSTER AUTOTOPUP,20,Travel & Subsistence
09/09/2015,OYSTER AUTOTOPUP,40,Travel & Subsistence
09/09/2015,CONSERVATION BY DE,280.32,Conservation & Preservation Materials
10/09/2015,Amazon UK Retail,10.89,Library
10/09/2015,WEBSTORE,20,Conferences and Seminars: TNA Attending
10/09/2015,WP-STAMPS DIRECT L,20,Record Copyin: Store purchases
10/09/2015,OYSTER AUTOTOPUP,20,Travel & Subsistence
10/09/2015,OYSTER AUTOTOPUP,20,Travel & Subsistence
10/09/2015,OYSTER AUTOTOPUP,20,Travel & Subsistence
10/09/2015,Amazon UK Retail,30,Library
10/09/2015,OMNOVIATECH,51.68,Advertising
10/09/2015,M&S E COMMERCE,52.5,Hospitality
10/09/2015,RASA NEWCASTLE,75,Travel & Subsistence
10/09/2015,WWW.AMBERHAWK.COM,270,Conferences and Seminars: TNA Attending
11/09/2015,TNA BOOKSHOP,10.8,General stationery & supplies
11/09/2015,WEBSTORE,20,Advertising
11/09/2015,OYSTER AUTOTOPUP,20,Travel & Subsistence
11/09/2015,OYSTER BUS AUTOTOP,20,Travel & Subsistence
11/09/2015,HEATHROW EXPRESS,21.5,Travel & Subsistence
11/09/2015,PAYPAL *ADGLOBALTRA,73.99,Stock - Kew shop  (Bookshop)
11/09/2015,WORLDWIDE MAGAZINE DIS,210.91,Stock - Kew shop  (Bookshop)
11/09/2015,BOON BOOKS,330,Stock - Kew shop  (Bookshop)
11/09/2015,LIGHTHOUSE,330.18,General stationery & supplies
12/09/2015,EB HISTORY FROM ELSEW,20,Conferences and Seminars: TNA Attending
12/09/2015,OYSTER AUTOTOPUP,20,Travel & Subsistence
13/09/2015,TOTAL REGISTRATION,14.38,IT Maintenance & Support - Software
13/09/2015,NEW SOUTHERN RAILW,15.3,Travel & Subsistence
14/09/2015,M6 TOLL,5.5,Travel & Subsistence
14/09/2015,LUL TICKET OFFICE.,5.6,Travel & Subsistence
14/09/2015,WP-BACKCARE-THE CH,17.6,Wellbeing
14/09/2015,OYSTER AUTOTOPUP,20,Travel & Subsistence
14/09/2015,OYSTER BUS AUTOTOP,20,Travel & Subsistence
14/09/2015,SELFSERVE TICKET,20,Travel & Subsistence
14/09/2015,SELFSERVE TICKET,30,Travel & Subsistence
14/09/2015,LONDON OVERGROUND-,40,Travel & Subsistence
14/09/2015,LONDON OVERGROUND-,50,Travel & Subsistence
15/09/2015,M6 TOLL,5.5,Travel & Subsistence
15/09/2015,Amazon UK Marketplace,8.9,Minor IT
15/09/2015,Shell Bullsmoor,29.78,Travel & Subsistence
15/09/2015,LEGACY HOTELS,50,Travel & Subsistence
15/09/2015,BP MOTO HESTON EAST,56.86,Travel & Subsistence
15/09/2015,AVIS LONDON,73.97,Travel & Subsistence
15/09/2015,EXPERTS EXCHANGE LLC,99.64,Subscriptions
16/09/2015,GOV.UK/DART-CHARGE,2.5,Travel & Subsistence
16/09/2015,CONVENIENCE CHEQUE FEE,3.85,Bank Charges
16/09/2015,VIRGINTRAINSEC WI-FI,4.95,Travel & Subsistence
16/09/2015,SELFSERVE TICKET,16,Travel & Subsistence
16/09/2015,OYSTER AUTOTOPUP,20,Travel & Subsistence
16/09/2015,MERCURE NORTON GRANGE HOT,33.55,Travel & Subsistence
16/09/2015,AVIS ENFIELD,36.84,Vehicles Hire
16/09/2015,FGW SELF SERVICE,88.6,Travel & Subsistence
16/09/2015,TRANS MEDIA TECHNOLOGY,120,Transcription
16/09/2015,MERCURE NORTON GRANGE HOT,140,Travel & Subsistence
16/09/2015,Stock - Books,192.55,Stock - Kew shop  (Bookshop)
16/09/2015,DAWSON BOOKS,224.73,Subscriptions
16/09/2015,WWW.THIRSTYCUPS.COM,337.08,General stationery & supplies
17/09/2015,CONVENIENCE CHEQUE FEE,2.5,Bank Charges
17/09/2015,RATP,10.6,Travel & Subsistence
17/09/2015,TNA BOOKSHOP,12.8,Library
17/09/2015,LONDON OVERGROUND-,20,Travel & Subsistence
17/09/2015,OYSTER AUTOTOPUP,20,Travel & Subsistence
17/09/2015,OYSTER AUTOTOPUP,20,Travel & Subsistence
17/09/2015,NEW SOUTHERN RAILW,20,Travel & Subsistence
17/09/2015,Amazon UK Retail,28.49,General stationery & supplies
17/09/2015,Stock - Books,28.6,Stock - Kew shop  (Bookshop)
17/09/2015,UNIVERSITY OF NORT,75,Conferences and Seminars: TNA Attending
18/09/2015,CONVENIENCE CHEQUE FEE,2.5,Bank Charges
18/09/2015,Stock - Books,107.5,Stock - Kew shop  (Bookshop)
18/09/2015,ASKEWS LIBRARY SER,152.19,Library
18/09/2015,WWW.TONERGIANT.CO.UK,456.78,Record Copyin: Store purchases
19/09/2015,GITHUB.COM   61N1W,16.49,Subscriptions
19/09/2015,OYSTER AUTOTOPUP,40,Travel & Subsistence
20/09/2015,RATP,2.71,Travel & Subsistence
20/09/2015,BEAUGRENELLE,18.07,Travel & Subsistence
20/09/2015,VERMONT HOTEL,72,Travel & Subsistence
20/09/2015,BEAUGRENELLE,288.35,Travel & Subsistence
20/09/2015,MERCURE PARISSU,416.51,Travel & Subsistence
21/09/2015,OYSTER BUS AUTOTOP,20,Travel & Subsistence
21/09/2015,OYSTER AUTOTOPUP,20,Travel & Subsistence
21/09/2015,Amazon UK Retail,52.99,General stationery & supplies
21/09/2015,WWW.NAVAL-MILITARY-PRE,105.9,Stock - Kew shop  (Bookshop)
21/09/2015,AVANQUEST PUB LTD,185.81,Stock - Kew shop  (Bookshop)
21/09/2015,CANNS DOWN PRESS LTD,211.53,Stock - Kew shop  (Bookshop)
21/09/2015,TRACKS PUBLISHING,319.18,Stock - Kew shop  (Bookshop)
21/09/2015,GARDNERS BOOKS LTD,319.54,Stock - Kew shop  (Bookshop)
21/09/2015,CONSERVATION BY DE,342.48,Conservation & Preservation Materials
22/09/2015,Amazon UK Marketplace,3.18,General stationery & supplies
22/09/2015,Amazon UK Marketplace,5.79,General stationery & supplies
22/09/2015,Amazon UK Retail,10.67,General stationery & supplies
22/09/2015,BILLS PETERBOROUGH,15.95,Travel & Subsistence
22/09/2015,SELFSERVE TICKET,20,Travel & Subsistence
22/09/2015,TNA BOOKSHOP,40,Library
23/09/2015,CONVENIENCE CHEQUE FEE,2.5,Bank Charges
23/09/2015,LOROL - KEW GARDENS,5.6,Travel & Subsistence
23/09/2015,DAWSON BOOKS,26.26,Subscriptions
23/09/2015,MARKS & SPENCER,31.25,Hospitality
23/09/2015,SJASUPLIES,36.4,Health & Safety Services
23/09/2015,Stock - Books,58.8,Stock - Kew shop  (Bookshop)
23/09/2015,Amazon UK Retail,133.48,IT hardware Additions
23/09/2015,PRESERVATION EQUIP,183.48,General stationery & supplies
24/09/2015,LUL TICKET OFFICE.,6.6,Travel & Subsistence
24/09/2015,OYSTER AUTOTOPUP,20,Travel & Subsistence
24/09/2015,OYSTER AUTOTOPUP,20,Travel & Subsistence
24/09/2015,OYSTER BUS AUTOTOP,20,Travel & Subsistence
24/09/2015,OYSTER AUTOTOPUP,20,Travel & Subsistence
24/09/2015,MONGODB  INC.,28.27,Subscriptions
24/09/2015,UNIVERSITY OF NORT,75,Conferences and Seminars: TNA Attending
25/09/2015,BALSAMIQ,16.3,Minor Software
25/09/2015,LONDON OVERGROUND-,20,Travel & Subsistence
25/09/2015,RE Online-ISK,26.45,Travel & Subsistence
26/09/2015,OYSTER AUTOTOPUP,20,Travel & Subsistence
27/09/2015,Harry s Resturant,13.52,Travel & Subsistence
27/09/2015,Harry s Resturant,13.52,Travel & Subsistence
27/09/2015,Reykjavik Excursion ehf,26.51,Travel & Subsistence
27/09/2015,Reykjavik Excursion ehf,26.51,Travel & Subsistence
27/09/2015,Hotel Klettur,362.39,Travel & Subsistence
27/09/2015,Hotel Klettur,362.39,Travel & Subsistence
28/09/2015,WWW.IWEB-HOSTING.CO.UK,1,IT Maintenance & Support - Software
28/09/2015,CONVENIENCE CHEQUE FEE,2.5,Bank Charges
28/09/2015,Stock - Books,30,Stock - Kew shop  (Bookshop)
28/09/2015,Amazon UK Marketplace,61.72,Minor IT
28/09/2015,WWW.POSTURITE.CO.UK,63.54,Furniture and equipment
28/09/2015,XMA LTD,75.13,General stationery & supplies
29/09/2015,Svarta Kaffid,13.1,Travel & Subsistence
29/09/2015,Svarta Kaffid,13.1,Travel & Subsistence
29/09/2015,TNA BOOKSHOP,20,Library
29/09/2015,WP-STAMPS DIRECT L,20,Record Copyin: Store purchases
29/09/2015,Amazon UK Marketplace,27.8,Library
29/09/2015,WWW.IWEB-HOSTING.CO.UK,38.4,IT Maintenance & Support - Software
30/09/2015,Amazon UK Marketplace,15.39,General stationery & supplies
30/09/2015,DOUGLAS DESIGN,19.2,General stationery & supplies
30/09/2015,OYSTER AUTOTOPUP,20,Travel & Subsistence
30/09/2015,OYSTER AUTOTOPUP,20,Travel & Subsistence
30/09/2015,LONDON OVERGROUND-,20,Travel & Subsistence
30/09/2015,TOTAL REGISTRATION,20.39,IT Maintenance & Support - Software
30/09/2015,Harry s Resturant,22.42,Travel & Subsistence
30/09/2015,Harry s Resturant,22.42,Travel & Subsistence
30/09/2015,WWW.JOHNLEWIS.COM,28,Repairs and Maintenance - Planned
30/09/2015,Amazon UK Marketplace,34.79,Library
30/09/2015,WWW.BAKERROSS.CO.UK,43.65,Advertising
30/09/2015,RAYMONDSUPPLIES.CO.UK,119,Repairs and Maintenance - Planned
30/09/2015,Amazon UK Retail,175.96,IT Storage
30/09/2015,ACT*i2i Events Limited,234,Subscriptions
01/10/2015,CONVENIENCE CHEQUE FEE,2.5,Bank Charges
01/10/2015,Amazon UK Retail,15,Library
01/10/2015,OYSTER AUTOTOPUP,20,Travel & Subsistence
01/10/2015,OYSTER AUTOTOPUP,20,Travel & Subsistence
01/10/2015,Amazon Svcs Europe SAR,53.26,Library
01/10/2015,ABM PUBLISHING,117,Stock - Kew shop  (Bookshop)
01/10/2015,Stock - Books,125,Stock - Kew shop  (Bookshop)
01/10/2015,COUNTRYSIDEBOOKS.,127.13,Stock - Kew shop  (Bookshop)
01/10/2015,Amazon UK Marketplace,251.7,IT Storage
02/10/2015,Amazon UK Marketplace,3.76,General stationery & supplies
02/10/2015,Amazon UK Marketplace,6.63,General stationery & supplies
02/10/2015,MOTHERCARE WORLD,11,General stationery & supplies
02/10/2015,OYSTER BUS AUTOTOP,20,Travel & Subsistence
02/10/2015,Amazon UK Retail,21.51,General stationery & supplies
02/10/2015,SCREWFIX DIRECT,35.58,Furniture and equipment
02/10/2015,Amazon UK Retail,47.86,General stationery & supplies
02/10/2015,CATH TATE CARDS LTD,200.88,Stock - Kew shop  (Bookshop)
03/10/2015,Amazon UK Marketplace,2.3,Record Copyin: Store purchases
03/10/2015,OYSTER AUTOTOPUP,20,Travel & Subsistence
03/10/2015,OYSTER AUTOTOPUP,20,Travel & Subsistence
04/10/2015,OYSTER AUTOTOPUP,20,Travel & Subsistence
04/10/2015,Amazon UK Retail,41.7,General stationery & supplies
05/10/2015,PAYPAL *AUDIONETWOR,1,Copyright
05/10/2015,TNA DOCUMENTS ONLINE,3.3,General stationery & supplies
05/10/2015,M6 TOLL,4,Travel & Subsistence
05/10/2015,M6 TOLL,5.5,Travel & Subsistence
05/10/2015,PAPERSTONE,8.76,General stationery & supplies
05/10/2015,PAYPAL *PLANBEERESO,14.5,Copyright
05/10/2015,NNG*NINGSOCIALWEBSITES,19.95,Subscriptions
05/10/2015,NEW SOUTHERN RAILW,20,Travel & Subsistence
05/10/2015,WWW.BAKERROSS.CO.UK,33.13,General stationery & supplies
05/10/2015,TNA IMAGE LIBRARY,35,General stationery & supplies
05/10/2015,HEDGEHOG,50,Travel & Subsistence
05/10/2015,BT BILL PAYMENT 3,57.27,Telecommunications
05/10/2015,DAWSON BOOKS,65.63,Subscriptions
05/10/2015,LONDON MIDLAND TIC,82,Travel & Subsistence
06/10/2015,CALICO LAINE,1,Conservation & Preservation Materials
06/10/2015,WWW.ABAKHAN.CO.UK,1,Conservation & Preservation Materials
06/10/2015,Amazon UK Marketplace,1.41,General stationery & supplies
06/10/2015,WWW.SEWANDSOW.CO.U,4.5,Conservation & Preservation Materials
06/10/2015,WWW.TRUROFABRICS.COM,4.5,Conservation & Preservation Materials
06/10/2015,M6 TOLL,5.5,Travel & Subsistence
06/10/2015,WWW.ANYFOAM.CO.UK,9.05,Conservation & Preservation Materials
06/10/2015,TNA BOOKSHOP,11.99,Library
06/10/2015,JUPITER HOTELS LTD,14.4,Travel & Subsistence
06/10/2015,Amazon UK Retail,24.99,General stationery & supplies
06/10/2015,Amazon UK Marketplace,26.91,General stationery & supplies
06/10/2015,Amazon UK Marketplace,27.39,Library
06/10/2015,LUL TICKET MACHINE,30,Travel & Subsistence
06/10/2015,LUL TICKET MACHINE,30,Travel & Subsistence
06/10/2015,BRENTFORD SERVICE,39.24,Travel & Subsistence
06/10/2015,KREMER - PIGMENTE,47.27,Conservation & Preservation Materials
06/10/2015,TNA BOOKSHOP,48,Library
06/10/2015,Amazon UK Marketplace,78.04,Library
06/10/2015,AVIS LONDON,87.84,Travel & Subsistence
07/10/2015,CONVENIENCE CHEQUE FEE,2.5,Bank Charges
07/10/2015,BOOTS THE CHEMISTS,3.59,General stationery & supplies
07/10/2015,DOUGLAS DESIGN,19.2,General stationery & supplies
07/10/2015,OYSTER AUTOTOPUP,20,Travel & Subsistence
07/10/2015,OYSTER AUTOTOPUP,20,Travel & Subsistence
07/10/2015,Stock - Books,30,Stock - Kew shop  (Bookshop)
07/10/2015,BADGEMASTER LTD,32.01,General stationery & supplies
07/10/2015,BLACKCOMBE DISTRIB,132.96,Furniture and equipment
07/10/2015,QUADRILECT LTD,180,Conferences and Seminars: TNA Attending
07/10/2015,UKSG,228,Conferences and Seminars: TNA Attending
07/10/2015,XMA LTD,378.94,Record Copyin: Store purchases
07/10/2015,WWW.PMGLTD.CO.UK,415.8,Conferences and Seminars: TNA Attending
08/10/2015,CONVENIENCE CHEQUE FEE,7.78,Bank Charges
08/10/2015,OYSTER BUS AUTOTOP,20,Travel & Subsistence
08/10/2015,NEW SOUTHERN RAILW,20,Travel & Subsistence
08/10/2015,Amazon UK Retail,25.49,Furniture and equipment
08/10/2015,WWW.SECOL.CO.UK,221.7,Repository: stationery
08/10/2015,SCIENTIFIC LABORATORY,235.8,Conservation & Preservation Materials
08/10/2015,Stock - Books,388.8,Stock - Kew shop  (Bookshop)
09/10/2015,PAPERSTONE,8.76,General stationery & supplies
09/10/2015,amazonpayments.co.uk,10.55,General stationery & supplies
09/10/2015,OYSTER AUTOTOPUP,20,Travel & Subsistence
09/10/2015,Amazon UK Marketplace,23.7,General stationery & supplies
09/10/2015,WWW.BAKERROSS.CO.UK,28.64,General stationery & supplies
09/10/2015,LONDON OVERGROUND-,30,Travel & Subsistence
09/10/2015,Amazon Svcs Europe SAR,34.36,General stationery & supplies
09/10/2015,WWW.ARKWILDLIFE.CO.UK,57,Repairs and Maintenance - Planned
09/10/2015,LONDON MIDLAND TIC,60.9,Travel & Subsistence
09/10/2015,TOTALBLANKMEDIA,116.81,Record Copy: other current exp
09/10/2015,UNIV.PROD./LINECO INC.,125.78,Conservation & Preservation Materials
09/10/2015,ACCA,208,Training
10/10/2015,Amazon UK Marketplace,2.89,Furniture and equipment
11/10/2015,GREATER ANGLIA,10.85,Travel & Subsistence
11/10/2015,OYSTER BUS AUTOTOP,40,Travel & Subsistence
12/10/2015,METROLINK TVM,2.8,Travel & Subsistence
12/10/2015,METROLINK TVM,2.8,Travel & Subsistence
12/10/2015,METROLINK TVM,2.8,Travel & Subsistence
12/10/2015,TFGM METROLINK,5,Travel & Subsistence
12/10/2015,ONE4SIX PLATFORM 3,6.6,Travel & Subsistence
12/10/2015,LUL TICKET OFFICE.,6.6,Travel & Subsistence
12/10/2015,RINGGO,22.9,Travel & Subsistence
12/10/2015,ABEBOOKS.COM,35.27,Library
13/10/2015,OYSTER AUTOTOPUP,20,Travel & Subsistence
13/10/2015,WWW.IRB.FRAUNHOFER.DE,20.54,Library
13/10/2015,TRAINLINE,31.37,Travel & Subsistence
13/10/2015,Amazon UK Marketplace,54.79,Library
13/10/2015,Alvisse Parc Hotel,70.95,Travel & Subsistence
13/10/2015,Alvisse Parc Hotel,70.95,Travel & Subsistence
14/10/2015,XC TRAINS LIMITED,2,IT Maintenance & Support - Software
14/10/2015,CONVENIENCE CHEQUE FEE,2.5,Bank Charges
14/10/2015,TFGM METROLINK,2.8,Travel & Subsistence
14/10/2015,METROLINK TVM,2.8,Travel & Subsistence
14/10/2015,METROLINK TVM,2.8,Travel & Subsistence
14/10/2015,NOMAD WEST COAST L,6,IT Maintenance & Support - Software
14/10/2015,UPPER CRUST,6.93,Travel & Subsistence
14/10/2015,CONVENIENCE CHEQUE FEE,9.24,Bank Charges
14/10/2015,XMA LTD,31.27,General stationery & supplies
14/10/2015,Stock - Books,32.5,Stock - Kew shop  (Bookshop)
14/10/2015,XMA LTD,38.77,General stationery & supplies
14/10/2015,G RYDER & CO LTD,130.8,General stationery & supplies
14/10/2015,Stock - Books,462,Stock - Kew shop  (Bookshop)
15/10/2015,METROLINK TVM,2.8,Travel & Subsistence
15/10/2015,OYSTER BUS AUTOTOP,20,Travel & Subsistence
15/10/2015,OYSTER AUTOTOPUP,20,Travel & Subsistence
15/10/2015,BURGESS PARTNERSHIP,34.24,Travel & Subsistence
15/10/2015,WWW.ISTOCK.COM,234,Minor IT
15/10/2015,PAYPAL *NISHARDWARE,300,Minor IT
16/10/2015,CONVENIENCE CHEQUE FEE,2.5,Bank Charges
16/10/2015,Amazon UK Marketplace,8.83,Conservation & Preservation Materials
16/10/2015,WWW.ANYFOAM.CO.UK,9.05,Conservation & Preservation Materials
16/10/2015,Amazon UK Marketplace,9.95,General stationery & supplies
16/10/2015,Amazon UK Marketplace,12.88,General stationery & supplies
16/10/2015,Amazon UK Marketplace,12.9,General stationery & supplies
16/10/2015,THE CHILTERN RLYWY,19,Travel & Subsistence
16/10/2015,Stock - Books,22,Stock - Kew shop  (Bookshop)
16/10/2015,ASKEWS LIBRARY SER,120.94,Library
16/10/2015,DEMCO EUROPE LTD,236.71,Library
17/10/2015,Amazon UK Marketplace,18.7,Conservation & Preservation Materials
18/10/2015,OYSTER AUTOTOPUP,20,Travel & Subsistence
18/10/2015,OYSTER AUTOTOPUP,20,Travel & Subsistence
19/10/2015,M6 TOLL,5.5,Travel & Subsistence
19/10/2015,GITHUB.COM  61N1W,16.69,Subscriptions
19/10/2015,THE RISING SUN,49.15,Travel & Subsistence
19/10/2015,WWW.OXFORD.AC.UK,50,Conferences and Seminars: TNA Attending
19/10/2015,FGW TICKET OFFICE,63,Travel & Subsistence
19/10/2015,LONDON MIDLAND TIC,82,Travel & Subsistence
20/10/2015,M6 TOLL,5.5,Travel & Subsistence
20/10/2015,Amazon UK Marketplace,7.45,Conservation & Preservation Materials
20/10/2015,Amazon UK Retail,12.54,General stationery & supplies
20/10/2015,SELFSERVE TICKET,20,Travel & Subsistence
20/10/2015,NEW SOUTHERN RAILW,20,Travel & Subsistence
20/10/2015,XMA LTD,41.78,General stationery & supplies
20/10/2015,SAINSBURYS PETROL,42.5,Travel & Subsistence
20/10/2015,SP SERVICES UK LTD,48.66,Health & Safety Services
20/10/2015,AVIS LONDON,70.97,Travel & Subsistence
20/10/2015,ASKEWS LIBRARY SER,127.39,Library
20/10/2015,MIELE COMPANY LTD,156,Equipment maintenance
21/10/2015,MARKS & SPENCER,1.66,General stationery & supplies
21/10/2015,Amazon UK Marketplace,3.8,General stationery & supplies
21/10/2015,Amazon UK Marketplace,6.26,General stationery & supplies
21/10/2015,LOROL - KEW GARDENS,9.6,Travel & Subsistence
21/10/2015,Amazon UK Marketplace,30.98,Conservation & Preservation Materials
21/10/2015,WWW.COVENTRYUNIVERSITY,40,Conferences and Seminars: TNA Attending
21/10/2015,OYSTER AUTOTOPUP,40,Travel & Subsistence
21/10/2015,BOOKPOINT LIMITED,43.96,Library
21/10/2015,PIZZA EXPRESS,50,Travel & Subsistence
22/10/2015,LOROL - KEW GARDENS,4.6,Travel & Subsistence
22/10/2015,Amazon UK Marketplace,5.86,Furniture and equipment
22/10/2015,LONDON OVERGROUND-,6,Travel & Subsistence
22/10/2015,LOROL - KEW GARDENS,6.1,Travel & Subsistence
22/10/2015,Amazon UK Marketplace,7.08,Furniture and equipment
22/10/2015,Amazon Svcs Europe SAR,7.35,Furniture and equipment
22/10/2015,LONDON & SOUTH EAS,8.6,Travel & Subsistence
22/10/2015,Amazon UK Marketplace,10.67,Furniture and equipment
22/10/2015,Amazon Svcs Europe SAR,11.94,Furniture and equipment
22/10/2015,WWW.ANYFOAM.CO.UK,17.53,Conservation & Preservation Materials
22/10/2015,UNIVERSITY OF LONDON,20,Conferences and Seminars: TNA Attending
22/10/2015,OYSTER AUTOTOPUP,20,Travel & Subsistence
22/10/2015,OYSTER AUTOTOPUP,20,Travel & Subsistence
22/10/2015,LONDON OVERGROUND-,30,Travel & Subsistence
22/10/2015,SKR*AbeBooks.uk 3JJF33,35.45,Library
22/10/2015,ABSOLUTEDAT,44.46,Furniture and equipment
22/10/2015,WWW OPPASSESSMENT EU COM,47.4,Training
22/10/2015,BILLS TAUNTON,50,Travel & Subsistence
22/10/2015,THUNDERCLAP.IT,66.84,Furniture and equipment
22/10/2015,PAYPAL *MATCHRIVERE,84,Subscriptions
22/10/2015,ESSENTRA PACKAGING,112.2,General stationery & supplies
22/10/2015,EASINGWORLD TOWN HALL,127.14,Stock - Kew shop  (Bookshop)
22/10/2015,WORLDWIDE MAGAZINE DIS,170.47,Stock - Kew shop  (Bookshop)
22/10/2015,WWW.SECOL.CO.UK,281.46,Repository: stationery
22/10/2015,TRACKS PUBLISHING,289.8,Stock - Kew shop  (Bookshop)
22/10/2015,POMEGRANATE EUROPE LTD,467.16,Stock - Kew shop  (Bookshop)
23/10/2015,Amazon UK Marketplace,2.06,Furniture and equipment
23/10/2015,OYSTER AUTOTOPUP,20,Travel & Subsistence
23/10/2015,OYSTER AUTOTOPUP,20,Travel & Subsistence
23/10/2015,OYSTER AUTOTOPUP,20,Travel & Subsistence
23/10/2015,OYSTER AUTOTOPUP,20,Travel & Subsistence
23/10/2015,WWW.LIGHTS4FUN.CO.UK,55.82,Furniture and equipment
23/10/2015,BHCC-RPMUSEUM7,60,Conferences and Seminars: TNA Attending
23/10/2015,COACH AND HORSES,129,Travel & Subsistence
23/10/2015,ASKEWS LIBRARY SER,145.89,Library
24/10/2015,OYSTER AUTOTOPUP,20,Travel & Subsistence
24/10/2015,OYSTER AUTOTOPUP,20,Travel & Subsistence
24/10/2015,Amazon UK Marketplace,25.98,Furniture and equipment
24/10/2015,MONGODB  INC.,117.36,Subscriptions
25/10/2015,BALSAMIQ,16.08,Minor Software
26/10/2015,TNA DOCUMENTS ONLINE,3.3,General stationery & supplies
26/10/2015,LUL TICKET MACHINE,5,Travel & Subsistence
26/10/2015,MARKS & SPENCER,6.64,General stationery & supplies
26/10/2015,WWW.TICKETS.VAM.AC.UK,35,Conferences and Seminars: TNA Attending
26/10/2015,CITYSPRINT,56.1,Courier
26/10/2015,WWW.DYNAMO-LABEL-PRINT,83.99,General stationery & supplies
27/10/2015,NOMAD WEST COAST L,8,IT Maintenance & Support - Software
27/10/2015,CONVENIENCE CHEQUE FEE,8.56,Bank Charges
27/10/2015,LONDON OVERGROUND-,20,Travel & Subsistence
27/10/2015,LUL TICKET MACHINE,30,Travel & Subsistence
27/10/2015,WWW.PLOT-IT.CO.UK,35.33,General stationery & supplies
27/10/2015,KEWELL CONVERTERS,360.06,Conservation & Preservation Materials
27/10/2015,Stock - Books,428,Stock - Kew shop  (Bookshop)
27/10/2015,ADVANCED LABELLING,476.01,Equipment maintenance
28/10/2015,CONVENIENCE CHEQUE FEE,2.82,Bank Charges
28/10/2015,NEXUS TRAVEL SHOP,3.4,Travel & Subsistence
28/10/2015,TNA DOCUMENTS ONLINE,9.9,General stationery & supplies
28/10/2015,OYSTER AUTOTOPUP,20,Travel & Subsistence
28/10/2015,OYSTER AUTOTOPUP,20,Travel & Subsistence
28/10/2015,Amazon Svcs Europe SAR,38.85,Library
28/10/2015,Amazon UK Marketplace,52.77,Library
28/10/2015,Stock - Books,140.97,Stock - Kew shop  (Bookshop)
28/10/2015,WWW.HOBARTUK.CO.UK,144.71,Equipment maintenance
28/10/2015,WWW.THIRSTYCUPS.COM,337.08,General stationery & supplies
29/10/2015,LUL TICKET MACHINE,5,Travel & Subsistence
29/10/2015,CONVENIENCE CHEQUE FEE,6.24,Bank Charges
29/10/2015,Amazon Digital Dwnlds,7.99,Minor IT
29/10/2015,WWW.LOCKDOCTOR.BIZ,8.22,Furniture and equipment
29/10/2015,BADGEMASTER LTD,9.85,General stationery & supplies
29/10/2015,Amazon UK Marketplace,10,Record Copyin: Store purchases
29/10/2015,OYSTER AUTOTOPUP,20,Travel & Subsistence
29/10/2015,OYSTER AUTOTOPUP,20,Travel & Subsistence
29/10/2015,WWW.IWEB-HOSTING.CO.UK,38.4,IT Maintenance & Support - Software
29/10/2015,Amazon UK Marketplace,53.7,Furniture and equipment
29/10/2015,Stock - Books,312,Stock - Kew shop  (Bookshop)
30/10/2015,LOROL - KEW GARDENS,6.1,Travel & Subsistence
30/10/2015,OYSTER AUTOTOPUP,20,Travel & Subsistence
30/10/2015,OYSTER AUTOTOPUP,20,Travel & Subsistence
30/10/2015,OYSTER AUTOTOPUP,20,Travel & Subsistence
30/10/2015,TNA DOCUMENTS ONLINE,25,General stationery & supplies
30/10/2015,TNA DOCUMENTS ONLINE,25,General stationery & supplies
31/10/2015,OYSTER AUTOTOPUP,20,Travel & Subsistence
31/10/2015,OYSTER AUTOTOPUP,20,Travel & Subsistence
31/10/2015,OYSTER AUTOTOPUP,20,Travel & Subsistence
31/10/2015,OYSTER AUTOTOPUP,20,Travel & Subsistence
01/11/2015,OYSTER AUTOTOPUP,20,Travel & Subsistence
02/11/2015,TAXIPAY TAXI FARE,10.87,Travel & Subsistence
02/11/2015,TAXIPAY TAXI FARE,11.39,Travel & Subsistence
02/11/2015,CONVENIENCE CHEQUE FEE,16.31,Bank Charges
02/11/2015,THE GREYHOUND,50,Training
02/11/2015,LONDON MIDLAND TIC,82,Travel & Subsistence
02/11/2015,VIRGINTRAINSEC KGX SHE,140.5,Travel & Subsistence
02/11/2015,OMNOVIATECH,160.72,Minor IT
02/11/2015,VIRGINTRAINSEC SERVCS,213,Travel & Subsistence
03/11/2015,RINGGO,7.9,Travel & Subsistence
03/11/2015,XMA LTD,37.87,Record Copyin: Store purchases
03/11/2015,XMA LTD,311.4,General stationery & supplies
03/11/2015,XMA LTD,311.4,General stationery & supplies
03/11/2015,XMA LTD,311.4,General stationery & supplies
03/11/2015,KEWELL CONVERTERS,368.92,Conservation & Preservation Materials
03/11/2015,XMA LTD,467.1,General stationery & supplies
04/11/2015,CONVENIENCE CHEQUE FEE,6.2,Bank Charges
04/11/2015,WWW.ARCHIVES.ORG.UK,15,Conferences and Seminars: TNA Attending
04/11/2015,Amazon UK Marketplace,19.98,General stationery & supplies
04/11/2015,WWW.ARCHIVES.ORG.UK,30,Conferences and Seminars: TNA Attending
04/11/2015,Amazon UK Marketplace,39.54,General stationery & supplies
04/11/2015,Amazon UK Retail,51.94,General stationery & supplies
04/11/2015,BT BILL PAYMENT 3,53.91,Telecommunications
04/11/2015,LIGHTHOUSE,66.54,General stationery & supplies
04/11/2015,Stock - Books,309.96,Stock - Kew shop  (Bookshop)
04/11/2015,INTHeathrow Sound Hire,378,General stationery & supplies
05/11/2015,Amazon UK Marketplace,1.49,General stationery & supplies
05/11/2015,Amazon UK Marketplace,2.41,Conservation & Preservation Materials
05/11/2015,Verkeiersverbond,2.96,Travel & Subsistence
05/11/2015,Amazon UK Marketplace,2.99,Conservation & Preservation Materials
05/11/2015,LUL TICKET MACHINE,5,Travel & Subsistence
05/11/2015,Amazon UK Marketplace,5.74,Library
05/11/2015,Amazon UK Marketplace,6.99,Conservation & Preservation Materials
05/11/2015,Amazon UK Marketplace,8.58,Conservation & Preservation Materials
05/11/2015,Hotel Ibis,11.12,Travel & Subsistence
05/11/2015,Amazon UK Marketplace,18.87,Conservation & Preservation Materials
05/11/2015,TNA BOOKSHOP,20,Library
05/11/2015,OYSTER BUS AUTOTOP,20,Travel & Subsistence
05/11/2015,OYSTER BUS AUTOTOP,20,Travel & Subsistence
05/11/2015,Amazon UK Marketplace,42.79,Library
05/11/2015,Amazon UK Marketplace,43.79,Library
05/11/2015,Amazon UK Retail,64.49,General stationery & supplies
06/11/2015,Amazon UK Marketplace,4.2,Conservation & Preservation Materials
06/11/2015,WP-TVCABLES NIMBUS,8.51,Furniture and equipment
06/11/2015,Amazon UK Marketplace,19.7,General stationery & supplies
06/11/2015,OYSTER AUTOTOPUP,20,Travel & Subsistence
06/11/2015,Amazon UK Marketplace,24.8,Library
06/11/2015,Amazon UK Marketplace,27.55,Conservation & Preservation Materials
06/11/2015,Amazon UK Marketplace,27.8,Library
06/11/2015,Amazon UK Marketplace,34.7,Conservation & Preservation Materials
06/11/2015,WWW.FIRSTFORPAPER.CO.UK,394.4,Fast Copy/ External printing (ESD)
07/11/2015,OYSTER AUTOTOPUP,20,Travel & Subsistence
07/11/2015,OYSTER AUTOTOPUP,20,Travel & Subsistence
07/11/2015,Amazon UK Retail,35,Library
08/11/2015,OYSTER BUS AUTOTOP,20,Travel & Subsistence
08/11/2015,Amazon UK Retail,56.01,Conservation & Preservation Materials
09/11/2015,VIRGINTRAINSEC LDS SHE,5.8,Travel & Subsistence
09/11/2015,WWW.FISHER.CO.UK,12.24,Conservation & Preservation Materials
09/11/2015,TAXI FARE BY VERIFONE,13.68,Travel & Subsistence
09/11/2015,Amazon Svcs Europe SAR,21.41,Library
09/11/2015,GWR LON PADD TO,63,Travel & Subsistence
09/11/2015,Amazon UK Marketplace,65.07,Conservation & Preservation Materials
09/11/2015,THE ROYAL TOBY COMPLEX,100,Travel & Subsistence
09/11/2015,HOTELS COM125973125608,109,Travel & Subsistence
09/11/2015,VIRGINTRAINSEC LDS SHE,193.6,Travel & Subsistence
09/11/2015,COACH AND HORSES,244.6,Travel & Subsistence
10/11/2015,LUL TICKET MACHINE,5,Travel & Subsistence
10/11/2015,Amazon UK Retail,40.85,Conservation & Preservation Materials
10/11/2015,LONDON MIDLAND TIC,82,Travel & Subsistence
10/11/2015,THE ROYAL TOBY COMPLEX,116.84,Travel & Subsistence
10/11/2015,NPL*NEW PIG LTD,145.2,Conservation & Preservation Materials
10/11/2015,TALAS,149.4,Conservation & Preservation Materials
11/11/2015,LONDON OVERGROUND-,4,Travel & Subsistence
11/11/2015,FAST KEY SERVICES,6.74,General stationery & supplies
11/11/2015,CONVENIENCE CHEQUE FEE,17.7,Bank Charges
11/11/2015,OYSTER AUTOTOPUP,20,Travel & Subsistence
11/11/2015,OYSTER AUTOTOPUP,20,Travel & Subsistence
11/11/2015,Amazon Svcs Europe SAR,22.8,Library
11/11/2015,LUL TICKET MACHINE,30,Travel & Subsistence
11/11/2015,GREEN MAGIC CO,31.56,General stationery & supplies
11/11/2015,INSIGHT SECURITY,100.73,Furniture and equipment
12/11/2015,Amazon UK Marketplace,8.8,Library
12/11/2015,TNA BOOKSHOP,10.39,General stationery & supplies
12/11/2015,OYSTER AUTOTOPUP,20,Travel & Subsistence
12/11/2015,Amazon UK Marketplace,54.56,Library
12/11/2015,COMMS EXP,59.1,Minor IT
12/11/2015,INSIGHT SECURITY,124.73,Furniture and equipment
12/11/2015,ROYAL MAIL,444.4,Stock - Kew shop  (Bookshop)
12/11/2015,WWW.BATTERYTRADER.COM,450.9,Minor IT
13/11/2015,Amazon UK Marketplace,9.93,IT Maintenance & Support - Software
13/11/2015,Amazon UK Retail,17.99,IT Maintenance & Support - Software
13/11/2015,OYSTER BUS AUTOTOP,20,Travel & Subsistence
13/11/2015,OYSTER AUTOTOPUP,20,Travel & Subsistence
13/11/2015,PAYPAL *WEBSCRIBE,30,Professional staff subscriptions
13/11/2015,OYSTER AUTOTOPUP,40,Travel & Subsistence
13/11/2015,OYSTER AUTOTOPUP,40,Travel & Subsistence
13/11/2015,ESSENTRA PACKAGING,45.6,General stationery & supplies
13/11/2015,MORPLAN LTD,53.04,Shop Non-Stock Items
13/11/2015,Amazon UK Marketplace,55.96,IT Maintenance & Support - Software
13/11/2015,TILLROLLSDIRECT.CO,72.54,Shop Non-Stock Items
13/11/2015,DIGITAL 2000,76.56,Shop Non-Stock Items
13/11/2015,ARCHIVES AND RECORDS A,144,Professional staff subscriptions
13/11/2015,Amazon UK Retail,310.97,IT Maintenance & Support - Software
15/11/2015,OYSTER BUS AUTOTOP,20,Travel & Subsistence
15/11/2015,MARY ARCHES CAR PARK/UPT,22.6,Travel & Subsistence
15/11/2015,ABODE EXETER,25,Travel & Subsistence
16/11/2015,M6 TOLL,5.5,Travel & Subsistence
16/11/2015,PREMIER INN44014775,6,Travel & Subsistence
16/11/2015,PREMIER INN44014775,10.3,Travel & Subsistence
16/11/2015,WEST COAST TRAINS,12.2,Travel & Subsistence
16/11/2015,PREMIER INN44014775,12.24,Travel & Subsistence
16/11/2015,XC TRAINS LTD,15.6,Travel & Subsistence
16/11/2015,Amazon UK Marketplace,24.98,Minor IT
16/11/2015,THE POPPY APPEAL,27,Advertising
16/11/2015,PC WORLD ONLINE,69.99,Minor IT
16/11/2015,FRANCIS BOUTLE PUBLISH,84,Stock - Kew shop  (Bookshop)
16/11/2015,WORLDWIDE MAGAZINE DIS,91.42,Stock - Kew shop  (Bookshop)
16/11/2015,COUNTRYSIDEBOOKS.,151.53,Stock - Kew shop  (Bookshop)
16/11/2015,CANNS DOWN PRESS LTD,162.48,Stock - Kew shop  (Bookshop)
16/11/2015,FANSHAW BOOKS LIMITED,267.06,Stock - Kew shop  (Bookshop)
16/11/2015,BOON BOOKS,355,Stock - Kew shop  (Bookshop)
16/11/2015,CUSTOM WORKS,407.4,Stock - Kew shop  (Bookshop)
17/11/2015,CONVENIENCE CHEQUE FEE,5.36,Bank Charges
17/11/2015,M6 TOLL,5.5,Travel & Subsistence
17/11/2015,LOROL - KEW GARDENS,9.6,Travel & Subsistence
17/11/2015,B&Q,10,Furniture and equipment
17/11/2015,M&S SIMPLY FOOD - SSP,11.17,Travel & Subsistence
17/11/2015,FAST KEY SERVICES,12.26,General stationery & supplies
17/11/2015,BP MOTO HESTON EAST,42.87,Travel & Subsistence
17/11/2015,PORTAL HOTEL G & C CLUB,46.9,Travel & Subsistence
17/11/2015,BUNZL CLEANING & HYGIE,54.48,Cleaning
17/11/2015,AVIS LONDON,61.97,Travel & Subsistence
17/11/2015,WWW.TENNANTSUK.COM,63.48,Record Copyin: Store purchases
17/11/2015,MUSEUMSASSC,189,Subscriptions
17/11/2015,PRESERVATION EQUIP,190.32,General stationery & supplies
17/11/2015,Stock - Books,267.76,Stock - Kew shop  (Bookshop)
17/11/2015,XMA LTD,378.94,Record Copyin: Store purchases
18/11/2015,Amazon UK Marketplace,3.85,Advertising
18/11/2015,Amazon UK Marketplace,3.99,Advertising
18/11/2015,Amazon UK Marketplace,8.5,Advertising
18/11/2015,Amazon UK Marketplace,9.24,Library
18/11/2015,LOROL - KEW GARDENS,9.6,Travel & Subsistence
18/11/2015,OYSTER AUTOTOPUP,20,Travel & Subsistence
18/11/2015,LUL TICKET MACHINE,30,Travel & Subsistence
18/11/2015,REALLY USEFUL PROD,34.21,General stationery & supplies
18/11/2015,GWR WORCESTER OT,82,Travel & Subsistence
18/11/2015,WWW.IDEALWASHROOMS.CO.,173.94,General stationery & supplies
18/11/2015,Amazon UK Retail,228.33,IT Maintenance & Support - Software
18/11/2015,WWW.TONERGIANT.CO.UK,369.96,Record Copyin: Store purchases
19/11/2015,CONVENIENCE CHEQUE FEE,2.5,Bank Charges
19/11/2015,CONVENIENCE CHEQUE FEE,2.54,Bank Charges
19/11/2015,Amazon UK Marketplace,6,Advertising
19/11/2015,LOROL - KEW GARDENS,9.6,Travel & Subsistence
19/11/2015,GITHUB.COM  61N1W,16.95,Minor IT
19/11/2015,OYSTER BUS AUTOTOP,20,Travel & Subsistence
19/11/2015,LONDON OVERGROUND-,20,Travel & Subsistence
19/11/2015,LUL TICKET MACHINE,30,Travel & Subsistence
19/11/2015,XMA LTD,38.77,General stationery & supplies
19/11/2015,XMA LTD,38.77,General stationery & supplies
19/11/2015,XMA LTD,38.77,General stationery & supplies
19/11/2015,FEDEX ECOMM,56.28,Record Copy: other current exp
19/11/2015,WWW.LEEDS.AC.UK,60,Conferences and Seminars: TNA Attending
19/11/2015,Stock - Books,105.62,Stock - Kew shop  (Bookshop)
19/11/2015,Stock - Books,127,Stock - Kew shop  (Bookshop)
19/11/2015,FD SOLUTIONS LTD,214.7,Fast Copy/ External printing (ESD)
19/11/2015,FD SOLUTIONS LTD,354.46,Fast Copy/ External printing (ESD)
20/11/2015,CONVENIENCE CHEQUE FEE,2.5,Bank Charges
20/11/2015,CONVENIENCE CHEQUE FEE,2.76,Bank Charges
20/11/2015,CONVENIENCE CHEQUE FEE,3.2,Bank Charges
20/11/2015,MARKS & SPENCER,9.45,Hospitality
20/11/2015,OYSTER AUTOTOPUP,20,Travel & Subsistence
20/11/2015,OYSTER AUTOTOPUP,20,Travel & Subsistence
20/11/2015,OYSTER AUTOTOPUP,20,Travel & Subsistence
20/11/2015,OYSTER AUTOTOPUP,20,Travel & Subsistence
20/11/2015,CONVENIENCE CHEQUE FEE,23.71,Bank Charges
20/11/2015,ROSEHILL HOUSE HOTEL,50.65,Travel & Subsistence
20/11/2015,ROSEHILL HOUSE HOTEL,52.65,Travel & Subsistence
20/11/2015,Stock - Books,80,Stock - Kew shop  (Bookshop)
20/11/2015,Stock - Books,138,Stock - Kew shop  (Bookshop)
20/11/2015,Stock - Books,160,Stock - Kew shop  (Bookshop)
20/11/2015,WWW OPPASSESSMENT EU COM,237,Training
21/11/2015,OYSTER AUTOTOPUP,20,Travel & Subsistence
21/11/2015,OYSTER AUTOTOPUP,20,Travel & Subsistence
21/11/2015,OYSTER AUTOTOPUP,20,Travel & Subsistence
21/11/2015,Amazon UK Marketplace,57,Library
23/11/2015,CONVENIENCE CHEQUE FEE,2.5,Bank Charges
23/11/2015,CONVENIENCE CHEQUE FEE,2.5,Bank Charges
23/11/2015,LUL TICKET MACHINE,9.6,Travel & Subsistence
23/11/2015,OYSTER AUTOTOPUP,20,Travel & Subsistence
23/11/2015,OYSTER AUTOTOPUP,20,Travel & Subsistence
23/11/2015,OYSTER AUTOTOPUP,20,Travel & Subsistence
23/11/2015,Stock - Books,60,Stock - Kew shop  (Bookshop)
23/11/2015,Stock - Books,60,Stock - Kew shop  (Bookshop)
23/11/2015,Europcar.com/uk,108.41,Vehicles Hire
23/11/2015,WWW OPPASSESSMENT EU COM,142.2,Training
24/11/2015,LUL TICKET MACHINE,9.6,Travel & Subsistence
24/11/2015,NEW SOUTHERN RAILW,20,Travel & Subsistence
24/11/2015,Amazon UK Retail,24.25,General stationery & supplies
24/11/2015,WWW.LAMPSHOPONLINE.CO.UK,26.63,General stationery & supplies
24/11/2015,UNIVERSITY OF LONDON,35,Conferences and Seminars: TNA Attending
24/11/2015,UNIVERSITY OF LONDON,35,Training
24/11/2015,MONGODB  INC.,245.84,Minor IT
25/11/2015,CONVENIENCE CHEQUE FEE,2.5,Bank Charges
25/11/2015,LUL TICKET MACHINE,9.6,Travel & Subsistence
25/11/2015,BALSAMIQ,16.42,Minor Software
25/11/2015,OYSTER AUTOTOPUP,20,Travel & Subsistence
25/11/2015,OYSTER AUTOTOPUP,20,Travel & Subsistence
25/11/2015,Amazon UK Marketplace,20.25,General stationery & supplies
25/11/2015,WWW.TICKETS.RMG.CO.UK,21.6,Conferences and Seminars: TNA Attending
25/11/2015,Stock - Books,27.52,Stock - Kew shop  (Bookshop)
25/11/2015,LUL TICKET MACHINE,30,Travel & Subsistence
25/11/2015,MARKS & SPENCER,30.89,"Conferences, Seminars & Exhibitions: TNA Hosting"
25/11/2015,UNIVERSITY OF LONDON,35,Conferences and Seminars: TNA Attending
25/11/2015,Amazon UK Marketplace,42.24,General stationery & supplies
25/11/2015,WWW.ARKWILDLIFE.CO.UK,57,Repairs and Maintenance - Planned
25/11/2015,HOLIDAY INN PORTSM,78.05,Travel & Subsistence
25/11/2015,ASKEWS LIBRARY SER,91.73,Library
25/11/2015,TRANS MEDIA TECHNOLOGY,156,Transcription
25/11/2015,ASKEWS LIBRARY SER,185.79,Library
26/11/2015,RINGGO,3.1,Travel & Subsistence
26/11/2015,TNA DOCUMENTS ONLINE,3.3,General stationery & supplies
26/11/2015,BELLROCK PROPERTY&,4.5,Travel & Subsistence
26/11/2015,VALUE CABS LTD,10.9,Travel & Subsistence
26/11/2015,DELIFONSECA,25.2,Travel & Subsistence
26/11/2015,FAST KEY SERVICES LTD,33.74,General stationery & supplies
26/11/2015,UNIVERSITY OF LONDON,35,Conferences and Seminars: TNA Attending
26/11/2015,G RYDER & CO LTD,38.4,Conservation & Preservation Materials
26/11/2015,HOLIDAY INN PORTSM,57.2,Travel & Subsistence
26/11/2015,GWR WORCESTER OT,82,Travel & Subsistence
26/11/2015,WWW.GREENBUYING.CO.UK,270.29,Fast Copy/ External printing (ESD)
27/11/2015,M6 TOLL,5.5,Travel & Subsistence
27/11/2015,JURYS INN,8.1,Travel & Subsistence
27/11/2015,LIVERPOOL CITY COUNCIL,12,Travel & Subsistence
27/11/2015,TEXDOWNSSSTN,31.88,Travel & Subsistence
27/11/2015,ESSO MOTO CHERWELL VALLEY,34.24,Travel & Subsistence
27/11/2015,LONDON MIDLAND TIC,82,Travel & Subsistence
27/11/2015,AVIS LUTON,96.91,Vehicles Hire
27/11/2015,PAPADELI FOODS LTD,224.58,Conferences and Seminars: TNA Attending
27/11/2015,BRITISH STANDARDS,307.8,Library
27/11/2015,THAWTE,355.52,IT Maintenance & Support - Software
28/11/2015,WESTEND PETROL STATION,25.95,Travel & Subsistence
28/11/2015,Europcar,32.24,Vehicles Hire
30/11/2015,M6 TOLL,5.5,Travel & Subsistence
30/11/2015,M6 TOLL,5.5,Travel & Subsistence
30/11/2015,Amazon Svcs Europe SAR,6.66,General stationery & supplies
30/11/2015,Amazon UK Marketplace,9.46,General stationery & supplies
30/11/2015,Amazon UK Marketplace,9.99,General stationery & supplies
30/11/2015,Amazon Svcs Europe SAR,19.8,Library
30/11/2015,NORTH WEST WALES M,24,Travel & Subsistence
30/11/2015,WWW.IWEB-HOSTING.CO.UK,38.4,IT Maintenance & Support - Software
30/11/2015,OYSTER RENEW WEB,50,Travel & Subsistence
30/11/2015,WWW.BERTRAMS.COM,65.63,Subscriptions
30/11/2015,CITYSPRINT,81.54,Courier
01/12/2015,M6 TOLL,5.5,Travel & Subsistence
01/12/2015,M6 TOLL,5.5,Travel & Subsistence
01/12/2015,OYSTER AUTOTOPUP,20,Travel & Subsistence
01/12/2015,OYSTER AUTOTOPUP,20,Travel & Subsistence
01/12/2015,OYSTER AUTOTOPUP,20,Travel & Subsistence
01/12/2015,NEW SOUTHERN RAILW,20,Travel & Subsistence
01/12/2015,OYSTER AUTOTOPUP,20,Travel & Subsistence
01/12/2015,ISSUU,26.75,Advertising
01/12/2015,FEDEX ECOMM,34.21,Contracted Services
01/12/2015,BRENTFORD SERVICE,37.42,Travel & Subsistence
01/12/2015,BRENTFORD SERVICE,39.44,Travel & Subsistence
01/12/2015,CCI-ICC,64.92,Library
01/12/2015,PORTAL HOTEL G & C CLUB,162,Travel & Subsistence
01/12/2015,PAYPAL *GMWGABIKLEI,224.43,Conservation & Preservation Materials
02/12/2015,ITUNES.COM/BILL,2.99,Minor Software
02/12/2015,TOTAL REGISTRATION,14.38,IT Maintenance & Support - Software
02/12/2015,Amazon UK Marketplace,15.51,Training
02/12/2015,TOTAL REGISTRATION,19.19,IT Maintenance & Support - Software
02/12/2015,OYSTER AUTOTOPUP,20,Travel & Subsistence
02/12/2015,OYSTER AUTOTOPUP,20,Travel & Subsistence
02/12/2015,TOTAL REGISTRATION,20.39,IT Maintenance & Support - Software
02/12/2015,TEXDOWNSSSTN,21.5,Travel & Subsistence
02/12/2015,Amazon UK Marketplace,25.38,Training
02/12/2015,LUL TICKET MACHINE,30,Travel & Subsistence
02/12/2015,TNA BOOKSHOP,35.2,Library
02/12/2015,Amazon UK Marketplace,44.56,Training
02/12/2015,NORSE COMMERCIAL S,45.24,Furniture and equipment
02/12/2015,AVIS LUTON,47.54,Vehicles Hire
02/12/2015,AVIS LONDON,97.84,Travel & Subsistence
02/12/2015,AVIS LONDON,97.84,Travel & Subsistence
03/12/2015,CONVENIENCE CHEQUE FEE,3.2,Bank Charges
03/12/2015,CONVENIENCE CHEQUE FEE,3.98,Bank Charges
03/12/2015,LUL TICKET MACHINE,4.8,Travel & Subsistence
03/12/2015,OYSTER BUS AUTOTOP,20,Travel & Subsistence
03/12/2015,Amazon Svcs Europe SAR,20.49,Training
03/12/2015,LUL TICKET MACHINE,30,Travel & Subsistence
03/12/2015,LUL TICKET MACHINE,30,Travel & Subsistence
03/12/2015,Amazon UK Retail,38.15,General stationery & supplies
03/12/2015,OYSTER AUTOTOPUP,40,Travel & Subsistence
03/12/2015,POST SAFE LTD,46.76,Record Copyin: Store purchases
03/12/2015,GREENHAM TRADING LTD,64.18,Furniture and equipment
03/12/2015,RK PHOTOGRAPHICS,118.47,Furniture and equipment
03/12/2015,Stock - Books,160,Stock - Kew shop  (Bookshop)
03/12/2015,PAYPAL *COLIN,185,Subscriptions
03/12/2015,Stock - Books,198.9,Stock - Kew shop  (Bookshop)
03/12/2015,PRESERVATION EQUIP,316.68,Conservation & Preservation Materials
03/12/2015,WWW.TONERGIANT.CO.UK,449.45,Record Copyin: Store purchases
04/12/2015,visit.auschwitz.org,6.98,Travel & Subsistence
04/12/2015,LONDON OVERGROUND-,10,Travel & Subsistence
04/12/2015,APPLE ONLINE STORE GBP,15,Advertising
04/12/2015,OYSTER BUS AUTOSET,20,Travel & Subsistence
04/12/2015,OYSTER AUTOTOPUP,20,Travel & Subsistence
04/12/2015,UNIVERSITY OF LONDON,35,Training
04/12/2015,Amazon UK Marketplace,44.56,Training
04/12/2015,WWW.BERTRAMS.COM,83.13,Subscriptions
04/12/2015,QUADRILECT LTD,93.6,Conferences and Seminars: TNA Attending
04/12/2015,GMAV.CO.UK,132,Furniture and equipment
05/12/2015,OYSTER AUTOTOPUP,20,Travel & Subsistence
05/12/2015,OYSTER AUTOTOPUP,20,Travel & Subsistence
07/12/2015,M6 TOLL,5.5,Travel & Subsistence
07/12/2015,M6 TOLL,5.5,Travel & Subsistence
07/12/2015,OYSTER RENEW WEB,10,Travel & Subsistence
07/12/2015,CONVENIENCE CHEQUE FEE,10.93,Bank Charges
07/12/2015,Amazon UK Retail,20,Library
07/12/2015,BT BILL PAYMENT 3,61.82,Telecommunications
07/12/2015,WORLDWIDE MAGAZINE DIS,98.43,Stock - Kew shop  (Bookshop)
07/12/2015,GRADKO INTERNATION,98.63,Furniture and equipment
07/12/2015,Amazon UK Retail,139.44,Furniture and equipment
07/12/2015,WWW.NAVAL-MILITARY-PRE,227.1,Stock - Kew shop  (Bookshop)
07/12/2015,R3 POLYGON UK LTD,276,Contracted Services
07/12/2015,MUSEUMS & GALLERIES LT,293.9,Stock - Kew shop  (Bookshop)
07/12/2015,I F CARDBOARD CREA,397.66,Stock - Kew shop  (Bookshop)
07/12/2015,CONSERVATION BY DE,478.62,Conservation & Preservation Materials
08/12/2015,WYCOMBE DISTRICT COUNC,1.4,Travel & Subsistence
08/12/2015,CONVENIENCE CHEQUE FEE,3.6,Stock - Kew shop  (Bookshop)
08/12/2015,M6 TOLL,5.5,Travel & Subsistence
08/12/2015,M6 TOLL,5.5,Travel & Subsistence
08/12/2015,WWW.TATE.ORG.UK,20,Conferences and Seminars: TNA Attending
08/12/2015,OYSTER AUTOTOPUP,20,Travel & Subsistence
08/12/2015,LONDON OVERGROUND-,20,Travel & Subsistence
08/12/2015,BRENTFORD SERVICE,36.27,Travel & Subsistence
08/12/2015,BP MOTO HESTON EAST,44.56,Travel & Subsistence
08/12/2015,TNA BOOKSHOP,48,Hospitality
08/12/2015,AVIS LONDON,73.69,Travel & Subsistence
08/12/2015,XMA LTD,75.74,Record Copyin: Store purchases
08/12/2015,LONDON MIDLAND TIC,82,Travel & Subsistence
08/12/2015,VIRGINTRAINSEC AVB,86.7,Travel & Subsistence
08/12/2015,AVIS LONDON,89.36,Travel & Subsistence
08/12/2015,ADVANCED LABELLING,92.74,General stationery & supplies
08/12/2015,PAYPAL *WLCOLLERLTD,124.87,Record Copyin: Store purchases
08/12/2015,Europcar.com/uk,176.35,Vehicles Hire
08/12/2015,Stock - Books,180,Stock - Kew shop  (Bookshop)
08/12/2015,PORTAL HOTEL G & C CLUB,184.2,Travel & Subsistence
08/12/2015,GITHUB.COM  9FBG5,206.54,Minor IT
08/12/2015,WEBSHOPKUDK,253.1,Conferences and Seminars: TNA Attending
09/12/2015,LONDON OVERGROUND-,8,Travel & Subsistence
09/12/2015,LUL TICKET MACHINE,9.6,Travel & Subsistence
09/12/2015,GARFUNKELS,13.8,Travel & Subsistence
09/12/2015,POD ANIOLAMI RESTAURAC,60.91,Travel & Subsistence
09/12/2015,NEALES TAXIS LTD,133,Travel & Subsistence
09/12/2015,VWR INTERNATIONAL LTD,286.98,Furniture and equipment
10/12/2015,Stalexport Autostrada,1.73,Travel & Subsistence
10/12/2015,Stalexport Autostrada,1.73,Travel & Subsistence
10/12/2015,BP-CHRZANOW,2.1,Travel & Subsistence
10/12/2015,GO METRO GARE DU MIDI,5.99,Travel & Subsistence
10/12/2015,Amazon UK Marketplace,12.62,Conservation & Preservation Materials
10/12/2015,BADGEMASTER LTD,16.34,General stationery & supplies
10/12/2015,OYSTER AUTOTOPUP,20,Travel & Subsistence
10/12/2015,OLDSMOBILE PUB LUNCH-R,26.15,Travel & Subsistence
10/12/2015,LUL TICKET MACHINE,30,Travel & Subsistence
10/12/2015,NOVOTEL BRUXELLES TOU,30.19,Travel & Subsistence
10/12/2015,HOLIDAY INN PORTSM,44.86,Travel & Subsistence
10/12/2015,XMA LTD,150.26,General stationery & supplies
11/12/2015,Amazon UK Marketplace,3.5,Record Copyin: Store purchases
11/12/2015,GO METRO GARE DU MIDI,5.6,Travel & Subsistence
11/12/2015,Amazon UK Retail,10,General stationery & supplies
11/12/2015,PROTON Stacja Paliw,10.9,Travel & Subsistence
11/12/2015,OYSTER AUTOTOPUP,20,Travel & Subsistence
11/12/2015,LUL TICKET MACHINE,20,Travel & Subsistence
11/12/2015,OYSTER AUTOTOPUP,20,Travel & Subsistence
11/12/2015,Amazon UK Retail,22.81,General stationery & supplies
11/12/2015,Amazon UK Marketplace,25,General stationery & supplies
11/12/2015,TEXDOWNSSSTN,26.54,Travel & Subsistence
11/12/2015,INTER BEST - 97,40.02,Vehicles Hire
11/12/2015,THE PLASTIC BOX COMPAN,58.75,General stationery & supplies
11/12/2015,KRK AIRPORT SERVICES,78.38,Travel & Subsistence
11/12/2015,WWW.THIRSTYCUPS.COM,337.08,General stationery & supplies
12/12/2015,Amazon UK Marketplace,39.74,Record Copyin: Store purchases
13/12/2015,OYSTER AUTOTOPUP,40,Travel & Subsistence
13/12/2015,NNG*NINGSOCIALWEBSITES,216,Minor Software
14/12/2015,PAYPAL *AUDIONETWOR,2,Audio-Visual Productions
14/12/2015,CONVENIENCE CHEQUE FEE,2.5,Bank Charges
14/12/2015,Stock - Books,32,Stock - Kew shop  (Bookshop)
14/12/2015,Amazon UK Retail,52.99,General stationery & supplies
14/12/2015,WWW.TONERGIANT.CO.UK,113.64,General stationery & supplies
14/12/2015,CONSERVATION BY DE,452.64,Conservation & Preservation Materials
15/12/2015,LONDON MIDLAND TIC,82,Travel & Subsistence
16/12/2015,LONDON OVERGROUND-,20,Travel & Subsistence
16/12/2015,CONVENIENCE CHEQUE FEE,37.1,Bank Charges
16/12/2015,CRAYFORD TUBES LTD,82.99,Record Copyin: Store purchases
16/12/2015,Amazon UK Marketplace,167.68,Record Copyin: Store purchases
17/12/2015,CONVENIENCE CHEQUE FEE,2.5,Bank Charges
17/12/2015,CONVENIENCE CHEQUE FEE,2.5,Bank Charges
17/12/2015,LONDON OVERGROUND-,9,Travel & Subsistence
17/12/2015,Stock - Books,20,Stock - Kew shop  (Bookshop)
17/12/2015,OYSTER AUTOTOPUP,20,Travel & Subsistence
17/12/2015,OYSTER BUS AUTOTOP,20,Travel & Subsistence
17/12/2015,SURVEYMONKEY.COM,26,IT Maintenance & Support - Software
17/12/2015,Stock - Books,42,Stock - Kew shop  (Bookshop)
17/12/2015,Amazon UK Retail,44.95,Training
17/12/2015,XMA LTD,54.29,General stationery & supplies
17/12/2015,XMA LTD,99.55,General stationery & supplies
17/12/2015,Amazon UK Marketplace,104.1,Repository: stationery
17/12/2015,WWW.TICKETS.VAM.AC.UK,195,Training
18/12/2015,Amazon UK Marketplace,6.25,General stationery & supplies
18/12/2015,OYSTER AUTOTOPUP,20,Travel & Subsistence
18/12/2015,WWW.LEEDSTRINITY.AC.UK,120,Conferences and Seminars: TNA Attending
20/12/2015,TOTAL REGISTRATION,14.38,IT Maintenance & Support - Software
20/12/2015,OYSTER AUTOTOPUP,20,Travel & Subsistence
21/12/2015,NEW CENTURY CARS,22,Travel & Subsistence
21/12/2015,Amazon UK Marketplace,44.56,Training
21/12/2015,XMA LTD,75.13,General stationery & supplies
21/12/2015,MORPLAN LTD,245.7,General stationery & supplies
22/12/2015,RINGGO,1.05,Travel & Subsistence
22/12/2015,BUYABATTERY CO UK,3.23,General stationery & supplies
22/12/2015,RINGGO,7.9,Travel & Subsistence
22/12/2015,WWW.TICKETS.VAM.AC.UK,35,Training
24/12/2015,WYCOMBE DISTRICT COUNC,1.9,Travel & Subsistence
25/12/2015,BALSAMIQ,16.64,Minor Software
25/12/2015,OYSTER BUS AUTOTOP,40,Travel & Subsistence
29/12/2015,WWW.IWEB-HOSTING.CO.UK,38.4,IT Maintenance & Support - Software
30/12/2015,UNIVERSITY OF LONDON,35,Conferences and Seminars: TNA Attending
01/01/2016,CONVENIENCE CHEQUE FEE,2.5,Bank Charges
01/01/2016,ISSUU,27.12,Advertising
01/01/2016,Stock - Books,37.67,Stock - Kew shop  (Bookshop)
02/01/2016,GOOGLE *SVCSAPPS_NATIO,9.36,IT Maintenance & Support - Software
04/01/2016,WWW.VIKING-DIRECT.CO.U,3.48,Conservation & Preservation Materials
04/01/2016,WWW.VIKING-DIRECT.CO.U,14.39,Conservation & Preservation Materials
04/01/2016,GITHUB.COM  61N1W,17.52,Subscriptions
04/01/2016,Amazon UK Marketplace,28.3,Training
04/01/2016,LONDON MIDLAND TIC,82.8,Travel & Subsistence
04/01/2016,WWW.AAT-ORG.UK,143,Professional staff subscriptions
05/01/2016,TNA BOOKSHOP,10.8,General stationery & supplies
05/01/2016,OYSTER ISSUE WEB,15,Travel & Subsistence
05/01/2016,OYSTER ISSUE WEB,15,Travel & Subsistence
05/01/2016,Amazon UK Retail,62.35,Library
05/01/2016,CRAYFORD TUBES LTD,88.25,Record Copyin: Store purchases
05/01/2016,WWW.CLEVERBRIDGE.NET,488.01,Furniture and equipment
06/01/2016,CONVENIENCE CHEQUE FEE,3.84,Bank Charges
06/01/2016,LUL TICKET MACHINE,30,Travel & Subsistence
06/01/2016,WEX PHOTOGRAPHIC,46.97,Record Copy: other current exp
06/01/2016,GBICS COM LTD,81.54,Furniture and equipment
06/01/2016,I F CARDBOARD CREA,180,Stock - Kew shop  (Bookshop)
06/01/2016,Stock - Books,192.24,Stock - Kew shop  (Bookshop)
06/01/2016,CATH TATE CARDS LTD,200.88,Stock - Kew shop  (Bookshop)
06/01/2016,WWW.NAVAL-MILITARY-PRE,312.3,Stock - Kew shop  (Bookshop)
06/01/2016,WESTAIR REPRODUCTIONS,387.05,Stock - Kew shop  (Bookshop)
06/01/2016,ART ANGELS PUBLISHING,391.68,Stock - Kew shop  (Bookshop)
07/01/2016,CONVENIENCE CHEQUE FEE,2.5,Bank Charges
07/01/2016,Amazon UK Marketplace,2.55,General stationery & supplies
07/01/2016,OYSTER RENEW WEB,20,Travel & Subsistence
07/01/2016,Amazon UK Marketplace,35.22,Conservation & Preservation Materials
07/01/2016,BT BILL PAYMENT 3,58.64,Telecommunications
07/01/2016,Stock - Books,108,Stock - Kew shop  (Bookshop)
07/01/2016,PRESERVATION EQUIP,148.44,Conservation & Preservation Materials
07/01/2016,CLOUD MGR THE NATI...,167.32,Subscriptions
08/01/2016,Amazon UK Marketplace,13.35,General stationery & supplies
08/01/2016,Amazon UK Marketplace,14.04,Conservation & Preservation Materials
08/01/2016,OYSTER AUTOTOPUP,20,Travel & Subsistence
08/01/2016,EB 2016 WORKING INTER,35,Conferences and Seminars: TNA Attending
08/01/2016,EB DREAMS ARE MY REAL,46.56,Conferences and Seminars: TNA Attending
09/01/2016,OYSTER AUTOTOPUP,20,Travel & Subsistence
09/01/2016,OYSTER AUTOTOPUP,20,Travel & Subsistence
11/01/2016,CONVENIENCE CHEQUE FEE,3.25,Bank Charges
11/01/2016,CONVENIENCE CHEQUE FEE,7.18,Bank Charges
11/01/2016,Amazon UK Marketplace,9.99,General stationery & supplies
11/01/2016,BRENTFORD SERVICE,21,Travel & Subsistence
11/01/2016,Amazon UK Marketplace,38.55,Training
11/01/2016,NATIONAL MUSEUMS & GAL,78,Copyright
11/01/2016,Stock - Books,162.44,Stock - Kew shop  (Bookshop)
11/01/2016,Stock - Books,358.75,Stock - Kew shop  (Bookshop)
12/01/2016,CONVENIENCE CHEQUE FEE,6.4,Bank Charges
12/01/2016,LONDON OVERGROUND-,15,Travel & Subsistence
12/01/2016,LONDON OVERGROUND-,20,Travel & Subsistence
12/01/2016,WWW.ARKWILDLIFE.CO.UK,59.25,Repairs and Maintenance - Planned
12/01/2016,LONDON MIDLAND TIC,82.8,Travel & Subsistence
12/01/2016,PAYPAL *NLS,85,Training
12/01/2016,Stock - Books,320,Stock - Kew shop  (Bookshop)
13/01/2016,CONVENIENCE CHEQUE FEE,23.19,Bank Charges
13/01/2016,WWW.BERTRAMS.COM,35,Subscriptions
13/01/2016,BOYDELL & BREWER LTD,50,Subscriptions
13/01/2016,SCIENTIFICLABS.CO.,70.86,Conservation & Preservation Materials
13/01/2016,PAYPAL *DROPBOXIREL,79,Subscriptions
13/01/2016,EB ICON CONFERENCE 20,275,Conferences and Seminars: TNA Attending
13/01/2016,EB ICON CONFERENCE 20,275,Conferences and Seminars: TNA Attending
13/01/2016,EB ICON CONFERENCE 20,275,Conferences and Seminars: TNA Attending
14/01/2016,TNA DOCUMENTS ONLINE,8.24,General stationery & supplies
14/01/2016,TNA BOOKSHOP,17.6,Library
14/01/2016,NATIONAL ARCHIVES 4,24,General stationery & supplies
14/01/2016,Amazon Svcs Europe SAR,24.63,Library
14/01/2016,WWW.STANSTEDAIRPORT.CO,42.99,Travel & Subsistence
14/01/2016,INT ACADEMIC PROJS,150,Training
14/01/2016,INT ACADEMIC PROJS,295,Training
15/01/2016,LONDON OVERGROUND-,5,Travel & Subsistence
15/01/2016,UPPER CRUST,6.14,Travel & Subsistence
15/01/2016,RINGGO,7.9,Travel & Subsistence
15/01/2016,Amazon UK Retail,23.26,Conservation & Preservation Materials
15/01/2016,EB 2016 WORKING INTER,35,Conferences and Seminars: TNA Attending
15/01/2016,WWW.SHEETPLASTICS.CO.U,47.58,General stationery & supplies
15/01/2016,DATACAMP INC.,64.69,Training
15/01/2016,ASKEWS LIBRARY SER,93.33,Library
15/01/2016,THE MICROFILM SHOP,98.4,General stationery & supplies
15/01/2016,Amazon UK Marketplace,160.5,General stationery & supplies
15/01/2016,EB ICON CONFERENCE 20,275,Training
16/01/2016,EB ICON CONFERENCE 20,275,Training
16/01/2016,EB ICON CONFERENCE 20,275,Training
17/01/2016,Amazon UK Marketplace,4.69,General stationery & supplies
17/01/2016,SURVEYMONKEY.COM,26,IT Maintenance & Support - Software
18/01/2016,BOOKPOINT LIMITED,2.95,General stationery & supplies
18/01/2016,M6 TOLL,5.5,Travel & Subsistence
18/01/2016,M6 TOLL,5.5,Travel & Subsistence
18/01/2016,M6 TOLL,5.5,Travel & Subsistence
18/01/2016,Amazon UK Marketplace,5.83,Conservation & Preservation Materials
18/01/2016,Amazon UK Retail,14.37,General stationery & supplies
18/01/2016,Amazon UK Retail,16.04,Library
18/01/2016,BRENTFORD SERVICE,30.37,Travel & Subsistence
18/01/2016,THE CROWN HOTEL,39.6,Travel & Subsistence
18/01/2016,FRANCIS BOUTLE PUBLISH,53.96,Stock - Kew shop  (Bookshop)
18/01/2016,WORLDWIDE MAGAZINE DIS,64.01,Stock - Kew shop  (Bookshop)
18/01/2016,WWW.NAVAL-MILITARY-PRE,64.8,Stock - Kew shop  (Bookshop)
18/01/2016,ABBYY ONLINE STORE ASK,99,Subscriptions
18/01/2016,COUNTRYSIDEBOOKS.,112.44,Stock - Kew shop  (Bookshop)
18/01/2016,WWW.HALFMOONBAY.CO.UK,137.88,Stock - Kew shop  (Bookshop)
18/01/2016,WWW.THEBOOKSELLER.COM,196,General stationery & supplies
18/01/2016,FLEXTRACTION LTD,420,Contracted Services
19/01/2016,CONVENIENCE CHEQUE FEE,2.5,Bank Charges
19/01/2016,M6 TOLL,5.5,Travel & Subsistence
19/01/2016,BP MOTO HESTON EAST,8,Travel & Subsistence
19/01/2016,OYSTER AUTOTOPUP,20,Travel & Subsistence
19/01/2016,OYSTER AUTOTOPUP,20,Travel & Subsistence
19/01/2016,LUL TICKET MACHINE,30,Travel & Subsistence
19/01/2016,Amazon UK Marketplace,39.1,General stationery & supplies
19/01/2016,BP OXFORD SERVICE AREA,40,Travel & Subsistence
19/01/2016,Amazon Svcs Europe SAR,42.1,General stationery & supplies
19/01/2016,Amazon UK Marketplace,58.21,General stationery & supplies
19/01/2016,LONDON MIDLAND TIC,82.8,Travel & Subsistence
19/01/2016,Stock - Books,100.08,Stock - Kew shop  (Bookshop)
19/01/2016,BUNZL CLEANING & HYGIE,111.3,General stationery & supplies
19/01/2016,TNA BOOKSHOP,124.68,General stationery & supplies
19/01/2016,PRESERVATION EQUIP,169.5,Repository: stationery
19/01/2016,WWW.SECOL.CO.UK,221.7,Repository: stationery
19/01/2016,BLANC BRASSERIE,223.26,Travel & Subsistence
19/01/2016,WWW.THIRSTYCUPS.COM,337.08,General stationery & supplies
19/01/2016,XMA LTD,378.94,Record Copyin: Store purchases
19/01/2016,OCTAGON BOOKS WHOL,476.65,Stock - Kew shop  (Bookshop)
20/01/2016,MOTHERCARE WORLD,5,General stationery & supplies
20/01/2016,MERCURE MANCHESTER,7.7,Travel & Subsistence
20/01/2016,LUL TICKET MACHINE,15,Travel & Subsistence
20/01/2016,OYSTER BUS AUTOTOP,20,Travel & Subsistence
20/01/2016,OYSTER AUTOTOPUP,20,Travel & Subsistence
20/01/2016,OYSTER AUTOTOPUP,20,Travel & Subsistence
20/01/2016,OYSTER AUTOTOPUP,20,Travel & Subsistence
20/01/2016,OYSTER AUTOTOPUP,20,Travel & Subsistence
20/01/2016,OYSTER AUTOTOPUP,20,Travel & Subsistence
20/01/2016,OYSTER AUTOTOPUP,20,Travel & Subsistence
20/01/2016,OYSTER AUTOTOPUP,20,Travel & Subsistence
20/01/2016,Amazon UK Marketplace,25.49,Record Copyin: Store purchases
20/01/2016,Amazon UK Marketplace,54.76,General stationery & supplies
20/01/2016,BYRON HAMBURGERS L,59.5,Travel & Subsistence
20/01/2016,Amazon UK Marketplace,64.7,General stationery & supplies
20/01/2016,THE BREWERY ON CHISWEL,75,Travel & Subsistence
20/01/2016,WWW.JUSTGLOVES.CO.UK,99.6,Conservation & Preservation Materials
20/01/2016,PAYPAL *DAVIDPACEMA,125,Copyright
21/01/2016,CONVENIENCE CHEQUE FEE,2.5,Bank Charges
21/01/2016,Uber BV,3.46,Travel & Subsistence
21/01/2016,RINGGO,7.9,Travel & Subsistence
21/01/2016,LONDON OVERGROUND-,10,Travel & Subsistence
21/01/2016,Amazon Svcs Europe SAR,13.82,General stationery & supplies
21/01/2016,Stock - Books,20,Stock - Kew shop  (Bookshop)
21/01/2016,OYSTER AUTOTOPUP,20,Travel & Subsistence
21/01/2016,OYSTER AUTOTOPUP,20,Travel & Subsistence
21/01/2016,Amazon UK Marketplace,36.13,General stationery & supplies
21/01/2016,MERCURE MANCHESTER,43.25,Travel & Subsistence
21/01/2016,Uber BV,49.79,Travel & Subsistence
21/01/2016,WWW.PURELYPAPER.CO.UK,97.14,Record Copyin: Store purchases
22/01/2016,CONVENIENCE CHEQUE FEE,2.5,Bank Charges
22/01/2016,CONVENIENCE CHEQUE FEE,4.8,Bank Charges
22/01/2016,OYSTER BUS AUTOTOP,20,Travel & Subsistence
22/01/2016,OYSTER BUS AUTOTOP,20,Travel & Subsistence
22/01/2016,Stock - Books,21.5,Stock - Kew shop  (Bookshop)
22/01/2016,Stock - Books,240,Stock - Kew shop  (Bookshop)
23/01/2016,OYSTER AUTOTOPUP,20,Travel & Subsistence
24/01/2016,OYSTER AUTOTOPUP,20,Travel & Subsistence
24/01/2016,OYSTER BUS AUTOTOP,20,Travel & Subsistence
24/01/2016,CLOUD MGR THE NATI...,123.76,Subscriptions
24/01/2016,UKOFFICEDIRECT.CO.,182.46,General stationery & supplies
25/01/2016,Amazon UK Marketplace,4.76,General stationery & supplies
25/01/2016,CONVENIENCE CHEQUE FEE,6.01,Bank Charges
25/01/2016,Amazon UK Marketplace,6.9,General stationery & supplies
25/01/2016,Amazon UK Marketplace,8.99,General stationery & supplies
25/01/2016,Amazon UK Marketplace,12.13,General stationery & supplies
25/01/2016,CODECADEMY PRO,14.47,Training
25/01/2016,Amazon UK Retail,14.58,General stationery & supplies
25/01/2016,Amazon UK Marketplace,15.73,General stationery & supplies
25/01/2016,BALSAMIQ,17.38,Minor Software
25/01/2016,CRAFTY CROC,44.65,General stationery & supplies
25/01/2016,Stock - Books,300.65,Stock - Kew shop  (Bookshop)
25/01/2016,FANSHAW BOOKS LIMITED,444.31,Stock - Kew shop  (Bookshop)
26/01/2016,CONVENIENCE CHEQUE FEE,5.81,Bank Charges
26/01/2016,Amazon UK Marketplace,7.5,General stationery & supplies
26/01/2016,Amazon UK Marketplace,11.98,General stationery & supplies
26/01/2016,Amazon UK Marketplace,18.95,General stationery & supplies
26/01/2016,CONVENIENCE CHEQUE FEE,24.08,Bank Charges
26/01/2016,PAYPAL *SUWECOCZSRO,158.67,Conferences and Seminars: TNA Attending
26/01/2016,PAYPAL *SUWECOCZSRO,158.67,Conferences and Seminars: TNA Attending
26/01/2016,Stock - Books,290.5,Stock - Kew shop  (Bookshop)
27/01/2016,Amazon UK Marketplace,3.5,General stationery & supplies
27/01/2016,CONVENIENCE CHEQUE FEE,9.43,Bank Charges
27/01/2016,LUL TICKET MACHINE,9.8,Travel & Subsistence
27/01/2016,ASSN FOR INFO SCI & TE,10.85,Conferences and Seminars: TNA Attending
27/01/2016,Amazon UK Retail,14.37,General stationery & supplies
27/01/2016,Amazon UK Retail,16.44,Advertising
27/01/2016,TEXDOWNSSSTN,19.99,Travel & Subsistence
27/01/2016,OYSTER BUS AUTOTOP,20,Travel & Subsistence
27/01/2016,OYSTER AUTOTOPUP,20,Travel & Subsistence
27/01/2016,OYSTER AUTOTOPUP,20,Travel & Subsistence
27/01/2016,Amazon UK Retail,21.99,Library
27/01/2016,PRONTAPRINT,43.1,Fast Copy/ External printing (ESD)
27/01/2016,PRONTAPRINT,43.1,Fast Copy/ External printing (ESD)
27/01/2016,WWW.SCALESANDBALANCES.,63,Conservation & Preservation Materials
27/01/2016,PRONTAPRINT,86.21,Fast Copy/ External printing (ESD)
27/01/2016,XMA LTD,86.93,General stationery & supplies
27/01/2016,ACCA,112,Training
27/01/2016,PRONTAPRINT,129.31,Fast Copy/ External printing (ESD)
27/01/2016,JANES PANTRY,129.72,Travel & Subsistence
27/01/2016,DUALIT LTD,155.17,Furniture and equipment
27/01/2016,WWW.TICKETS.VAM.AC.UK,195,Training
27/01/2016,WWW.BERTRAMS.COM,245,Subscriptions
27/01/2016,THAWTE,375.27,IT Maintenance & Support - Software
27/01/2016,Stock - Books,471.5,Stock - Kew shop  (Bookshop)
28/01/2016,Amazon UK Marketplace,15,Conservation & Preservation Materials
28/01/2016,OYSTER AUTOTOPUP,20,Travel & Subsistence
28/01/2016,OYSTER BUS AUTOTOP,20,Travel & Subsistence
28/01/2016,FASHION&TEXTILE MUSEUM,60.5,Conferences and Seminars: TNA Attending
28/01/2016,UNI CAM ESALES,70,Conferences and Seminars: TNA Attending
28/01/2016,PRONTAPRINT,172.42,Fast Copy/ External printing (ESD)
28/01/2016,EB ICON CONFERENCE 20,275,Conferences and Seminars: TNA Attending
29/01/2016,LUL TICKET MACHINE,9.8,Travel & Subsistence
29/01/2016,WWW.IWEB-HOSTING.CO.UK,38.4,IT Maintenance & Support - Software
29/01/2016,OYSTER AUTOTOPUP,40,Travel & Subsistence
29/01/2016,OYSTER AUTOTOPUP,40,Travel & Subsistence
29/01/2016,DISCOVERY MUSEUM,55.44,Travel & Subsistence
29/01/2016,CVENT*NUIX PTY LTD,118.8,Conferences and Seminars: TNA Attending
29/01/2016,WWW.ICO.GOV.UK,500,Subscriptions
30/01/2016,OYSTER AUTOTOPUP,20,Travel & Subsistence
31/01/2016,OYSTER AUTOTOPUP,20,Travel & Subsistence
31/01/2016,OYSTER AUTOTOPUP,20,Travel & Subsistence
31/01/2016,OYSTER AUTOTOPUP,20,Travel & Subsistence
31/01/2016,OYSTER AUTOTOPUP,20,Travel & Subsistence
01/02/2016,TOTAL REGISTRATION,19.19,IT Maintenance & Support - Software
01/02/2016,TOTAL REGISTRATION,19.19,IT Maintenance & Support - Software
01/02/2016,ISSUU,28.38,Advertising
01/02/2016,Amazon UK Retail,48.54,Minor IT
01/02/2016,XMA LTD,75.13,General stationery & supplies
01/02/2016,WWW.BCS.ORG,136,Subscriptions
01/02/2016,WWW.BERTRAMS.COM,148.75,Subscriptions
02/02/2016,TNA DISCOVERY ORDERS,3.45,Internet
02/02/2016,TNA DISCOVERY ORDERS,3.45,Internet
02/02/2016,Uber BV,5,Travel & Subsistence
02/02/2016,Uber BV,5.15,Travel & Subsistence
02/02/2016,Uber BV,7.25,Travel & Subsistence
02/02/2016,RINGGO,7.9,Travel & Subsistence
02/02/2016,SELFSERVE TICKET,8,Travel & Subsistence
02/02/2016,Amazon Svcs Europe SAR,12.94,General stationery & supplies
02/02/2016,PAYPAL *COLOURGROUP,20,Subscriptions
02/02/2016,OYSTER BUS AUTOTOP,20,Travel & Subsistence
02/02/2016,PAYPAL *COLOURGROUP,48,Conferences and Seminars: TNA Attending
02/02/2016,Amazon UK Retail,56.4,Library
02/02/2016,WWW.THEBARCODEWAREHOUS,81.55,Repository: stationery
02/02/2016,LONDON MIDLAND TIC,82.8,Travel & Subsistence
02/02/2016,CBA*AMCHARTS,100.91,Minor IT
02/02/2016,SPEEDYBOOKER.COM,186,Travel & Subsistence
02/02/2016,HAND TOOLS - UK,331.5,Conservation & Preservation Materials
02/02/2016,WWW.LEEDS.AC.UK,433.5,Conferences and Seminars: TNA Attending
02/02/2016,WWW.LEEDS.AC.UK,433.5,Conferences and Seminars: TNA Attending
02/02/2016,WWW.LEEDS.AC.UK,433.5,Conferences and Seminars: TNA Attending
02/02/2016,WWW.LEEDS.AC.UK,433.5,Conferences and Seminars: TNA Attending
03/02/2016,CONVENIENCE CHEQUE FEE,6,Bank Charges
03/02/2016,GOOGLE *SVCSAPPS_NATIO,13.2,IT Maintenance & Support - Software
03/02/2016,OYSTER AUTOTOPUP,20,Travel & Subsistence
03/02/2016,OYSTER AUTOTOPUP,20,Travel & Subsistence
03/02/2016,Amazon UK Marketplace,25.98,General stationery & supplies
03/02/2016,TICKETS08712200260,52,Conferences and Seminars: TNA Attending
03/02/2016,TICKETS08712200260,52,Conferences and Seminars: TNA Attending
03/02/2016,WWW.CROMWELL.CO.UK,62.86,Repository: stationery
03/02/2016,XMA LTD,83.48,General stationery & supplies
03/02/2016,THE MICROFILM SHOP,98.4,General stationery & supplies
03/02/2016,ALL LABELS,124.8,Shop Non-Stock Items
03/02/2016,TVLICENSING.CO.UK,145.5,SERVICE CHARGES 
03/02/2016,LEARNVISUALSTUDIO,179.23,Subscriptions
03/02/2016,WWW.CIPS.ORG,191.76,Training
03/02/2016,Stock - Books,300,Stock - Kew shop  (Bookshop)
03/02/2016,THAWTE,372.08,IT Maintenance & Support - Software
03/02/2016,THAWTE,372.08,IT Maintenance & Support - Software
04/02/2016,WWW.VIKING-DIRECT.CO.U,3.48,General stationery & supplies
04/02/2016,Amazon UK Marketplace,15.97,General stationery & supplies
04/02/2016,GITHUB.COM  61N1W,17.73,Subscriptions
04/02/2016,WWW.VIKING-DIRECT.CO.U,23.88,General stationery & supplies
04/02/2016,LUL TICKET MACHINE,30,Travel & Subsistence
04/02/2016,LONDON OVERGROUND-,30,Travel & Subsistence
04/02/2016,KONDITOR AND COOK,35.95,Hospitality
04/02/2016,CORNERHOUSE HOTEL,38.95,Travel & Subsistence
04/02/2016,BT BILL PAYMENT 3,61.08,Telecommunications
04/02/2016,CORNERHOUSE HOTEL,72.25,Travel & Subsistence
04/02/2016,DUALIT LTD,155.17,Furniture and equipment
04/02/2016,FANSHAW BOOKS LIMITED,182.12,Stock - Kew shop  (Bookshop)
04/02/2016,CATH TATE CARDS LTD,194.4,Stock - Kew shop  (Bookshop)
05/02/2016,Amazon UK Marketplace,4,General stationery & supplies
05/02/2016,Amazon UK Marketplace,10.95,General stationery & supplies
05/02/2016,Amazon UK Marketplace,13.59,General stationery & supplies
05/02/2016,WWW.BL.UK.TICKETS,20,Conferences and Seminars: TNA Attending
05/02/2016,OYSTER AUTOTOPUP,20,Travel & Subsistence
05/02/2016,OYSTER AUTOTOPUP,20,Travel & Subsistence
05/02/2016,OYSTER AUTOTOPUP,20,Travel & Subsistence
05/02/2016,NATIONAL LIBRARY,37.34,Copyright
05/02/2016,WWW.NORFOLK.GOV.UK,50,Training
05/02/2016,BILLETTO UK,51.76,Conferences and Seminars: TNA Attending
05/02/2016,EUROSTAR INT ECC,102.5,Travel & Subsistence
05/02/2016,ABM PUBLISHING,156,Stock - Kew shop  (Bookshop)
06/02/2016,WWW.MISCO.CO.UK,4.79,General stationery & supplies
06/02/2016,WWW.MISCO.CO.UK,89.7,General stationery & supplies
08/02/2016,Amazon UK Marketplace,3.7,General stationery & supplies
08/02/2016,WWW.FIRST4MAGNETS.COM,10.02,Conservation & Preservation Materials
08/02/2016,CRAFTY CROC,11.95,General stationery & supplies
08/02/2016,WORLDWIDE MAGAZINE DIS,19.87,Stock - Kew shop  (Bookshop)
08/02/2016,WWW.ARCHIVES.ORG.UK,25,Training
08/02/2016,FRANKIE AND BENNYS,25,Travel & Subsistence
08/02/2016,CITYSPRINT,56.1,Courier
08/02/2016,TOTALBLANKMEDIA,57.86,Record Copy: other current exp
08/02/2016,Amazon UK Retail,60,Library
08/02/2016,JW PLAYER,128.27,Minor Software
08/02/2016,FRONT ROW AGILE,142.76,Minor Software
08/02/2016,TRANS MEDIA TECHNOLOGY,288,Transcription
09/02/2016,Amazon UK Marketplace,3.14,General stationery & supplies
09/02/2016,WATERMARGIN PORTSMOUTH,17.3,Travel & Subsistence
09/02/2016,PAYPAL *COLOURGROUP,20,Subscriptions
09/02/2016,SELFSERVE TICKET,20,Travel & Subsistence
09/02/2016,WWW.FISHER.CO.UK,24.48,Conservation & Preservation Materials
09/02/2016,PAYPAL *COLOURGROUP,33,Conferences and Seminars: TNA Attending
09/02/2016,Amazon UK Marketplace,42.8,Library
09/02/2016,TOTALBLANKMEDIA,45.97,Record Copy: other current exp
09/02/2016,BUNZL CLEANING & HYGIE,54.48,Cleaning
09/02/2016,ASKEWS LIBRARY SER,90.95,Library
09/02/2016,Europcar.com/uk,118.1,Vehicles Hire
09/02/2016,Amazon UK Retail,179.96,IT Storage
10/02/2016,CONVENIENCE CHEQUE FEE,2.5,Bank Charges
10/02/2016,CONVENIENCE CHEQUE FEE,2.5,Bank Charges
10/02/2016,Amazon Svcs Europe SAR,7.87,Library
10/02/2016,CONVENIENCE CHEQUE FEE,15.41,Bank Charges
10/02/2016,Stock - Books,33.67,Stock - Kew shop  (Bookshop)
10/02/2016,OYSTER AUTOTOPUP,40,Travel & Subsistence
10/02/2016,LONDON MIDLAND TIC,82.8,Travel & Subsistence
10/02/2016,PAYPAL *NLS,85,Training
10/02/2016,Stock - Books,100,Stock - Kew shop  (Bookshop)
10/02/2016,KEY INDUSTRIAL EQUIPMENT,109.2,Furniture and equipment
10/02/2016,APPLE ONLINE STORE GBP,150,General stationery & supplies
11/02/2016,RINGGO LB OF EALING,3.8,Travel & Subsistence
11/02/2016,LONDON OVERGROUND-,20,Travel & Subsistence
11/02/2016,OYSTER AUTOTOPUP,20,Travel & Subsistence
11/02/2016,OYSTER AUTOTOPUP,20,Travel & Subsistence
11/02/2016,OYSTER BUS AUTOTOP,20,Travel & Subsistence
11/02/2016,OYSTER AUTOTOPUP,20,Travel & Subsistence
11/02/2016,OYSTER AUTOTOPUP,20,Travel & Subsistence
11/02/2016,FEDERAL EXPRESS EUROPE,58.32,Travel & Subsistence
11/02/2016,Amazon UK Retail,149,Library
11/02/2016,UNIVERSITY OF LONDON,270,Training
12/02/2016,Amazon UK Marketplace,2.04,General stationery & supplies
12/02/2016,Amazon UK Marketplace,2.4,General stationery & supplies
12/02/2016,TNA DISCOVERY ORDERS,3.45,Internet
12/02/2016,WWW.BL.UK.TICKETS,20,Conferences and Seminars: TNA Attending
12/02/2016,WORCESTER CATHEDRA,157.5,Conferences and Seminars: TNA Attending
12/02/2016,HISTORIC ENGLAND,495,Training
13/02/2016,OYSTER AUTOTOPUP,20,Travel & Subsistence
14/02/2016,OYSTER BUS AUTOTOP,20,Travel & Subsistence
14/02/2016,OYSTER AUTOTOPUP,20,Travel & Subsistence
14/02/2016,Europcar.com/uk,45,Vehicles Hire
15/02/2016,CONVENIENCE CHEQUE FEE,2.5,Bank Charges
15/02/2016,M6 TOLL,5.5,Travel & Subsistence
15/02/2016,MARKS & SPENCER,6.95,Hospitality
15/02/2016,CONVENIENCE CHEQUE FEE,12.53,Bank Charges
15/02/2016,WWW.BL.UK.TICKETS,20,Conferences and Seminars: TNA Attending
15/02/2016,G RYDER & CO LTD,39.72,Conservation & Preservation Materials
15/02/2016,THE SWAN TARPORLEY  LT,42.8,Travel & Subsistence
15/02/2016,WWW.BL.UK.TICKETS,60,Travel & Subsistence
15/02/2016,Stock - Books,93,Stock - Kew shop  (Bookshop)
16/02/2016,M6 TOLL,5.5,Travel & Subsistence
16/02/2016,UNIVERSITY OF LONDON,24,Recruitment
16/02/2016,XMA LTD,38.77,General stationery & supplies
16/02/2016,XMA LTD,38.77,General stationery & supplies
16/02/2016,XMA LTD,38.77,General stationery & supplies
16/02/2016,MALTHURST PETROLEU,42.16,Travel & Subsistence
16/02/2016,BILLS TAUNTON,70,Travel & Subsistence
16/02/2016,WWW.IDENTIPRO.CO.UK,104.28,General stationery & supplies
16/02/2016,FD SOLUTIONS LTD,495.31,Fast Copy/ External printing (ESD)
17/02/2016,LOOKING4PARKING.COM,7.5,Travel & Subsistence
17/02/2016,LOOKING4PARKING.COM,7.5,Travel & Subsistence
17/02/2016,LOOKING4PARKING.COM,7.5,Travel & Subsistence
17/02/2016,ASPLI SAFETY EQUIP,19.9,Conservation & Preservation Materials
17/02/2016,OYSTER AUTOTOPUP,20,Travel & Subsistence
17/02/2016,XMA LTD,38.21,Advertising
17/02/2016,XMA LTD,38.21,Advertising
17/02/2016,XMA LTD,38.21,Advertising
17/02/2016,SAFETYSIGNSUP.COUK,40.24,Conservation & Preservation Materials
17/02/2016,NATRAJ TANDOORI,75,Travel & Subsistence
17/02/2016,XMA LTD,81.24,Advertising
17/02/2016,GWR WORCESTER OT,82.8,Travel & Subsistence
17/02/2016,KEW GARDENS HOTEL,100,Travel & Subsistence
18/02/2016,TEXDOWNSSSTN,3.08,Travel & Subsistence
18/02/2016,TEXDOWNSSSTN,7.08,Travel & Subsistence
18/02/2016,SELFSERVE TICKET,8,Travel & Subsistence
18/02/2016,NATIONAL EXPRESS LIMITED,18.4,Travel & Subsistence
18/02/2016,OYSTER AUTOTOPUP,20,Travel & Subsistence
18/02/2016,OYSTER AUTOTOPUP,20,Travel & Subsistence
18/02/2016,OYSTER AUTOTOPUP,20,Travel & Subsistence
18/02/2016,Amazon UK Marketplace,22.8,Library
18/02/2016,OYSTER RENEW WEB,30,Travel & Subsistence
18/02/2016,PRONTAPRINT,43.1,Fast Copy/ External printing (ESD)
18/02/2016,LUL TICKET MACHINE,50,Travel & Subsistence
18/02/2016,CORNERHOUSE HOTEL,75,Travel & Subsistence
19/02/2016,Amazon UK Marketplace,4.22,Library
19/02/2016,LOROL - NEW CROSS GATE,4.8,Travel & Subsistence
19/02/2016,SELFSERVE TICKET,9,Travel & Subsistence
19/02/2016,OYSTER AUTOTOPUP,20,Travel & Subsistence
19/02/2016,OYSTER AUTOTOPUP,20,Travel & Subsistence
19/02/2016,OYSTER AUTOTOPUP,20,Travel & Subsistence
19/02/2016,Amazon UK Marketplace,24.8,Library
19/02/2016,LIVEGROUP.CO.UK,358.8,Conferences and Seminars: TNA Attending
20/02/2016,OYSTER AUTOTOPUP,20,Travel & Subsistence
20/02/2016,OYSTER AUTOTOPUP,20,Travel & Subsistence
20/02/2016,UBER BV,49.14,Travel & Subsistence
21/02/2016,OYSTER AUTOTOPUP,20,Travel & Subsistence
21/02/2016,OYSTER AUTOTOPUP,20,Travel & Subsistence
21/02/2016,PAYPAL *STATIONERS,25,"Conferences, Seminars & Exhibitions: TNA Hosting"
21/02/2016,OYSTER AUTOTOPUP,40,Travel & Subsistence
22/02/2016,EB ANIMATING BLACK AR,10,Conferences and Seminars: TNA Attending
22/02/2016,MALMAISON EDINBURG,170,Travel & Subsistence
23/02/2016,RINGGO,5.4,Travel & Subsistence
23/02/2016,GITHUB.COM  61N1W,5.67,Subscriptions
23/02/2016,LOOKING4PARKING.COM,7.5,Travel & Subsistence
23/02/2016,LOOKING4PARKING.COM,7.5,Travel & Subsistence
23/02/2016,LOOKING4PARKING.COM,7.5,Travel & Subsistence
23/02/2016,LOOKING4PARKING.COM,7.5,Travel & Subsistence
23/02/2016,CITY CABS EDINBURGH LT,9.35,Travel & Subsistence
23/02/2016,EAST RIDING COUNCIL,12,Training
23/02/2016,WWW.ARCHIVES.ORG.UK,25,Training
23/02/2016,WWW.ARCHIVES.ORG.UK,25,Training
23/02/2016,BRIT LIB TCKTS (PHONE),40,Conferences and Seminars: TNA Attending
23/02/2016,AD YOUNG TECHNICAL SER,207,Record Copyin: Store purchases
23/02/2016,UPS LTD SHIPPING FEES,438.47,Contracted Services
24/02/2016,WAITROSE 619,4.34,Travel & Subsistence
24/02/2016,BADGEMASTER LTD,9.85,General stationery & supplies
24/02/2016,EB ANIMATING BLACK AR,10,Conferences and Seminars: TNA Attending
24/02/2016,Amazon UK Marketplace,13.94,General stationery & supplies
24/02/2016,RINGGO,15.4,Travel & Subsistence
24/02/2016,Amazon UK Retail,16.42,Training
24/02/2016,Amazon UK Retail,20.4,Library
24/02/2016,SAFETYSIGNSUP.COUK,23.15,Conservation & Preservation Materials
24/02/2016,ARCO LTD,26.39,Conservation & Preservation Materials
24/02/2016,Amazon UK Marketplace,28.3,Training
24/02/2016,WWW.FOCALINT.ORG,30,Subscriptions
24/02/2016,MARKS & SPENCER,35.99,"Conferences, Seminars & Exhibitions: TNA Hosting"
24/02/2016,DUNELM HOSPITALITY LTD,76,Travel & Subsistence
24/02/2016,GWR WORCESTER OT,82.8,Travel & Subsistence
24/02/2016,CLOUD MGR THE NATI...,212.6,Subscriptions
24/02/2016,PLASTOR LIMITED,500,Repository: stationery
25/02/2016,EB ANIMATING BLACK AR,10,General stationery & supplies
25/02/2016,CODECADEMY PRO,14.8,Training
25/02/2016,BALSAMIQ,17.78,Minor Software
25/02/2016,OYSTER AUTOTOPUP,20,Travel & Subsistence
25/02/2016,OYSTER AUTOTOPUP,20,Travel & Subsistence
25/02/2016,OYSTER AUTOTOPUP,20,Travel & Subsistence
25/02/2016,Amazon UK Marketplace,47.25,Training
25/02/2016,CLOSEGATE HOTEL DEVELO,192,Travel & Subsistence
26/02/2016,SELFSERVE TICKET,3.5,Travel & Subsistence
26/02/2016,CONVENIENCE CHEQUE FEE,4.8,Bank Charges
26/02/2016,SELFSERVE TICKET,17.2,Travel & Subsistence
26/02/2016,TEXDOWNSSSTN,27.08,Travel & Subsistence
26/02/2016,TNA BOOKSHOP,48.51,General stationery & supplies
26/02/2016,HI PORTSMOUTH - RE,48.7,Travel & Subsistence
26/02/2016,XMA LTD,69.78,General stationery & supplies
26/02/2016,XMA LTD,77.42,General stationery & supplies
26/02/2016,XMA LTD,77.42,General stationery & supplies
26/02/2016,XMA LTD,77.42,General stationery & supplies
26/02/2016,XMA LTD,150.26,General stationery & supplies
26/02/2016,XMA LTD,163.39,General stationery & supplies
26/02/2016,Stock - Books,240,Stock - Kew shop  (Bookshop)
27/02/2016,OYSTER BUS AUTOTOP,20,Travel & Subsistence
27/02/2016,OYSTER AUTOTOPUP,20,Travel & Subsistence
28/02/2016,SHANGHAI SHANGHAI,20.6,Travel & Subsistence
29/02/2016,CONVENIENCE CHEQUE FEE,3.79,Bank Charges
29/02/2016,NATIONAL LIBRARY,5.69,General stationery & supplies
29/02/2016,SELFSERVE TICKET,10,Travel & Subsistence
29/02/2016,LUL TICKET MACHINE,20,Travel & Subsistence
29/02/2016,LONDON MIDLAND SEL,30,Travel & Subsistence
29/02/2016,WWW.IWEB-HOSTING.CO.UK,38.4,IT Maintenance & Support - Software
29/02/2016,WWW OPPASSESSMENT EU COM,63.6,Training
29/02/2016,EB THE DIGITAL EVOLUT,120,Training
29/02/2016,ALEOU,123.66,Conferences and Seminars: TNA Attending
29/02/2016,Stock - Books,189.72,Stock - Kew shop  (Bookshop)
29/02/2016,WWW.WESTMINSTER-BRIEFI,210.6,Training
01/03/2016,CONVENIENCE CHEQUE FEE,4.18,Bank Charges
01/03/2016,CONVENIENCE CHEQUE FEE,5.64,Bank Charges
01/03/2016,GWR ACTON SST,7.3,Travel & Subsistence
01/03/2016,LOROL - KEW GARDENS,9.8,Travel & Subsistence
01/03/2016,LUL TICKET MACHINE,10,Travel & Subsistence
01/03/2016,CONVENIENCE CHEQUE FEE,11.79,Bank Charges
01/03/2016,Amazon UK Marketplace,17.66,General stationery & supplies
01/03/2016,TOTAL REGISTRATION,20.39,IT Maintenance & Support - Software
01/03/2016,CONSERVATION BY DE,22.75,Conservation & Preservation Materials
01/03/2016,Amazon UK Marketplace,25.9,General stationery & supplies
01/03/2016,ISSUU,28.96,Advertising
01/03/2016,PRESERVATION EQUIP,31.68,Conservation & Preservation Materials
01/03/2016,Amazon UK Retail,64.74,General stationery & supplies
01/03/2016,PAYPAL *NESTA OPERA,78,Conferences and Seminars: TNA Attending
01/03/2016,LONDON MIDLAND TIC,82.8,Travel & Subsistence
01/03/2016,LONDON MIDLAND TIC,109.5,Travel & Subsistence
01/03/2016,WEBINATOOMN,147.8,Advertising
01/03/2016,ASKEWS LIBRARY SER,152.2,Library
01/03/2016,CRAYFORD TUBES LTD,169.86,Record Copyin: Store purchases
01/03/2016,Stock - Books,209.04,Stock - Kew shop  (Bookshop)
01/03/2016,Stock - Books,282.24,Stock - Kew shop  (Bookshop)
01/03/2016,WWW.THIRSTYCUPS.COM,337.08,General stationery & supplies
02/03/2016,CONVENIENCE CHEQUE FEE,2.5,Bank Charges
02/03/2016,M6 TOLL,5.5,Travel & Subsistence
02/03/2016,LOROL - KEW GARDENS,15,Travel & Subsistence
02/03/2016,OYSTER AUTOTOPUP,20,Travel & Subsistence
02/03/2016,OYSTER AUTOTOPUP,20,Travel & Subsistence
02/03/2016,LUL TICKET MACHINE,30,Travel & Subsistence
02/03/2016,OYSTER AUTOTOPUP,40,Travel & Subsistence
02/03/2016,OYSTER AUTOTOPUP,40,Travel & Subsistence
02/03/2016,Amazon UK Marketplace,47.25,Training
02/03/2016,PORTAL HOTEL G & C CLUB,100,Travel & Subsistence
02/03/2016,Stock - Books,116.64,Stock - Kew shop  (Bookshop)
03/03/2016,WH SMITH TRAVEL,4.79,Travel & Subsistence
03/03/2016,M6 TOLL,5.5,Travel & Subsistence
03/03/2016,GOOGLE *SVCSAPPS_NATIO,13.2,IT Maintenance & Support - Software
03/03/2016,OYSTER AUTOTOPUP,20,Travel & Subsistence
03/03/2016,OYSTER AUTOTOPUP,20,Travel & Subsistence
03/03/2016,OYSTER AUTOTOPUP,20,Travel & Subsistence
03/03/2016,OYSTER AUTOTOPUP,20,Travel & Subsistence
03/03/2016,BREWERS FAYRE 41518475,23.15,Travel & Subsistence
03/03/2016,TESCO PFS 3875,37.62,Travel & Subsistence
03/03/2016,VIRGINTRAINSEC SERVCS,91,Travel & Subsistence
04/03/2016,CLIFFORDS TOWER,5.6,Contracted Services
04/03/2016,SELFSERVE TICKET,9,Travel & Subsistence
04/03/2016,LUL TICKET MACHINE,9.8,Travel & Subsistence
04/03/2016,OYSTER AUTOTOPUP,20,Travel & Subsistence
04/03/2016,GITHUB.COM  61N1W,36.57,Subscriptions
04/03/2016,THE GOLDEN FLEECE,38.75,Travel & Subsistence
04/03/2016,SAINSBURYS,124.57,Wellbeing
04/03/2016,FIXATION,164.38,Record Copy: other current exp
05/03/2016,EXHIBITION HOTEL,19.08,Travel & Subsistence
05/03/2016,OYSTER AUTOTOPUP,20,Travel & Subsistence
05/03/2016,OYSTER AUTOTOPUP,20,Travel & Subsistence
05/03/2016,OYSTER AUTOTOPUP,20,Travel & Subsistence
06/03/2016,M6 TOLL,4.8,Travel & Subsistence
06/03/2016,OYSTER AUTOTOPUP,20,Travel & Subsistence
06/03/2016,HAMPTON BY HILTON YORK,37.8,Travel & Subsistence
06/03/2016,THE SWAN TARPORLEY  LT,51.3,Travel & Subsistence
07/03/2016,CONVENIENCE CHEQUE FEE,2.5,Bank Charges
07/03/2016,M6 TOLL,5.5,Travel & Subsistence
07/03/2016,BRENTFORD SERVICE,15.2,Travel & Subsistence
07/03/2016,GREATER ANGLIA,16,Travel & Subsistence
07/03/2016,OYSTER RENEW WEB,30,Travel & Subsistence
07/03/2016,MORRISONS PETROL,40.84,Travel & Subsistence
07/03/2016,BT BILL PAYMENT 3,68.58,Telecommunications
07/03/2016,WORLDWIDE MAGAZINE DIS,92.64,Stock - Kew shop  (Bookshop)
07/03/2016,Stock - Books,93.2,Stock - Kew shop  (Bookshop)
07/03/2016,COUNTRYSIDEBOOKS.,114.95,Stock - Kew shop  (Bookshop)
07/03/2016,WWW.HALFMOONBAY.CO.UK,227.54,Stock - Kew shop  (Bookshop)
07/03/2016,CANNS DOWN PRESS LTD,256.4,Stock - Kew shop  (Bookshop)
07/03/2016,TRACKS PUBLISHING,303.67,Stock - Kew shop  (Bookshop)
07/03/2016,CATH TATE CARDS LTD,349.92,Stock - Kew shop  (Bookshop)
08/03/2016,LOROL - KEW GARDENS,10,Travel & Subsistence
08/03/2016,ORANGE (A/PM/01),16.92,Telecommunications
08/03/2016,OYSTER RENEW WEB,20,Travel & Subsistence
08/03/2016,SCREWFIX DIRECT,239.18,Repairs and Maintenance - Planned
08/03/2016,BOOKMARK REMAINDERS LT,426.8,Stock - Kew shop  (Bookshop)
09/03/2016,CAFFE NERO,6.7,Travel & Subsistence
09/03/2016,GO METRO GARE DU MIDI,16.85,Travel & Subsistence
09/03/2016,OYSTER AUTOTOPUP,20,Travel & Subsistence
09/03/2016,OYSTER AUTOTOPUP,20,Travel & Subsistence
09/03/2016,RONTEC BULLSMOOR,24.12,Travel & Subsistence
09/03/2016,WWW.OFCOM.ORG.UK,400,IT Maintenance & Support - Software
10/03/2016,OYSTER AUTOTOPUP,20,Travel & Subsistence
10/03/2016,WWW.SIGNSERVICESUK.COM,20.64,General stationery & supplies
10/03/2016,LUL TICKET MACHINE,30,Travel & Subsistence
10/03/2016,GRIMBERGEN CAFE,46.95,Travel & Subsistence
10/03/2016,WWW.BERTRAMS.COM,87.5,Subscriptions
11/03/2016,EBUYER (UK) LTD,18.46,Conferences and Seminars: TNA Attending
11/03/2016,OYSTER AUTOTOPUP,20,Travel & Subsistence
11/03/2016,WWW.SECOL.CO.UK,444.96,Repository: stationery
12/03/2016,Amazon UK Marketplace,17.55,Library
12/03/2016,OYSTER AUTOTOPUP,20,Travel & Subsistence
13/03/2016,OYSTER AUTOTOPUP,20,Travel & Subsistence
13/03/2016,TWITTER*ADVERTISING,50.34,Advertising
14/03/2016,CONVENIENCE CHEQUE FEE,2.5,Bank Charges
14/03/2016,CONVENIENCE CHEQUE FEE,2.5,Bank Charges
14/03/2016,CONVENIENCE CHEQUE FEE,2.98,Bank Charges
14/03/2016,M6 TOLL,5.5,Travel & Subsistence
14/03/2016,Amazon UK Marketplace,32.19,Library
14/03/2016,THE SWAN TARPORLEY  LT,44.3,Travel & Subsistence
14/03/2016,CONSERVATION BY DE,47.4,General stationery & supplies
14/03/2016,Stock - Books,50,Stock - Kew shop  (Bookshop)
14/03/2016,Stock - Books,50.4,Stock - Kew shop  (Bookshop)
14/03/2016,NEW SOUTHERN RAILW,64.6,Travel & Subsistence
14/03/2016,CH&CO CATERING LTD,88.7,Awaydays
14/03/2016,Stock - Books,148.75,Stock - Kew shop  (Bookshop)
14/03/2016,TWITTER*ADVERTISING,152.83,Advertising
14/03/2016,LONDON MIDLAND TIC,165.6,Travel & Subsistence
15/03/2016,M6 TOLL,5.5,Travel & Subsistence
15/03/2016,LOOKING4PARKING.COM,7.5,Travel & Subsistence
15/03/2016,BREWERS FAYRE 41518475,12.57,Travel & Subsistence
15/03/2016,OYSTER BUS AUTOTOP,20,Travel & Subsistence
15/03/2016,BRENTFORD SERVICE,23.72,Travel & Subsistence
15/03/2016,BP OXFORD SERVICE AREA,25.01,Travel & Subsistence
15/03/2016,ASKEWS LIBRARY SER,77.8,Library
15/03/2016,ASKEWS LIBRARY SER,109.34,Library
16/03/2016,Uber BV,2.77,Travel & Subsistence
16/03/2016,IZ *One4Six Coffee,5.55,Travel & Subsistence
16/03/2016,LUL TICKET MACHINE,9.8,Travel & Subsistence
16/03/2016,CONVENIENCE CHEQUE FEE,12.8,Bank Charges
16/03/2016,TAXI FARE BY VERIFONE,13.2,Travel & Subsistence
16/03/2016,NATIONAL EXPRESS LIMITED,15,Travel & Subsistence
16/03/2016,BREWERS FAYRE 41518475,25,Travel & Subsistence
16/03/2016,FRANKIE AND BENNYS,25,Travel & Subsistence
16/03/2016,Amazon UK Retail,61.2,Library
16/03/2016,I F CARDBOARD CREA,209.59,Stock - Kew shop  (Bookshop)
16/03/2016,FD SOLUTIONS LTD,214.7,Fast Copy/ External printing (ESD)
16/03/2016,EB MANAGING VOLUNTEER,295,Training
17/03/2016,CONVENIENCE CHEQUE FEE,2.5,Bank Charges
17/03/2016,THE NEW ELLINGTON - RE,20,Travel & Subsistence
17/03/2016,OYSTER AUTOTOPUP,20,Travel & Subsistence
17/03/2016,Amazon UK Marketplace,26.25,Library
17/03/2016,Amazon UK Marketplace,56.94,Library
17/03/2016,Amazon UK Marketplace,60.79,Library
17/03/2016,Stock - Books,65,Stock - Kew shop  (Bookshop)
17/03/2016,LEEDS TICKET OFFICE,96.8,Travel & Subsistence
17/03/2016,EASINGWORLD TOWN HALL,105.95,Stock - Kew shop  (Bookshop)
17/03/2016,WWW.NAVAL-MILITARY-PRE,140.4,Stock - Kew shop  (Bookshop)
17/03/2016,UNIVERSITY OF LONDON,190,Training
17/03/2016,SOCIETY OF GENEALO,293.65,Stock - Kew shop  (Bookshop)
18/03/2016,SELFSERVE TICKET,7,Travel & Subsistence
18/03/2016,LUL TICKET MACHINE,12.1,Travel & Subsistence
18/03/2016,TNA BOOKSHOP,15.99,General stationery & supplies
18/03/2016,Amazon UK Retail,33.02,Library
18/03/2016,OYSTER AUTOTOPUP,40,Travel & Subsistence
18/03/2016,Amazon UK Marketplace,52.53,Library
18/03/2016,TWITTER*ADVERTISING,291.86,Advertising
18/03/2016,THE MICROFILM SHOP,449.47,Repository: stationery
19/03/2016,OYSTER AUTOTOPUP,20,Travel & Subsistence
19/03/2016,OYSTER AUTOTOPUP,20,Travel & Subsistence
19/03/2016,OYSTER AUTOTOPUP,20,Travel & Subsistence
19/03/2016,OYSTER AUTOTOPUP,20,Travel & Subsistence
19/03/2016,OYSTER AUTOTOPUP,20,Travel & Subsistence
19/03/2016,OYSTER AUTOTOPUP,20,Travel & Subsistence
20/03/2016,KIOSK GARE DU MIDI,6.44,Travel & Subsistence
20/03/2016,OYSTER AUTOTOPUP,20,Travel & Subsistence
20/03/2016,OYSTER AUTOTOPUP,20,Travel & Subsistence
20/03/2016,OYSTER AUTOTOPUP,20,Travel & Subsistence
20/03/2016,OYSTER AUTOTOPUP,20,Travel & Subsistence
20/03/2016,NOVOTEL BRUXELLES TOU,65.01,Travel & Subsistence
21/03/2016,Amazon Svcs Europe SAR,6.78,General stationery & supplies
21/03/2016,SELFSERVE TICKET,9,Travel & Subsistence
21/03/2016,Amazon UK Marketplace,11.43,General stationery & supplies
21/03/2016,Amazon UK Marketplace,82.8,Library
21/03/2016,MARTIN S CENTRAL PARK,111.3,Travel & Subsistence
22/03/2016,TNA DISCOVERY ORDERS,3.45,Internet
22/03/2016,LONDON OVERGROUND-,10,Travel & Subsistence
22/03/2016,CONVENIENCE CHEQUE FEE,10.46,Bank Charges
22/03/2016,MARTIN MCCOLL,20,Travel & Subsistence
22/03/2016,OYSTER RENEW WEB,20,Travel & Subsistence
22/03/2016,OYSTER BUS AUTOSET,20,Travel & Subsistence
22/03/2016,MUMBAI FLAVOURS,20,Travel & Subsistence
22/03/2016,TNA BOOKSHOP,20.79,General stationery & supplies
22/03/2016,Avira Antivir,21.99,Minor Software
22/03/2016,LONDON MIDLAND TIC,82.8,Travel & Subsistence
22/03/2016,ASKEWS LIBRARY SER,83.35,Library
22/03/2016,UNIVERSITY OF LONDON,95,Training
22/03/2016,ASKEWS LIBRARY SER,96.54,Library
22/03/2016,IBIS BRUSSELS ST.CATH,214.4,Travel & Subsistence
23/03/2016,CONVENIENCE CHEQUE FEE,2.8,Bank Charges
23/03/2016,OYSTER AUTOTOPUP,20,Travel & Subsistence
23/03/2016,LUL TICKET MACHINE,30,Travel & Subsistence
23/03/2016,WWW.BL.UK.TICKETS,50,Conferences and Seminars: TNA Attending
23/03/2016,PREMIER INN44530345,68.99,Travel & Subsistence
23/03/2016,THE HISTORICAL ASSOCIA,134,Subscriptions
23/03/2016,Stock - Books,140,Stock - Kew shop  (Bookshop)
23/03/2016,UNIVERSITY OF LONDON,255,Training
23/03/2016,BOON BOOKS,321.5,Stock - Kew shop  (Bookshop)
23/03/2016,CORNFLOWER LTD,381,Stock - Kew shop  (Bookshop)
23/03/2016,BOOKMARK REMAINDERS LT,436.85,Stock - Kew shop  (Bookshop)
24/03/2016,CONVENIENCE CHEQUE FEE,2.5,Bank Charges
24/03/2016,CONVENIENCE CHEQUE FEE,3.08,Bank Charges
24/03/2016,CUT KEYS DIRECT LI,6.72,General stationery & supplies
24/03/2016,CONVENIENCE CHEQUE FEE,8.28,Bank Charges
24/03/2016,Stock - Books,16,Stock - Kew shop  (Bookshop)
24/03/2016,OYSTER AUTOTOPUP,20,Travel & Subsistence
24/03/2016,FACEBK *W6Y2A969D2,20.07,Advertising
24/03/2016,SKR*AbeBooks.uk 3N7ARO,28.33,Library
24/03/2016,EB HOW TO AN EVENING,30,Training
24/03/2016,TEXDOWNSSSTN,30.73,Travel & Subsistence
24/03/2016,EB HOW TO AN EVENING,31.91,Training
24/03/2016,EB COURSE THE AFRICAN,50,Training
24/03/2016,Stock - Books,153.79,Stock - Kew shop  (Bookshop)
24/03/2016,PAYPAL *SAGROUP,170,Conferences and Seminars: TNA Attending
24/03/2016,CLOUD MGR THE NATI...,265.37,Subscriptions
24/03/2016,SOUTH THAMES COLL,335,Training
24/03/2016,Stock - Books,414.1,Stock - Kew shop  (Bookshop)
24/03/2016,CILIP.ORG.UK,500,Subscriptions
25/03/2016,CODECADEMY PRO,14.64,Training
25/03/2016,BALSAMIQ,17.58,Minor Software
25/03/2016,OYSTER AUTOTOPUP,20,Travel & Subsistence
25/03/2016,FACEBK *A82LZ8N9D2,40.52,Advertising
25/03/2016,TWITTER*ADVERTISING,54.33,Advertising
25/03/2016,Amazon UK Retail,104.75,Minor IT
26/03/2016,TOTAL REGISTRATION,19.18,IT Maintenance & Support - Software
26/03/2016,TOTAL REGISTRATION,19.18,IT Maintenance & Support - Software
26/03/2016,FACEBK *PHBDT8E9D2,200.13,Advertising
29/03/2016,LONDON OVERGROUND-,8,Travel & Subsistence
29/03/2016,Amazon Svcs Europe SAR,33.61,Library
29/03/2016,WWW.IWEB-HOSTING.CO.UK,38.4,IT Maintenance & Support - Software
29/03/2016,PRONTAPRINT,43.1,Fast Copy/ External printing (ESD)
29/03/2016,BADGEMASTER LTD,64.81,General stationery & supplies
29/03/2016,LONDON MIDLAND TIC,82.8,Travel & Subsistence
29/03/2016,WWW.BALLICOM.CO.UK,85.09,Minor IT
29/03/2016,SPEEDYBOOKER.COM,93,Travel & Subsistence
30/03/2016,CONVENIENCE CHEQUE FEE,3.58,Bank Charges
30/03/2016,BREWERS FAYRE 41518475,14.33,Travel & Subsistence
30/03/2016,LONDON OVERGROUND-,20,Travel & Subsistence
30/03/2016,MERCURE MANCHESTER,22.7,Travel & Subsistence
30/03/2016,Stock - Books,178.83,Stock - Kew shop  (Bookshop)
30/03/2016,FACEBK *8DA6E969D2,400.12,Advertising
31/03/2016,FLICKR SUBSCRIPTION,17.93,Advertising
31/03/2016,MERCURE MANCHESTER,25,Travel & Subsistence
31/03/2016,WWW OPPASSESSMENT EU COM,49.2,Training
31/03/2016,NCP BIRMINGHAM AIRPORT,53.99,Advertising
31/03/2016,NCP BIRMINGHAM AIRPORT,57.99,Advertising
31/03/2016,ASKEWS LIBRARY SER,111.74,Library
31/03/2016,ASKEWS LIBRARY SER,124.55,Library
31/03/2016,WWW.ISTOCK.COM,234,Advertising
31/03/2016,FACEBK *DNEHB9A9D2,301.3,Advertising
01/04/2016,OYSTER AUTOTOPUP,20,Travel & Subsistence
01/04/2016,OYSTER AUTOTOPUP,20,Travel & Subsistence
01/04/2016,ISSUU,28.2,Advertising
03/04/2016,GOOGLE *SVCSAPPS_NATIO,13.2,IT Maintenance & Support - Software
03/04/2016,OYSTER AUTOTOPUP,40,Travel & Subsistence
03/04/2016,Amazon UK Retail,54,Library
04/04/2016,CONVENIENCE CHEQUE FEE,3.06,Bank Charges
04/04/2016,SELFSERVE TICKET,5,Travel & Subsistence
04/04/2016,Amazon UK Marketplace,13.84,General stationery & supplies
04/04/2016,Restaurant la Boucherie,18.99,Travel & Subsistence
04/04/2016,GITHUB.COM  61N1W,36.33,Subscriptions
04/04/2016,Stock - Books,153,Stock - Kew shop  (Bookshop)
05/04/2016,Amazon UK Marketplace,4.2,General stationery & supplies
05/04/2016,OYSTER AUTOTOPUP,20,Travel & Subsistence
05/04/2016,OYSTER AUTOTOPUP,20,Travel & Subsistence
05/04/2016,OYSTER AUTOTOPUP,20,Travel & Subsistence
05/04/2016,SHEPHERDSBO,45,Conservation & Preservation Materials
05/04/2016,NATIONAL MARITIME MUSE,75,Conferences and Seminars: TNA Attending
05/04/2016,LONDON MIDLAND TIC,124.2,Travel & Subsistence
05/04/2016,WWW.PPLUK.COM,156.61,Contractors
05/04/2016,BROWSERSTACK.COM,305.78,Minor Software
06/04/2016,Amazon UK Retail,9,General stationery & supplies
06/04/2016,FALKINER FINE PAPERS,9.5,Contracted Services
06/04/2016,CHEAP-ROPE.CO.UK,10.95,Conservation & Preservation Materials
06/04/2016,METAL MANIA,21.28,Conservation & Preservation Materials
06/04/2016,WWW.BALLICOM.CO.UK,77.12,Minor IT
06/04/2016,ESSENTRA PACKAGING,154.08,General stationery & supplies
06/04/2016,UKSG,168,Advertising
07/04/2016,Amazon UK Marketplace,6.8,General stationery & supplies
07/04/2016,PREMIER INN 44536680,17.98,Travel & Subsistence
07/04/2016,WWW.JUST EAT.CO.UK,19.65,Travel & Subsistence
07/04/2016,OASIS WORKFLOW PRO,21.57,Minor Software
07/04/2016,Avira Antivir,21.99,Minor Software
07/04/2016,PREMIER INN 44536680,40,Travel & Subsistence
07/04/2016,FRANKIE AND BENNYS,50,Travel & Subsistence
07/04/2016,SCREWFIX DIRECT,55.19,General stationery & supplies
07/04/2016,Amazon UK Retail,57.99,Library
07/04/2016,Amazon UK Retail,68.82,General stationery & supplies
07/04/2016,BRIGHTON WAVE,80,Travel & Subsistence
07/04/2016,Amazon UK Marketplace,80.11,General stationery & supplies
07/04/2016,GUESTHOUSE COPENHAGEN,135.74,Travel & Subsistence
08/04/2016,Amazon UK Retail,14.01,General stationery & supplies
08/04/2016,PREMIER INN 44536680,17.98,Travel & Subsistence
08/04/2016,RONTEC BULLSMOOR,19.98,Travel & Subsistence
08/04/2016,OYSTER AUTOTOPUP,20,Travel & Subsistence
08/04/2016,Amazon UK Marketplace,44.14,Furniture and equipment
08/04/2016,CONSERVATION BY DE,56.06,Conservation & Preservation Materials
08/04/2016,BT BILL PAYMENT 3,72.5,Telecommunications
08/04/2016,Amazon UK Marketplace,100.97,Conservation & Preservation Materials
09/04/2016,OYSTER AUTOTOPUP,20,Travel & Subsistence
10/04/2016,TWITTER*ADVERTISING,5.4,Advertising
10/04/2016,OYSTER AUTOTOPUP,20,Travel & Subsistence
10/04/2016,PAYPAL *DENBYRETAIL,81.4,General stationery & supplies
11/04/2016,VIRGINTRAINSEC WI-FI,4.95,Travel & Subsistence
11/04/2016,LUL TICKET MACHINE,5,Travel & Subsistence
11/04/2016,M6 TOLL,5.5,Travel & Subsistence
11/04/2016,NORTHERN RAIL LTD,14.3,Travel & Subsistence
11/04/2016,SAFETYSIGNSUP.COUK,23.15,Conservation & Preservation Materials
11/04/2016,WWW.PRESERVATIONEQUIPM,32.76,Conservation & Preservation Materials
11/04/2016,WWW.TONERGIANT.CO.UK,65.82,Record Copyin: Store purchases
11/04/2016,THE SWAN TARPORLEY  LT,72.5,Travel & Subsistence
12/04/2016,M6 TOLL,5.5,Travel & Subsistence
12/04/2016,Amazon UK Marketplace,8.97,Furniture and equipment
12/04/2016,LOROL - KEW GARDENS,10,Travel & Subsistence
12/04/2016,Amazon UK Marketplace,30,General stationery & supplies
12/04/2016,DEMCO EUROPE LTD,35.57,Library
12/04/2016,BRENTFORD SERVICE,35.62,Travel & Subsistence
12/04/2016,LINENRENTALCOUK,91.25,General stationery & supplies
12/04/2016,WP-BACKCARE-THE CH,109.2,Wellbeing
13/04/2016,TNA DISCOVERY ORDERS,3.45,Internet
13/04/2016,SELFSERVE TICKET,6,Travel & Subsistence
13/04/2016,CONVENIENCE CHEQUE FEE,10.09,Bank Charges
13/04/2016,Amazon UK Marketplace,11.98,Repairs and Maintenance - Planned
13/04/2016,OYSTER AUTOTOPUP,20,Travel & Subsistence
13/04/2016,OYSTER AUTOTOPUP,20,Travel & Subsistence
13/04/2016,OYSTER AUTOTOPUP,20,Travel & Subsistence
13/04/2016,OYSTER AUTOTOPUP,20,Travel & Subsistence
13/04/2016,WATERMARGIN PORTSMOUTH,34.6,Travel & Subsistence
13/04/2016,WWW.PLOT-IT.CO.UK,35.33,General stationery & supplies
13/04/2016,STERLING LOCKS LTD,36,General stationery & supplies
13/04/2016,Amazon UK Retail,75,Library
14/04/2016,Amazon UK Marketplace,6.98,General stationery & supplies
14/04/2016,OYSTER AUTOTOPUP,20,Travel & Subsistence
14/04/2016,WAGAMAMA LTD,30.7,Travel & Subsistence
14/04/2016,POST SAFE LTD,31.18,Record Copyin: Store purchases
14/04/2016,MERCURE BURTON UPO,49.8,Travel & Subsistence
14/04/2016,Amazon UK Marketplace,49.95,Library
14/04/2016,EB RE-IMAGINING CHALL,69.25,Travel & Subsistence
14/04/2016,INTITUTEOFCONSERV,160,Training
14/04/2016,WWW.PRESERVATIONEQUIPM,169.44,Repository: stationery
15/04/2016,Amazon UK Marketplace,15.2,General stationery & supplies
15/04/2016,OYSTER BUS AUTOTOP,20,Travel & Subsistence
15/04/2016,OYSTER AUTOTOPUP,20,Travel & Subsistence
15/04/2016,OYSTER AUTOTOPUP,20,Travel & Subsistence
15/04/2016,RONTEC BULLSMOOR,21.31,Travel & Subsistence
15/04/2016,TEXDOWNSSSTN,26.27,Travel & Subsistence
15/04/2016,Amazon UK Retail,221.88,IT Storage
15/04/2016,EB ICON CONFERENCE 20,325,Training
16/04/2016,Amazon UK Retail,3.7,General stationery & supplies
16/04/2016,OYSTER AUTOTOPUP,40,Travel & Subsistence
17/04/2016,Amazon UK Retail,18.5,General stationery & supplies
18/04/2016,CONVENIENCE CHEQUE FEE,2.5,Bank Charges
18/04/2016,CONVENIENCE CHEQUE FEE,3.7,Bank Charges
18/04/2016,M6 TOLL,5.5,Travel & Subsistence
18/04/2016,WWW.BL.UK.TICKETS,20,Conferences and Seminars: TNA Attending
18/04/2016,Stock - Books,23.42,Stock - Kew shop  (Bookshop)
18/04/2016,COUNTRYSIDEBOOKS.,27,Stock - Kew shop  (Bookshop)
18/04/2016,Avira Antivir,29.99,Minor Software
18/04/2016,Avira Antivir,29.99,Minor Software
18/04/2016,THE SWAN TARPORLEY  LT,55.3,Travel & Subsistence
18/04/2016,ARCHETYPE,60,Stock - Kew shop  (Bookshop)
18/04/2016,BRITISH STANDARDS,117,Library
18/04/2016,WWW.NAVAL-MILITARY-PRE,168.54,Stock - Kew shop  (Bookshop)
18/04/2016,Stock - Books,185,Stock - Kew shop  (Bookshop)
18/04/2016,STAR EDITIONS LTD,255.15,Stock - Kew shop  (Bookshop)
18/04/2016,BOON BOOKS,342,Stock - Kew shop  (Bookshop)
19/04/2016,M6 TOLL,5.5,Travel & Subsistence
19/04/2016,WOKING COUNCIL PARKING,6,Travel & Subsistence
19/04/2016,WP-TVCABLES NIMBUS,6.77,Repairs and Maintenance - Planned
19/04/2016,PAYPAL *ROBCORNELL,20,Minor IT
19/04/2016,Amazon UK Marketplace,23.4,Conservation & Preservation Materials
19/04/2016,Amazon UK Marketplace,24.95,Conservation & Preservation Materials
19/04/2016,SHELL RICHMOND,49.01,Travel & Subsistence
